{"text_format":"1","workbook":"xlsx","n_sheets":10,"sheets":["MOG","HA","MOG_OMT","HA_OMT","JARD_MOG","JARD_HA","JARD_MOG_OMT","JARD_HA_OMT","ALL","جدول تسليم البطاقات"],"not_rendered":{"charts":0,"images":0,"macros":1,"external_links":0,"defined_names":5,"comments":0,"pivot_tables":0},"unopened":[],"bounds":{"document_bytes":16777216,"sheet_cells":100000,"rows_first":2000,"rows_last":500,"rows_between":2000,"halvings":0,"cell_chars":16384,"cell_head_chars":4096},"cells_cut":0,"cells_raw":0,"read":"whole","date_system":"1900"}

{"sheet":"MOG","index":0,"n_rows":52,"n_cols":39,"rows_kept":52,"cut":false,"hidden":false,"merged":[]}
[2020,"مغلفات",null,{"$f":"ALL!C1","v":"2020-12-01"}]
["كانون اول","رمز","المنصرم",{"$f":"ALL!C2","v":"02/12/"},null,null,null,null,null,null,null,null,null,null,null,null,null,null,null,null,null,null,null,null,null,null,null,null,null,null,null,null,null,null,null,null,"مغلفات مستلمة ","مغلفات مستلمة+ المنصرم ","مغلفات غير مسلّمة"]
["بيروت","A",11,{"$f":"IFERROR(VLOOKUP($A3&$B3,CHOOSE({1,2},ALL!$A$4:$A$500&ALL!$B$4:$B$500,ALL!$C$4:$C$500),2,FALSE),\"\")","v":4},null,null,null,null,null,null,null,null,null,null,null,null,null,null,null,null,null,null,null,null,null,null,null,null,null,null,null,null,null,null,null,null,{"$f":"SUM(D3:AH3)","v":4},{"$f":"SUM(AK3+C3)","v":15},0]
["بعبدا","B1",0,{"$f":"IFERROR(VLOOKUP($A4&$B4,CHOOSE({1,2},ALL!$A$4:$A$500&ALL!$B$4:$B$500,ALL!$C$4:$C$500),2,FALSE),\"\")","v":3},null,null,null,null,null,null,null,null,null,null,null,null,null,null,null,null,null,null,null,null,null,null,null,null,null,null,null,null,null,null,null,null,{"$f":"SUM(D4:AH4)","v":3},{"$f":"SUM(AK4+C4)","v":3},3]
["بكفيا","B10",11,{"$f":"IFERROR(VLOOKUP($A5&$B5,CHOOSE({1,2},ALL!$A$4:$A$500&ALL!$B$4:$B$500,ALL!$C$4:$C$500),2,FALSE),\"\")","v":4},null,null,null,null,null,null,null,null,null,null,null,null,null,null,null,null,null,null,null,null,null,null,null,null,null,null,null,null,null,null,null,null,4,15,4]
["المتن الشمالي العالي","B11",7,{"$f":"IFERROR(VLOOKUP($A6&$B6,CHOOSE({1,2},ALL!$A$4:$A$500&ALL!$B$4:$B$500,ALL!$C$4:$C$500),2,FALSE),\"\")","v":5},null,null,null,null,null,null,null,null,null,null,null,null,null,null,null,null,null,null,null,null,null,null,null,null,null,null,null,null,null,null,null,null,5,12,5]
["كسروان ","B12",30,{"$f":"IFERROR(VLOOKUP($A7&$B7,CHOOSE({1,2},ALL!$A$4:$A$500&ALL!$B$4:$B$500,ALL!$C$4:$C$500),2,FALSE),\"\")","v":12},null,null,null,null,null,null,null,null,null,null,null,null,null,null,null,null,null,null,null,null,null,null,null,null,null,null,null,null,null,null,null,null,12,42,12]
["جبيل","B13",12,{"$f":"IFERROR(VLOOKUP($A8&$B8,CHOOSE({1,2},ALL!$A$4:$A$500&ALL!$B$4:$B$500,ALL!$C$4:$C$500),2,FALSE),\"\")","v":0},null,null,null,null,null,null,null,null,null,null,null,null,null,null,null,null,null,null,null,null,null,null,null,null,null,null,null,null,null,null,null,null,0,12,0]
["فتوح كسروان","B14",13,{"$f":"IFERROR(VLOOKUP($A9&$B9,CHOOSE({1,2},ALL!$A$4:$A$500&ALL!$B$4:$B$500,ALL!$C$4:$C$500),2,FALSE),\"\")","v":4},null,null,null,null,null,null,null,null,null,null,null,null,null,null,null,null,null,null,null,null,null,null,null,null,null,null,null,null,null,null,null,null,4,17,4]
["الشويفات","B2",26,{"$f":"IFERROR(VLOOKUP($A10&$B10,CHOOSE({1,2},ALL!$A$4:$A$500&ALL!$B$4:$B$500,ALL!$C$4:$C$500),2,FALSE),\"\")","v":8},null,null,null,null,null,null,null,null,null,null,null,null,null,null,null,null,null,null,null,null,null,null,null,null,null,null,null,null,null,null,null,null,8,34,8]
["برجا","B3",16,{"$f":"IFERROR(VLOOKUP($A11&$B11,CHOOSE({1,2},ALL!$A$4:$A$500&ALL!$B$4:$B$500,ALL!$C$4:$C$500),2,FALSE),\"\")","v":0},null,null,null,null,null,null,null,null,null,null,null,null,null,null,null,null,null,null,null,null,null,null,null,null,null,null,null,null,null,null,null,null,0,16,0]
["شحيم","B4",2,{"$f":"IFERROR(VLOOKUP($A12&$B12,CHOOSE({1,2},ALL!$A$4:$A$500&ALL!$B$4:$B$500,ALL!$C$4:$C$500),2,FALSE),\"\")","v":0},null,null,null,null,null,null,null,null,null,null,null,null,null,null,null,null,null,null,null,null,null,null,null,null,null,null,null,null,null,null,null,null,0,2,0]
["عاليه","B5",26,{"$f":"IFERROR(VLOOKUP($A13&$B13,CHOOSE({1,2},ALL!$A$4:$A$500&ALL!$B$4:$B$500,ALL!$C$4:$C$500),2,FALSE),\"\")","v":5},null,null,null,null,null,null,null,null,null,null,null,null,null,null,null,null,null,null,null,null,null,null,null,null,null,null,null,null,null,null,null,null,5,31,5]
["حمانا","B6",11,{"$f":"IFERROR(VLOOKUP($A14&$B14,CHOOSE({1,2},ALL!$A$4:$A$500&ALL!$B$4:$B$500,ALL!$C$4:$C$500),2,FALSE),\"\")","v":0},null,null,null,null,null,null,null,null,null,null,null,null,null,null,null,null,null,null,null,null,null,null,null,null,null,null,null,null,null,null,null,null,0,11,0]
["الشوف","B7",13,{"$f":"IFERROR(VLOOKUP($A15&$B15,CHOOSE({1,2},ALL!$A$4:$A$500&ALL!$B$4:$B$500,ALL!$C$4:$C$500),2,FALSE),\"\")","v":1},null,null,null,null,null,null,null,null,null,null,null,null,null,null,null,null,null,null,null,null,null,null,null,null,null,null,null,null,null,null,null,null,1,14,1]
["المتن ","B8",22,{"$f":"IFERROR(VLOOKUP($A16&$B16,CHOOSE({1,2},ALL!$A$4:$A$500&ALL!$B$4:$B$500,ALL!$C$4:$C$500),2,FALSE),\"\")","v":6},null,null,null,null,null,null,null,null,null,null,null,null,null,null,null,null,null,null,null,null,null,null,null,null,null,null,null,null,null,null,null,null,6,28,6]
["انطلياس","B9",8,{"$f":"IFERROR(VLOOKUP($A17&$B17,CHOOSE({1,2},ALL!$A$4:$A$500&ALL!$B$4:$B$500,ALL!$C$4:$C$500),2,FALSE),\"\")","v":7},null,null,null,null,null,null,null,null,null,null,null,null,null,null,null,null,null,null,null,null,null,null,null,null,null,null,null,null,null,null,null,null,7,15,7]
["صيدا","C1",9,{"$f":"IFERROR(VLOOKUP($A18&$B18,CHOOSE({1,2},ALL!$A$4:$A$500&ALL!$B$4:$B$500,ALL!$C$4:$C$500),2,FALSE),\"\")","v":0},null,null,null,null,null,null,null,null,null,null,null,null,null,null,null,null,null,null,null,null,null,null,null,null,null,null,null,null,null,null,null,null,0,9,0]
["جويا","C10",21,{"$f":"IFERROR(VLOOKUP($A19&$B19,CHOOSE({1,2},ALL!$A$4:$A$500&ALL!$B$4:$B$500,ALL!$C$4:$C$500),2,FALSE),\"\")","v":0},null,null,null,null,null,null,null,null,null,null,null,null,null,null,null,null,null,null,null,null,null,null,null,null,null,null,null,null,null,null,null,null,0,21,0]
["ميس الجبل","C11",12,{"$f":"IFERROR(VLOOKUP($A20&$B20,CHOOSE({1,2},ALL!$A$4:$A$500&ALL!$B$4:$B$500,ALL!$C$4:$C$500),2,FALSE),\"\")","v":0},null,null,null,null,null,null,null,null,null,null,null,null,null,null,null,null,null,null,null,null,null,null,null,null,null,null,null,null,null,null,null,null,0,12,0]
["صور","C2",42,{"$f":"IFERROR(VLOOKUP($A21&$B21,CHOOSE({1,2},ALL!$A$4:$A$500&ALL!$B$4:$B$500,ALL!$C$4:$C$500),2,FALSE),\"\")","v":0},null,null,null,null,null,null,null,null,null,null,null,null,null,null,null,null,null,null,null,null,null,null,null,null,null,null,null,null,null,null,null,null,0,42,0]
["جزين","C3",8,{"$f":"IFERROR(VLOOKUP($A22&$B22,CHOOSE({1,2},ALL!$A$4:$A$500&ALL!$B$4:$B$500,ALL!$C$4:$C$500),2,FALSE),\"\")","v":0},null,null,null,null,null,null,null,null,null,null,null,null,null,null,null,null,null,null,null,null,null,null,null,null,null,null,null,null,null,null,null,null,0,8,0]
["النبطية","C4",47,{"$f":"IFERROR(VLOOKUP($A23&$B23,CHOOSE({1,2},ALL!$A$4:$A$500&ALL!$B$4:$B$500,ALL!$C$4:$C$500),2,FALSE),\"\")","v":2},null,null,null,null,null,null,null,null,null,null,null,null,null,null,null,null,null,null,null,null,null,null,null,null,null,null,null,null,null,null,null,null,2,49,2]
["بنت جبيل","C5",46,{"$f":"IFERROR(VLOOKUP($A24&$B24,CHOOSE({1,2},ALL!$A$4:$A$500&ALL!$B$4:$B$500,ALL!$C$4:$C$500),2,FALSE),\"\")","v":2},null,null,null,null,null,null,null,null,null,null,null,null,null,null,null,null,null,null,null,null,null,null,null,null,null,null,null,null,null,null,null,null,2,48,2]
["مرجعيون","C6",15,{"$f":"IFERROR(VLOOKUP($A25&$B25,CHOOSE({1,2},ALL!$A$4:$A$500&ALL!$B$4:$B$500,ALL!$C$4:$C$500),2,FALSE),\"\")","v":0},null,null,null,null,null,null,null,null,null,null,null,null,null,null,null,null,null,null,null,null,null,null,null,null,null,null,null,null,null,null,null,null,0,15,0]
["حاصبيا","C7",21,{"$f":"IFERROR(VLOOKUP($A26&$B26,CHOOSE({1,2},ALL!$A$4:$A$500&ALL!$B$4:$B$500,ALL!$C$4:$C$500),2,FALSE),\"\")","v":0},null,null,null,null,null,null,null,null,null,null,null,null,null,null,null,null,null,null,null,null,null,null,null,null,null,null,null,null,null,null,null,null,0,21,0]
["تبنين","C8",37,{"$f":"IFERROR(VLOOKUP($A27&$B27,CHOOSE({1,2},ALL!$A$4:$A$500&ALL!$B$4:$B$500,ALL!$C$4:$C$500),2,FALSE),\"\")","v":2},null,null,null,null,null,null,null,null,null,null,null,null,null,null,null,null,null,null,null,null,null,null,null,null,null,null,null,null,null,null,null,null,2,39,2]
["جباع","C9",17,{"$f":"IFERROR(VLOOKUP($A28&$B28,CHOOSE({1,2},ALL!$A$4:$A$500&ALL!$B$4:$B$500,ALL!$C$4:$C$500),2,FALSE),\"\")","v":1},null,null,null,null,null,null,null,null,null,null,null,null,null,null,null,null,null,null,null,null,null,null,null,null,null,null,null,null,null,null,null,null,1,18,1]
["زحلة","D1",80,{"$f":"IFERROR(VLOOKUP($A29&$B29,CHOOSE({1,2},ALL!$A$4:$A$500&ALL!$B$4:$B$500,ALL!$C$4:$C$500),2,FALSE),\"\")","v":4},null,null,null,null,null,null,null,null,null,null,null,null,null,null,null,null,null,null,null,null,null,null,null,null,null,null,null,null,null,null,null,null,4,84,4]
["النبي شيت","D10",18,{"$f":"IFERROR(VLOOKUP($A30&$B30,CHOOSE({1,2},ALL!$A$4:$A$500&ALL!$B$4:$B$500,ALL!$C$4:$C$500),2,FALSE),\"\")","v":11},null,null,null,null,null,null,null,null,null,null,null,null,null,null,null,null,null,null,null,null,null,null,null,null,null,null,null,null,null,null,null,null,11,29,11]
["راشيا","D2",22,{"$f":"IFERROR(VLOOKUP($A31&$B31,CHOOSE({1,2},ALL!$A$4:$A$500&ALL!$B$4:$B$500,ALL!$C$4:$C$500),2,FALSE),\"\")","v":0},null,null,null,null,null,null,null,null,null,null,null,null,null,null,null,null,null,null,null,null,null,null,null,null,null,null,null,null,null,null,null,null,0,22,0]
["البقاع الغربي","D3",47,{"$f":"IFERROR(VLOOKUP($A32&$B32,CHOOSE({1,2},ALL!$A$4:$A$500&ALL!$B$4:$B$500,ALL!$C$4:$C$500),2,FALSE),\"\")","v":2},null,null,null,null,null,null,null,null,null,null,null,null,null,null,null,null,null,null,null,null,null,null,null,null,null,null,null,null,null,null,null,null,2,49,2]
["شمسطار","D4",25,{"$f":"IFERROR(VLOOKUP($A33&$B33,CHOOSE({1,2},ALL!$A$4:$A$500&ALL!$B$4:$B$500,ALL!$C$4:$C$500),2,FALSE),\"\")","v":5},null,null,null,null,null,null,null,null,null,null,null,null,null,null,null,null,null,null,null,null,null,null,null,null,null,null,null,null,null,null,null,null,5,30,5]
["بعلبك","D5",57,{"$f":"IFERROR(VLOOKUP($A34&$B34,CHOOSE({1,2},ALL!$A$4:$A$500&ALL!$B$4:$B$500,ALL!$C$4:$C$500),2,FALSE),\"\")","v":19},null,null,null,null,null,null,null,null,null,null,null,null,null,null,null,null,null,null,null,null,null,null,null,null,null,null,null,null,null,null,null,null,19,76,19]
["الهرمل","D6",30,{"$f":"IFERROR(VLOOKUP($A35&$B35,CHOOSE({1,2},ALL!$A$4:$A$500&ALL!$B$4:$B$500,ALL!$C$4:$C$500),2,FALSE),\"\")","v":0},null,null,null,null,null,null,null,null,null,null,null,null,null,null,null,null,null,null,null,null,null,null,null,null,null,null,null,null,null,null,null,null,0,30,0]
["دير الاحمر","D7",12,{"$f":"IFERROR(VLOOKUP($A36&$B36,CHOOSE({1,2},ALL!$A$4:$A$500&ALL!$B$4:$B$500,ALL!$C$4:$C$500),2,FALSE),\"\")","v":6},null,null,null,null,null,null,null,null,null,null,null,null,null,null,null,null,null,null,null,null,null,null,null,null,null,null,null,null,null,null,null,null,6,18,6]
["اللبوة","D8",47,{"$f":"IFERROR(VLOOKUP($A37&$B37,CHOOSE({1,2},ALL!$A$4:$A$500&ALL!$B$4:$B$500,ALL!$C$4:$C$500),2,FALSE),\"\")","v":0},null,null,null,null,null,null,null,null,null,null,null,null,null,null,null,null,null,null,null,null,null,null,null,null,null,null,null,null,null,null,null,null,0,47,0]
["صغبين","D9",33,{"$f":"IFERROR(VLOOKUP($A38&$B38,CHOOSE({1,2},ALL!$A$4:$A$500&ALL!$B$4:$B$500,ALL!$C$4:$C$500),2,FALSE),\"\")","v":2},null,null,null,null,null,null,null,null,null,null,null,null,null,null,null,null,null,null,null,null,null,null,null,null,null,null,null,null,null,null,null,null,2,35,2]
["طرابلس","E1",0,{"$f":"IFERROR(VLOOKUP($A39&$B39,CHOOSE({1,2},ALL!$A$4:$A$500&ALL!$B$4:$B$500,ALL!$C$4:$C$500),2,FALSE),\"\")","v":4},null,null,null,null,null,null,null,null,null,null,null,null,null,null,null,null,null,null,null,null,null,null,null,null,null,null,null,null,null,null,null,null,4,4,4]
["دوما","E10",4,{"$f":"IFERROR(VLOOKUP($A40&$B40,CHOOSE({1,2},ALL!$A$4:$A$500&ALL!$B$4:$B$500,ALL!$C$4:$C$500),2,FALSE),\"\")","v":4},null,null,null,null,null,null,null,null,null,null,null,null,null,null,null,null,null,null,null,null,null,null,null,null,null,null,null,null,null,null,null,null,4,8,4]
["العبدة","E11",11,{"$f":"IFERROR(VLOOKUP($A41&$B41,CHOOSE({1,2},ALL!$A$4:$A$500&ALL!$B$4:$B$500,ALL!$C$4:$C$500),2,FALSE),\"\")","v":0},null,null,null,null,null,null,null,null,null,null,null,null,null,null,null,null,null,null,null,null,null,null,null,null,null,null,null,null,null,null,null,null,0,11,0]
["بخعون","E12",2,{"$f":"IFERROR(VLOOKUP($A42&$B42,CHOOSE({1,2},ALL!$A$4:$A$500&ALL!$B$4:$B$500,ALL!$C$4:$C$500),2,FALSE),\"\")","v":0},null,null,null,null,null,null,null,null,null,null,null,null,null,null,null,null,null,null,null,null,null,null,null,null,null,null,null,null,null,null,null,null,0,2,0]
["بيت ملات","E13",10,{"$f":"IFERROR(VLOOKUP($A43&$B43,CHOOSE({1,2},ALL!$A$4:$A$500&ALL!$B$4:$B$500,ALL!$C$4:$C$500),2,FALSE),\"\")","v":0},null,null,null,null,null,null,null,null,null,null,null,null,null,null,null,null,null,null,null,null,null,null,null,null,null,null,null,null,null,null,null,null,0,10,0]
["المنية","E2",20,{"$f":"IFERROR(VLOOKUP($A44&$B44,CHOOSE({1,2},ALL!$A$4:$A$500&ALL!$B$4:$B$500,ALL!$C$4:$C$500),2,FALSE),\"\")","v":1},null,null,null,null,null,null,null,null,null,null,null,null,null,null,null,null,null,null,null,null,null,null,null,null,null,null,null,null,null,null,null,null,1,21,1]
["سير الضنية","E3",11,{"$f":"IFERROR(VLOOKUP($A45&$B45,CHOOSE({1,2},ALL!$A$4:$A$500&ALL!$B$4:$B$500,ALL!$C$4:$C$500),2,FALSE),\"\")","v":2},null,null,null,null,null,null,null,null,null,null,null,null,null,null,null,null,null,null,null,null,null,null,null,null,null,null,null,null,null,null,null,null,2,13,2]
["حلبا عكار","E4",7,{"$f":"IFERROR(VLOOKUP($A46&$B46,CHOOSE({1,2},ALL!$A$4:$A$500&ALL!$B$4:$B$500,ALL!$C$4:$C$500),2,FALSE),\"\")","v":0},null,null,null,null,null,null,null,null,null,null,null,null,null,null,null,null,null,null,null,null,null,null,null,null,null,null,null,null,null,null,null,null,0,7,0]
["القبيات","E5",18,{"$f":"IFERROR(VLOOKUP($A47&$B47,CHOOSE({1,2},ALL!$A$4:$A$500&ALL!$B$4:$B$500,ALL!$C$4:$C$500),2,FALSE),\"\")","v":0},null,null,null,null,null,null,null,null,null,null,null,null,null,null,null,null,null,null,null,null,null,null,null,null,null,null,null,null,null,null,null,null,0,18,0]
["البترون","E6",5,{"$f":"IFERROR(VLOOKUP($A48&$B48,CHOOSE({1,2},ALL!$A$4:$A$500&ALL!$B$4:$B$500,ALL!$C$4:$C$500),2,FALSE),\"\")","v":3},null,null,null,null,null,null,null,null,null,null,null,null,null,null,null,null,null,null,null,null,null,null,null,null,null,null,null,null,null,null,null,null,3,8,3]
["الكورة","E7",9,{"$f":"IFERROR(VLOOKUP($A49&$B49,CHOOSE({1,2},ALL!$A$4:$A$500&ALL!$B$4:$B$500,ALL!$C$4:$C$500),2,FALSE),\"\")","v":5},null,null,null,null,null,null,null,null,null,null,null,null,null,null,null,null,null,null,null,null,null,null,null,null,null,null,null,null,null,null,null,null,5,14,5]
["زغرتا","E8",13,{"$f":"IFERROR(VLOOKUP($A50&$B50,CHOOSE({1,2},ALL!$A$4:$A$500&ALL!$B$4:$B$500,ALL!$C$4:$C$500),2,FALSE),\"\")","v":1},null,null,null,null,null,null,null,null,null,null,null,null,null,null,null,null,null,null,null,null,null,null,null,null,null,null,null,null,null,null,null,null,1,14,1]
["بشري","E9",2,{"$f":"IFERROR(VLOOKUP($A51&$B51,CHOOSE({1,2},ALL!$A$4:$A$500&ALL!$B$4:$B$500,ALL!$C$4:$C$500),2,FALSE),\"\")","v":4},null,null,null,null,null,null,null,null,null,null,null,null,null,null,null,null,null,null,null,null,null,null,null,null,null,null,null,null,null,null,null,null,4,6,4]
["المجموع",null,{"$f":"SUM(C3:C51)","v":966},{"$f":"SUM(D3:D51)","v":139},0,0,0,0,0,0,0,0,0,{"$f":"SUM(N3:N51)","v":0},0,0,0,0,0,0,0,0,0,0,0,0,0,0,0,0,0,0,0,0,null,null,{"$f":"SUM(AK3:AK50)","v":135},{"$f":"SUM(AL3:AL51)","v":1105},{"$f":"SUM(AM3:AM51)","v":135}]

{"sheet":"HA","index":1,"n_rows":52,"n_cols":39,"rows_kept":52,"cut":false,"hidden":false,"merged":[]}
[2020,"هويات",null,{"$f":"ALL!C1","v":"2020-12-01"}]
["كانون اول","رمز","المنصرم",{"$f":"ALL!C2","v":"02/12/"},null,null,null,null,null,null,null,null,null,null,null,null,null,null,null,null,null,null,null,null,null,null,null,null,null,null,null,null,null,null,null,null,"هويات مستلمة","هويات مستلمة + المنصرم","هويات غير مسلّمة "]
["بيروت","A",140,{"$f":"IFERROR(VLOOKUP($A3&$B3,CHOOSE({1,2},ALL!$A$4:$A$500&ALL!$B$4:$B$500,ALL!$D$4:$D$500),2,FALSE),\"\")","v":4},null,null,null,null,null,null,null,null,null,null,null,null,null,null,null,null,null,null,null,null,null,null,null,null,null,null,null,null,null,null,null,null,{"$f":"SUM(D3:AH3)","v":4},{"$f":"SUM(AK3+C3)","v":144},0]
["بعبدا","B1",0,{"$f":"IFERROR(VLOOKUP($A4&$B4,CHOOSE({1,2},ALL!$A$4:$A$500&ALL!$B$4:$B$500,ALL!$D$4:$D$500),2,FALSE),\"\")","v":22},null,null,null,null,null,null,null,null,null,null,null,null,null,null,null,null,null,null,null,null,null,null,null,null,null,null,null,null,null,null,null,null,{"$f":"SUM(D4:AH4)","v":22},{"$f":"SUM(AK4+C4)","v":22},22]
["بكفيا","B10",88,{"$f":"IFERROR(VLOOKUP($A5&$B5,CHOOSE({1,2},ALL!$A$4:$A$500&ALL!$B$4:$B$500,ALL!$D$4:$D$500),2,FALSE),\"\")","v":82},null,null,null,null,null,null,null,null,null,null,null,null,null,null,null,null,null,null,null,null,null,null,null,null,null,null,null,null,null,null,null,null,82,170,82]
["المتن الشمالي العالي","B11",16,{"$f":"IFERROR(VLOOKUP($A6&$B6,CHOOSE({1,2},ALL!$A$4:$A$500&ALL!$B$4:$B$500,ALL!$D$4:$D$500),2,FALSE),\"\")","v":9},null,null,null,null,null,null,null,null,null,null,null,null,null,null,null,null,null,null,null,null,null,null,null,null,null,null,null,null,null,null,null,null,9,25,9]
["كسروان ","B12",81,{"$f":"IFERROR(VLOOKUP($A7&$B7,CHOOSE({1,2},ALL!$A$4:$A$500&ALL!$B$4:$B$500,ALL!$D$4:$D$500),2,FALSE),\"\")","v":63},null,null,null,null,null,null,null,null,null,null,null,null,null,null,null,null,null,null,null,null,null,null,null,null,null,null,null,null,null,null,null,null,63,144,63]
["جبيل","B13",81,{"$f":"IFERROR(VLOOKUP($A8&$B8,CHOOSE({1,2},ALL!$A$4:$A$500&ALL!$B$4:$B$500,ALL!$D$4:$D$500),2,FALSE),\"\")","v":0},null,null,null,null,null,null,null,null,null,null,null,null,null,null,null,null,null,null,null,null,null,null,null,null,null,null,null,null,null,null,null,null,0,81,0]
["فتوح كسروان","B14",22,{"$f":"IFERROR(VLOOKUP($A9&$B9,CHOOSE({1,2},ALL!$A$4:$A$500&ALL!$B$4:$B$500,ALL!$D$4:$D$500),2,FALSE),\"\")","v":22},null,null,null,null,null,null,null,null,null,null,null,null,null,null,null,null,null,null,null,null,null,null,null,null,null,null,null,null,null,null,null,null,22,44,22]
["الشويفات","B2",58,{"$f":"IFERROR(VLOOKUP($A10&$B10,CHOOSE({1,2},ALL!$A$4:$A$500&ALL!$B$4:$B$500,ALL!$D$4:$D$500),2,FALSE),\"\")","v":24},null,null,null,null,null,null,null,null,null,null,null,null,null,null,null,null,null,null,null,null,null,null,null,null,null,null,null,null,null,null,null,null,24,82,24]
["برجا","B3",44,{"$f":"IFERROR(VLOOKUP($A11&$B11,CHOOSE({1,2},ALL!$A$4:$A$500&ALL!$B$4:$B$500,ALL!$D$4:$D$500),2,FALSE),\"\")","v":0},null,null,null,null,null,null,null,null,null,null,null,null,null,null,null,null,null,null,null,null,null,null,null,null,null,null,null,null,null,null,null,null,0,44,0]
["شحيم","B4",5,{"$f":"IFERROR(VLOOKUP($A12&$B12,CHOOSE({1,2},ALL!$A$4:$A$500&ALL!$B$4:$B$500,ALL!$D$4:$D$500),2,FALSE),\"\")","v":0},null,null,null,null,null,null,null,null,null,null,null,null,null,null,null,null,null,null,null,null,null,null,null,null,null,null,null,null,null,null,null,null,0,5,0]
["عاليه","B5",51,{"$f":"IFERROR(VLOOKUP($A13&$B13,CHOOSE({1,2},ALL!$A$4:$A$500&ALL!$B$4:$B$500,ALL!$D$4:$D$500),2,FALSE),\"\")","v":7},null,null,null,null,null,null,null,null,null,null,null,null,null,null,null,null,null,null,null,null,null,null,null,null,null,null,null,null,null,null,null,null,7,58,7]
["حمانا","B6",10,{"$f":"IFERROR(VLOOKUP($A14&$B14,CHOOSE({1,2},ALL!$A$4:$A$500&ALL!$B$4:$B$500,ALL!$D$4:$D$500),2,FALSE),\"\")","v":0},null,null,null,null,null,null,null,null,null,null,null,null,null,null,null,null,null,null,null,null,null,null,null,null,null,null,null,null,null,null,null,null,0,10,0]
["الشوف","B7",19,{"$f":"IFERROR(VLOOKUP($A15&$B15,CHOOSE({1,2},ALL!$A$4:$A$500&ALL!$B$4:$B$500,ALL!$D$4:$D$500),2,FALSE),\"\")","v":1},null,null,null,null,null,null,null,null,null,null,null,null,null,null,null,null,null,null,null,null,null,null,null,null,null,null,null,null,null,null,null,null,1,20,1]
["المتن ","B8",62,{"$f":"IFERROR(VLOOKUP($A16&$B16,CHOOSE({1,2},ALL!$A$4:$A$500&ALL!$B$4:$B$500,ALL!$D$4:$D$500),2,FALSE),\"\")","v":14},null,null,null,null,null,null,null,null,null,null,null,null,null,null,null,null,null,null,null,null,null,null,null,null,null,null,null,null,null,null,null,null,14,76,14]
["انطلياس","B9",36,{"$f":"IFERROR(VLOOKUP($A17&$B17,CHOOSE({1,2},ALL!$A$4:$A$500&ALL!$B$4:$B$500,ALL!$D$4:$D$500),2,FALSE),\"\")","v":28},null,null,null,null,null,null,null,null,null,null,null,null,null,null,null,null,null,null,null,null,null,null,null,null,null,null,null,null,null,null,null,null,28,64,28]
["صيدا","C1",16,{"$f":"IFERROR(VLOOKUP($A18&$B18,CHOOSE({1,2},ALL!$A$4:$A$500&ALL!$B$4:$B$500,ALL!$D$4:$D$500),2,FALSE),\"\")","v":0},null,null,null,null,null,null,null,null,null,null,null,null,null,null,null,null,null,null,null,null,null,null,null,null,null,null,null,null,null,null,null,null,0,16,0]
["جويا","C10",90,{"$f":"IFERROR(VLOOKUP($A19&$B19,CHOOSE({1,2},ALL!$A$4:$A$500&ALL!$B$4:$B$500,ALL!$D$4:$D$500),2,FALSE),\"\")","v":0},null,null,null,null,null,null,null,null,null,null,null,null,null,null,null,null,null,null,null,null,null,null,null,null,null,null,null,null,null,null,null,null,0,90,0]
["ميس الجبل","C11",69,{"$f":"IFERROR(VLOOKUP($A20&$B20,CHOOSE({1,2},ALL!$A$4:$A$500&ALL!$B$4:$B$500,ALL!$D$4:$D$500),2,FALSE),\"\")","v":0},null,null,null,null,null,null,null,null,null,null,null,null,null,null,null,null,null,null,null,null,null,null,null,null,null,null,null,null,null,null,null,null,0,69,0]
["صور","C2",139,{"$f":"IFERROR(VLOOKUP($A21&$B21,CHOOSE({1,2},ALL!$A$4:$A$500&ALL!$B$4:$B$500,ALL!$D$4:$D$500),2,FALSE),\"\")","v":0},null,null,null,null,null,null,null,null,null,null,null,null,null,null,null,null,null,null,null,null,null,null,null,null,null,null,null,null,null,null,null,null,0,139,0]
["جزين","C3",13,{"$f":"IFERROR(VLOOKUP($A22&$B22,CHOOSE({1,2},ALL!$A$4:$A$500&ALL!$B$4:$B$500,ALL!$D$4:$D$500),2,FALSE),\"\")","v":0},null,null,null,null,null,null,null,null,null,null,null,null,null,null,null,null,null,null,null,null,null,null,null,null,null,null,null,null,null,null,null,null,0,13,0]
["النبطية","C4",94,{"$f":"IFERROR(VLOOKUP($A23&$B23,CHOOSE({1,2},ALL!$A$4:$A$500&ALL!$B$4:$B$500,ALL!$D$4:$D$500),2,FALSE),\"\")","v":2},null,null,null,null,null,null,null,null,null,null,null,null,null,null,null,null,null,null,null,null,null,null,null,null,null,null,null,null,null,null,null,null,2,96,2]
["بنت جبيل","C5",216,{"$f":"IFERROR(VLOOKUP($A24&$B24,CHOOSE({1,2},ALL!$A$4:$A$500&ALL!$B$4:$B$500,ALL!$D$4:$D$500),2,FALSE),\"\")","v":3},null,null,null,null,null,null,null,null,null,null,null,null,null,null,null,null,null,null,null,null,null,null,null,null,null,null,null,null,null,null,null,null,3,219,3]
["مرجعيون","C6",29,{"$f":"IFERROR(VLOOKUP($A25&$B25,CHOOSE({1,2},ALL!$A$4:$A$500&ALL!$B$4:$B$500,ALL!$D$4:$D$500),2,FALSE),\"\")","v":0},null,null,null,null,null,null,null,null,null,null,null,null,null,null,null,null,null,null,null,null,null,null,null,null,null,null,null,null,null,null,null,null,0,29,0]
["حاصبيا","C7",45,{"$f":"IFERROR(VLOOKUP($A26&$B26,CHOOSE({1,2},ALL!$A$4:$A$500&ALL!$B$4:$B$500,ALL!$D$4:$D$500),2,FALSE),\"\")","v":0},null,null,null,null,null,null,null,null,null,null,null,null,null,null,null,null,null,null,null,null,null,null,null,null,null,null,null,null,null,null,null,null,0,45,0]
["تبنين","C8",97,{"$f":"IFERROR(VLOOKUP($A27&$B27,CHOOSE({1,2},ALL!$A$4:$A$500&ALL!$B$4:$B$500,ALL!$D$4:$D$500),2,FALSE),\"\")","v":3},null,null,null,null,null,null,null,null,null,null,null,null,null,null,null,null,null,null,null,null,null,null,null,null,null,null,null,null,null,null,null,null,3,100,3]
["جباع","C9",60,{"$f":"IFERROR(VLOOKUP($A28&$B28,CHOOSE({1,2},ALL!$A$4:$A$500&ALL!$B$4:$B$500,ALL!$D$4:$D$500),2,FALSE),\"\")","v":1},null,null,null,null,null,null,null,null,null,null,null,null,null,null,null,null,null,null,null,null,null,null,null,null,null,null,null,null,null,null,null,null,1,61,1]
["زحلة","D1",322,{"$f":"IFERROR(VLOOKUP($A29&$B29,CHOOSE({1,2},ALL!$A$4:$A$500&ALL!$B$4:$B$500,ALL!$D$4:$D$500),2,FALSE),\"\")","v":21},null,null,null,null,null,null,null,null,null,null,null,null,null,null,null,null,null,null,null,null,null,null,null,null,null,null,null,null,null,null,null,null,21,343,21]
["النبي شيت","D10",36,{"$f":"IFERROR(VLOOKUP($A30&$B30,CHOOSE({1,2},ALL!$A$4:$A$500&ALL!$B$4:$B$500,ALL!$D$4:$D$500),2,FALSE),\"\")","v":68},null,null,null,null,null,null,null,null,null,null,null,null,null,null,null,null,null,null,null,null,null,null,null,null,null,null,null,null,null,null,null,null,68,104,68]
["راشيا","D2",82,{"$f":"IFERROR(VLOOKUP($A31&$B31,CHOOSE({1,2},ALL!$A$4:$A$500&ALL!$B$4:$B$500,ALL!$D$4:$D$500),2,FALSE),\"\")","v":0},null,null,null,null,null,null,null,null,null,null,null,null,null,null,null,null,null,null,null,null,null,null,null,null,null,null,null,null,null,null,null,null,0,82,0]
["البقاع الغربي","D3",174,{"$f":"IFERROR(VLOOKUP($A32&$B32,CHOOSE({1,2},ALL!$A$4:$A$500&ALL!$B$4:$B$500,ALL!$D$4:$D$500),2,FALSE),\"\")","v":4},null,null,null,null,null,null,null,null,null,null,null,null,null,null,null,null,null,null,null,null,null,null,null,null,null,null,null,null,null,null,null,null,4,178,4]
["شمسطار","D4",93,{"$f":"IFERROR(VLOOKUP($A33&$B33,CHOOSE({1,2},ALL!$A$4:$A$500&ALL!$B$4:$B$500,ALL!$D$4:$D$500),2,FALSE),\"\")","v":10},null,null,null,null,null,null,null,null,null,null,null,null,null,null,null,null,null,null,null,null,null,null,null,null,null,null,null,null,null,null,null,null,10,103,10]
["بعلبك","D5",167,{"$f":"IFERROR(VLOOKUP($A34&$B34,CHOOSE({1,2},ALL!$A$4:$A$500&ALL!$B$4:$B$500,ALL!$D$4:$D$500),2,FALSE),\"\")","v":58},null,null,null,null,null,null,null,null,null,null,null,null,null,null,null,null,null,null,null,null,null,null,null,null,null,null,null,null,null,null,null,null,58,225,58]
["الهرمل","D6",131,{"$f":"IFERROR(VLOOKUP($A35&$B35,CHOOSE({1,2},ALL!$A$4:$A$500&ALL!$B$4:$B$500,ALL!$D$4:$D$500),2,FALSE),\"\")","v":0},null,null,null,null,null,null,null,null,null,null,null,null,null,null,null,null,null,null,null,null,null,null,null,null,null,null,null,null,null,null,null,null,0,131,0]
["دير الاحمر","D7",24,{"$f":"IFERROR(VLOOKUP($A36&$B36,CHOOSE({1,2},ALL!$A$4:$A$500&ALL!$B$4:$B$500,ALL!$D$4:$D$500),2,FALSE),\"\")","v":14},null,null,null,null,null,null,null,null,null,null,null,null,null,null,null,null,null,null,null,null,null,null,null,null,null,null,null,null,null,null,null,null,14,38,14]
["اللبوة","D8",144,{"$f":"IFERROR(VLOOKUP($A37&$B37,CHOOSE({1,2},ALL!$A$4:$A$500&ALL!$B$4:$B$500,ALL!$D$4:$D$500),2,FALSE),\"\")","v":0},null,null,null,null,null,null,null,null,null,null,null,null,null,null,null,null,null,null,null,null,null,null,null,null,null,null,null,null,null,null,null,null,0,144,0]
["صغبين","D9",86,{"$f":"IFERROR(VLOOKUP($A38&$B38,CHOOSE({1,2},ALL!$A$4:$A$500&ALL!$B$4:$B$500,ALL!$D$4:$D$500),2,FALSE),\"\")","v":2},null,null,null,null,null,null,null,null,null,null,null,null,null,null,null,null,null,null,null,null,null,null,null,null,null,null,null,null,null,null,null,null,2,88,2]
["طرابلس","E1",0,{"$f":"IFERROR(VLOOKUP($A39&$B39,CHOOSE({1,2},ALL!$A$4:$A$500&ALL!$B$4:$B$500,ALL!$D$4:$D$500),2,FALSE),\"\")","v":7},null,null,null,null,null,null,null,null,null,null,null,null,null,null,null,null,null,null,null,null,null,null,null,null,null,null,null,null,null,null,null,null,7,7,7]
["دوما","E10",12,{"$f":"IFERROR(VLOOKUP($A40&$B40,CHOOSE({1,2},ALL!$A$4:$A$500&ALL!$B$4:$B$500,ALL!$D$4:$D$500),2,FALSE),\"\")","v":9},null,null,null,null,null,null,null,null,null,null,null,null,null,null,null,null,null,null,null,null,null,null,null,null,null,null,null,null,null,null,null,null,9,21,9]
["العبدة","E11",32,{"$f":"IFERROR(VLOOKUP($A41&$B41,CHOOSE({1,2},ALL!$A$4:$A$500&ALL!$B$4:$B$500,ALL!$D$4:$D$500),2,FALSE),\"\")","v":0},null,null,null,null,null,null,null,null,null,null,null,null,null,null,null,null,null,null,null,null,null,null,null,null,null,null,null,null,null,null,null,null,0,32,0]
["بخعون","E12",5,{"$f":"IFERROR(VLOOKUP($A42&$B42,CHOOSE({1,2},ALL!$A$4:$A$500&ALL!$B$4:$B$500,ALL!$D$4:$D$500),2,FALSE),\"\")","v":0},null,null,null,null,null,null,null,null,null,null,null,null,null,null,null,null,null,null,null,null,null,null,null,null,null,null,null,null,null,null,null,null,0,5,0]
["بيت ملات","E13",17,{"$f":"IFERROR(VLOOKUP($A43&$B43,CHOOSE({1,2},ALL!$A$4:$A$500&ALL!$B$4:$B$500,ALL!$D$4:$D$500),2,FALSE),\"\")","v":0},null,null,null,null,null,null,null,null,null,null,null,null,null,null,null,null,null,null,null,null,null,null,null,null,null,null,null,null,null,null,null,null,0,17,0]
["المنية","E2",63,{"$f":"IFERROR(VLOOKUP($A44&$B44,CHOOSE({1,2},ALL!$A$4:$A$500&ALL!$B$4:$B$500,ALL!$D$4:$D$500),2,FALSE),\"\")","v":2},null,null,null,null,null,null,null,null,null,null,null,null,null,null,null,null,null,null,null,null,null,null,null,null,null,null,null,null,null,null,null,null,2,65,2]
["سير الضنية","E3",49,{"$f":"IFERROR(VLOOKUP($A45&$B45,CHOOSE({1,2},ALL!$A$4:$A$500&ALL!$B$4:$B$500,ALL!$D$4:$D$500),2,FALSE),\"\")","v":2},null,null,null,null,null,null,null,null,null,null,null,null,null,null,null,null,null,null,null,null,null,null,null,null,null,null,null,null,null,null,null,null,2,51,2]
["حلبا عكار","E4",71,{"$f":"IFERROR(VLOOKUP($A46&$B46,CHOOSE({1,2},ALL!$A$4:$A$500&ALL!$B$4:$B$500,ALL!$D$4:$D$500),2,FALSE),\"\")","v":0},null,null,null,null,null,null,null,null,null,null,null,null,null,null,null,null,null,null,null,null,null,null,null,null,null,null,null,null,null,null,null,null,0,71,0]
["القبيات","E5",41,{"$f":"IFERROR(VLOOKUP($A47&$B47,CHOOSE({1,2},ALL!$A$4:$A$500&ALL!$B$4:$B$500,ALL!$D$4:$D$500),2,FALSE),\"\")","v":0},null,null,null,null,null,null,null,null,null,null,null,null,null,null,null,null,null,null,null,null,null,null,null,null,null,null,null,null,null,null,null,null,0,41,0]
["البترون","E6",29,{"$f":"IFERROR(VLOOKUP($A48&$B48,CHOOSE({1,2},ALL!$A$4:$A$500&ALL!$B$4:$B$500,ALL!$D$4:$D$500),2,FALSE),\"\")","v":8},null,null,null,null,null,null,null,null,null,null,null,null,null,null,null,null,null,null,null,null,null,null,null,null,null,null,null,null,null,null,null,null,8,37,8]
["الكورة","E7",53,{"$f":"IFERROR(VLOOKUP($A49&$B49,CHOOSE({1,2},ALL!$A$4:$A$500&ALL!$B$4:$B$500,ALL!$D$4:$D$500),2,FALSE),\"\")","v":36},null,null,null,null,null,null,null,null,null,null,null,null,null,null,null,null,null,null,null,null,null,null,null,null,null,null,null,null,null,null,null,null,36,89,36]
["زغرتا","E8",77,{"$f":"IFERROR(VLOOKUP($A50&$B50,CHOOSE({1,2},ALL!$A$4:$A$500&ALL!$B$4:$B$500,ALL!$D$4:$D$500),2,FALSE),\"\")","v":2},null,null,null,null,null,null,null,null,null,null,null,null,null,null,null,null,null,null,null,null,null,null,null,null,null,null,null,null,null,null,null,null,2,79,2]
["بشري","E9",2,{"$f":"IFERROR(VLOOKUP($A51&$B51,CHOOSE({1,2},ALL!$A$4:$A$500&ALL!$B$4:$B$500,ALL!$D$4:$D$500),2,FALSE),\"\")","v":22},null,null,null,null,null,null,null,null,null,null,null,null,null,null,null,null,null,null,null,null,null,null,null,null,null,null,null,null,null,null,null,null,22,24,22]
["المجموع",null,{"$f":"SUM(C3:C51)","v":3291},{"$f":"SUM(D3:D51)","v":550},0,0,0,0,0,0,0,0,0,0,0,0,0,0,0,0,0,0,0,0,0,0,0,0,0,0,0,0,0,0,null,null,{"$f":"SUM(AK3:AK51)","v":550},{"$f":"SUM(AL3:AL51)","v":3841},{"$f":"SUM(AM3:AM51)","v":546}]

{"sheet":"MOG_OMT","index":2,"n_rows":52,"n_cols":39,"rows_kept":52,"cut":false,"hidden":false,"merged":[]}
[2020,"مغلفات OMT",null,{"$f":"ALL!C1","v":"2020-12-01"}]
["كانون اول","رمز","المنصرم",{"$f":"ALL!C2","v":"02/12/"},null,null,null,null,null,null,null,null,null,null,null,null,null,null,null,null,null,null,null,null,null,null,null,null,null,null,null,null,null,null,null,"مغلفات OMTمستلمة",null,"مغلفات OMTمستلمة + المنصرم","مغلفات OMT غير مسلمة "]
["بيروت","A",null,0,null,null,null,null,null,null,null,null,null,null,null,null,null,null,null,null,null,null,null,null,null,null,null,null,null,null,null,null,null,null,null,{"$f":"SUM(D3:AG3)","v":0},null,{"$f":"SUM(AJ3+C3)","v":0},0]
["بعبدا","B1",null,0,null,null,null,null,null,null,null,null,null,null,null,null,null,null,null,null,null,null,null,null,null,null,null,null,null,null,null,null,null,null,null,{"$f":"SUM(D4:AG4)","v":0},null,{"$f":"SUM(AJ4+C4)","v":0},0]
["بكفيا","B10",null,{"$f":"IFERROR(VLOOKUP($A5&$B5,CHOOSE({1,2},ALL!$A$4:$A$500&ALL!$B$4:$B$500,ALL!$E$4:$E$500),2,FALSE),\"\")","v":0},null,null,null,null,null,null,null,null,null,null,null,null,null,null,null,null,null,null,null,null,null,null,null,null,null,null,null,null,null,null,null,0,null,0,0]
["المتن الشمالي العالي","B11",null,0,null,null,null,null,null,null,null,null,null,null,null,null,null,null,null,null,null,null,null,null,null,null,null,null,null,null,null,null,null,null,null,0,null,0,0]
["كسروان ","B12",null,{"$f":"IFERROR(VLOOKUP($A7&$B7,CHOOSE({1,2},ALL!$A$4:$A$500&ALL!$B$4:$B$500,ALL!$E$4:$E$500),2,FALSE),\"\")","v":0},null,null,null,null,null,null,null,null,null,null,null,null,null,null,null,null,null,null,null,null,null,null,null,null,null,null,null,null,null,null,null,0,null,0,0]
["جبيل","B13",null,{"$f":"IFERROR(VLOOKUP($A8&$B8,CHOOSE({1,2},ALL!$A$4:$A$500&ALL!$B$4:$B$500,ALL!$E$4:$E$500),2,FALSE),\"\")","v":0},null,null,null,null,null,null,null,null,null,null,null,null,null,null,null,null,null,null,null,null,null,null,null,null,null,null,null,null,null,null,null,0,null,0,0]
["فتوح كسروان","B14",null,{"$f":"IFERROR(VLOOKUP($A9&$B9,CHOOSE({1,2},ALL!$A$4:$A$500&ALL!$B$4:$B$500,ALL!$E$4:$E$500),2,FALSE),\"\")","v":0},null,null,null,null,null,null,null,null,null,null,null,null,null,null,null,null,null,null,null,null,null,null,null,null,null,null,null,null,null,null,null,0,null,0,0]
["الشويفات","B2",null,{"$f":"IFERROR(VLOOKUP($A10&$B10,CHOOSE({1,2},ALL!$A$4:$A$500&ALL!$B$4:$B$500,ALL!$E$4:$E$500),2,FALSE),\"\")","v":0},null,null,null,null,null,null,null,null,null,null,null,null,null,null,null,null,null,null,null,null,null,null,null,null,null,null,null,null,null,null,null,0,null,0,0]
["برجا","B3",null,{"$f":"IFERROR(VLOOKUP($A11&$B11,CHOOSE({1,2},ALL!$A$4:$A$500&ALL!$B$4:$B$500,ALL!$E$4:$E$500),2,FALSE),\"\")","v":0},null,null,null,null,null,null,null,null,null,null,null,null,null,null,null,null,null,null,null,null,null,null,null,null,null,null,null,null,null,null,null,0,null,0,0]
["شحيم","B4",null,{"$f":"IFERROR(VLOOKUP($A12&$B12,CHOOSE({1,2},ALL!$A$4:$A$500&ALL!$B$4:$B$500,ALL!$E$4:$E$500),2,FALSE),\"\")","v":0},null,null,null,null,null,null,null,null,null,null,null,null,null,null,null,null,null,null,null,null,null,null,null,null,null,null,null,null,null,null,null,0,null,0,0]
["عاليه","B5",null,{"$f":"IFERROR(VLOOKUP($A13&$B13,CHOOSE({1,2},ALL!$A$4:$A$500&ALL!$B$4:$B$500,ALL!$E$4:$E$500),2,FALSE),\"\")","v":0},null,null,null,null,null,null,null,null,null,null,null,null,null,null,null,null,null,null,null,null,null,null,null,null,null,null,null,null,null,null,null,0,null,0,0]
["حمانا","B6",null,{"$f":"IFERROR(VLOOKUP($A14&$B14,CHOOSE({1,2},ALL!$A$4:$A$500&ALL!$B$4:$B$500,ALL!$E$4:$E$500),2,FALSE),\"\")","v":0},null,null,null,null,null,null,null,null,null,null,null,null,null,null,null,null,null,null,null,null,null,null,null,null,null,null,null,null,null,null,null,0,null,0,0]
["الشوف","B7",null,{"$f":"IFERROR(VLOOKUP($A15&$B15,CHOOSE({1,2},ALL!$A$4:$A$500&ALL!$B$4:$B$500,ALL!$E$4:$E$500),2,FALSE),\"\")","v":0},null,null,null,null,null,null,null,null,null,null,null,null,null,null,null,null,null,null,null,null,null,null,null,null,null,null,null,null,null,null,null,0,null,0,0]
["المتن ","B8",null,{"$f":"IFERROR(VLOOKUP($A16&$B16,CHOOSE({1,2},ALL!$A$4:$A$500&ALL!$B$4:$B$500,ALL!$E$4:$E$500),2,FALSE),\"\")","v":0},null,null,null,null,null,null,null,null,null,null,null,null,null,null,null,null,null,null,null,null,null,null,null,null,null,null,null,null,null,null,null,0,null,0,0]
["انطلياس","B9",null,{"$f":"IFERROR(VLOOKUP($A17&$B17,CHOOSE({1,2},ALL!$A$4:$A$500&ALL!$B$4:$B$500,ALL!$E$4:$E$500),2,FALSE),\"\")","v":0},null,null,null,null,null,null,null,null,null,null,null,null,null,null,null,null,null,null,null,null,null,null,null,null,null,null,null,null,null,null,null,0,null,0,0]
["صيدا","C1",null,{"$f":"IFERROR(VLOOKUP($A18&$B18,CHOOSE({1,2},ALL!$A$4:$A$500&ALL!$B$4:$B$500,ALL!$E$4:$E$500),2,FALSE),\"\")","v":0},null,null,null,null,null,null,null,null,null,null,null,null,null,null,null,null,null,null,null,null,null,null,null,null,null,null,null,null,null,null,null,0,null,0,0]
["جويا","C10",null,{"$f":"IFERROR(VLOOKUP($A19&$B19,CHOOSE({1,2},ALL!$A$4:$A$500&ALL!$B$4:$B$500,ALL!$E$4:$E$500),2,FALSE),\"\")","v":0},null,null,null,null,null,null,null,null,null,null,null,null,null,null,null,null,null,null,null,null,null,null,null,null,null,null,null,null,null,null,null,0,null,0,0]
["ميس الجبل","C11",null,{"$f":"IFERROR(VLOOKUP($A20&$B20,CHOOSE({1,2},ALL!$A$4:$A$500&ALL!$B$4:$B$500,ALL!$E$4:$E$500),2,FALSE),\"\")","v":0},null,null,null,null,null,null,null,null,null,null,null,null,null,null,null,null,null,null,null,null,null,null,null,null,null,null,null,null,null,null,null,0,null,0,0]
["صور","C2",null,{"$f":"IFERROR(VLOOKUP($A21&$B21,CHOOSE({1,2},ALL!$A$4:$A$500&ALL!$B$4:$B$500,ALL!$E$4:$E$500),2,FALSE),\"\")","v":0},null,null,null,null,null,null,null,null,null,null,null,null,null,null,null,null,null,null,null,null,null,null,null,null,null,null,null,null,null,null,null,0,null,0,0]
["جزين","C3",null,{"$f":"IFERROR(VLOOKUP($A22&$B22,CHOOSE({1,2},ALL!$A$4:$A$500&ALL!$B$4:$B$500,ALL!$E$4:$E$500),2,FALSE),\"\")","v":0},null,null,null,null,null,null,null,null,null,null,null,null,null,null,null,null,null,null,null,null,null,null,null,null,null,null,null,null,null,null,null,0,null,0,0]
["النبطية","C4",null,{"$f":"IFERROR(VLOOKUP($A23&$B23,CHOOSE({1,2},ALL!$A$4:$A$500&ALL!$B$4:$B$500,ALL!$E$4:$E$500),2,FALSE),\"\")","v":0},null,null,null,null,null,null,null,null,null,null,null,null,null,null,null,null,null,null,null,null,null,null,null,null,null,null,null,null,null,null,null,0,null,0,0]
["بنت جبيل","C5",null,{"$f":"IFERROR(VLOOKUP($A24&$B24,CHOOSE({1,2},ALL!$A$4:$A$500&ALL!$B$4:$B$500,ALL!$E$4:$E$500),2,FALSE),\"\")","v":0},null,null,null,null,null,null,null,null,null,null,null,null,null,null,null,null,null,null,null,null,null,null,null,null,null,null,null,null,null,null,null,0,null,0,0]
["مرجعيون","C6",null,{"$f":"IFERROR(VLOOKUP($A25&$B25,CHOOSE({1,2},ALL!$A$4:$A$500&ALL!$B$4:$B$500,ALL!$E$4:$E$500),2,FALSE),\"\")","v":0},null,null,null,null,null,null,null,null,null,null,null,null,null,null,null,null,null,null,null,null,null,null,null,null,null,null,null,null,null,null,null,0,null,0,0]
["حاصبيا","C7",null,{"$f":"IFERROR(VLOOKUP($A26&$B26,CHOOSE({1,2},ALL!$A$4:$A$500&ALL!$B$4:$B$500,ALL!$E$4:$E$500),2,FALSE),\"\")","v":0},null,null,null,null,null,null,null,null,null,null,null,null,null,null,null,null,null,null,null,null,null,null,null,null,null,null,null,null,null,null,null,0,null,0,0]
["تبنين","C8",null,{"$f":"IFERROR(VLOOKUP($A27&$B27,CHOOSE({1,2},ALL!$A$4:$A$500&ALL!$B$4:$B$500,ALL!$E$4:$E$500),2,FALSE),\"\")","v":0},null,null,null,null,null,null,null,null,null,null,null,null,null,null,null,null,null,null,null,null,null,null,null,null,null,null,null,null,null,null,null,0,null,0,0]
["جباع","C9",null,{"$f":"IFERROR(VLOOKUP($A28&$B28,CHOOSE({1,2},ALL!$A$4:$A$500&ALL!$B$4:$B$500,ALL!$E$4:$E$500),2,FALSE),\"\")","v":0},null,null,null,null,null,null,null,null,null,null,null,null,null,null,null,null,null,null,null,null,null,null,null,null,null,null,null,null,null,null,null,0,null,0,0]
["زحلة","D1",null,{"$f":"IFERROR(VLOOKUP($A29&$B29,CHOOSE({1,2},ALL!$A$4:$A$500&ALL!$B$4:$B$500,ALL!$E$4:$E$500),2,FALSE),\"\")","v":0},null,null,null,null,null,null,null,null,null,null,null,null,null,null,null,null,null,null,null,null,null,null,null,null,null,null,null,null,null,null,null,0,null,0,0]
["النبي شيت","D10",null,{"$f":"IFERROR(VLOOKUP($A30&$B30,CHOOSE({1,2},ALL!$A$4:$A$500&ALL!$B$4:$B$500,ALL!$E$4:$E$500),2,FALSE),\"\")","v":0},null,null,null,null,null,null,null,null,null,null,null,null,null,null,null,null,null,null,null,null,null,null,null,null,null,null,null,null,null,null,null,0,null,0,0]
["راشيا","D2",null,{"$f":"IFERROR(VLOOKUP($A31&$B31,CHOOSE({1,2},ALL!$A$4:$A$500&ALL!$B$4:$B$500,ALL!$E$4:$E$500),2,FALSE),\"\")","v":0},null,null,null,null,null,null,null,null,null,null,null,null,null,null,null,null,null,null,null,null,null,null,null,null,null,null,null,null,null,null,null,0,null,0,0]
["البقاع الغربي","D3",null,{"$f":"IFERROR(VLOOKUP($A32&$B32,CHOOSE({1,2},ALL!$A$4:$A$500&ALL!$B$4:$B$500,ALL!$E$4:$E$500),2,FALSE),\"\")","v":0},null,null,null,null,null,null,null,null,null,null,null,null,null,null,null,null,null,null,null,null,null,null,null,null,null,null,null,null,null,null,null,0,null,0,0]
["شمسطار","D4",null,{"$f":"IFERROR(VLOOKUP($A33&$B33,CHOOSE({1,2},ALL!$A$4:$A$500&ALL!$B$4:$B$500,ALL!$E$4:$E$500),2,FALSE),\"\")","v":0},null,null,null,null,null,null,null,null,null,null,null,null,null,null,null,null,null,null,null,null,null,null,null,null,null,null,null,null,null,null,null,0,null,0,0]
["بعلبك","D5",null,{"$f":"IFERROR(VLOOKUP($A34&$B34,CHOOSE({1,2},ALL!$A$4:$A$500&ALL!$B$4:$B$500,ALL!$E$4:$E$500),2,FALSE),\"\")","v":0},null,null,null,null,null,null,null,null,null,null,null,null,null,null,null,null,null,null,null,null,null,null,null,null,null,null,null,null,null,null,null,0,null,0,0]
["الهرمل","D6",null,{"$f":"IFERROR(VLOOKUP($A35&$B35,CHOOSE({1,2},ALL!$A$4:$A$500&ALL!$B$4:$B$500,ALL!$E$4:$E$500),2,FALSE),\"\")","v":0},null,null,null,null,null,null,null,null,null,null,null,null,null,null,null,null,null,null,null,null,null,null,null,null,null,null,null,null,null,null,null,0,null,0,0]
["دير الاحمر","D7",null,{"$f":"IFERROR(VLOOKUP($A36&$B36,CHOOSE({1,2},ALL!$A$4:$A$500&ALL!$B$4:$B$500,ALL!$E$4:$E$500),2,FALSE),\"\")","v":0},null,null,null,null,null,null,null,null,null,null,null,null,null,null,null,null,null,null,null,null,null,null,null,null,null,null,null,null,null,null,null,0,null,0,0]
["اللبوة","D8",null,{"$f":"IFERROR(VLOOKUP($A37&$B37,CHOOSE({1,2},ALL!$A$4:$A$500&ALL!$B$4:$B$500,ALL!$E$4:$E$500),2,FALSE),\"\")","v":0},null,null,null,null,null,null,null,null,null,null,null,null,null,null,null,null,null,null,null,null,null,null,null,null,null,null,null,null,null,null,null,0,null,0,0]
["صغبين","D9",null,{"$f":"IFERROR(VLOOKUP($A38&$B38,CHOOSE({1,2},ALL!$A$4:$A$500&ALL!$B$4:$B$500,ALL!$E$4:$E$500),2,FALSE),\"\")","v":0},null,null,null,null,null,null,null,null,null,null,null,null,null,null,null,null,null,null,null,null,null,null,null,null,null,null,null,null,null,null,null,0,null,0,0]
["طرابلس","E1",null,{"$f":"IFERROR(VLOOKUP($A39&$B39,CHOOSE({1,2},ALL!$A$4:$A$500&ALL!$B$4:$B$500,ALL!$E$4:$E$500),2,FALSE),\"\")","v":0},null,null,null,null,null,null,null,null,null,null,null,null,null,null,null,null,null,null,null,null,null,null,null,null,null,null,null,null,null,null,null,0,null,0,0]
["دوما","E10",null,{"$f":"IFERROR(VLOOKUP($A40&$B40,CHOOSE({1,2},ALL!$A$4:$A$500&ALL!$B$4:$B$500,ALL!$E$4:$E$500),2,FALSE),\"\")","v":0},null,null,null,null,null,null,null,null,null,null,null,null,null,null,null,null,null,null,null,null,null,null,null,null,null,null,null,null,null,null,null,0,null,0,0]
["العبدة","E11",null,{"$f":"IFERROR(VLOOKUP($A41&$B41,CHOOSE({1,2},ALL!$A$4:$A$500&ALL!$B$4:$B$500,ALL!$E$4:$E$500),2,FALSE),\"\")","v":0},null,null,null,null,null,null,null,null,null,null,null,null,null,null,null,null,null,null,null,null,null,null,null,null,null,null,null,null,null,null,null,0,null,0,0]
["بخعون","E12",null,{"$f":"IFERROR(VLOOKUP($A42&$B42,CHOOSE({1,2},ALL!$A$4:$A$500&ALL!$B$4:$B$500,ALL!$E$4:$E$500),2,FALSE),\"\")","v":0},null,null,null,null,null,null,null,null,null,null,null,null,null,null,null,null,null,null,null,null,null,null,null,null,null,null,null,null,null,null,null,0,null,0,0]
["بيت ملات","E13",null,{"$f":"IFERROR(VLOOKUP($A43&$B43,CHOOSE({1,2},ALL!$A$4:$A$500&ALL!$B$4:$B$500,ALL!$E$4:$E$500),2,FALSE),\"\")","v":0},null,null,null,null,null,null,null,null,null,null,null,null,null,null,null,null,null,null,null,null,null,null,null,null,null,null,null,null,null,null,null,0,null,0,0]
["المنية","E2",null,{"$f":"IFERROR(VLOOKUP($A44&$B44,CHOOSE({1,2},ALL!$A$4:$A$500&ALL!$B$4:$B$500,ALL!$E$4:$E$500),2,FALSE),\"\")","v":0},null,null,null,null,null,null,null,null,null,null,null,null,null,null,null,null,null,null,null,null,null,null,null,null,null,null,null,null,null,null,null,0,null,0,0]
["سير الضنية","E3",null,{"$f":"IFERROR(VLOOKUP($A45&$B45,CHOOSE({1,2},ALL!$A$4:$A$500&ALL!$B$4:$B$500,ALL!$E$4:$E$500),2,FALSE),\"\")","v":0},null,null,null,null,null,null,null,null,null,null,null,null,null,null,null,null,null,null,null,null,null,null,null,null,null,null,null,null,null,null,null,0,null,0,0]
["حلبا عكار","E4",null,{"$f":"IFERROR(VLOOKUP($A46&$B46,CHOOSE({1,2},ALL!$A$4:$A$500&ALL!$B$4:$B$500,ALL!$E$4:$E$500),2,FALSE),\"\")","v":0},null,null,null,null,null,null,null,null,null,null,null,null,null,null,null,null,null,null,null,null,null,null,null,null,null,null,null,null,null,null,null,0,null,0,0]
["القبيات","E5",null,{"$f":"IFERROR(VLOOKUP($A47&$B47,CHOOSE({1,2},ALL!$A$4:$A$500&ALL!$B$4:$B$500,ALL!$E$4:$E$500),2,FALSE),\"\")","v":0},null,null,null,null,null,null,null,null,null,null,null,null,null,null,null,null,null,null,null,null,null,null,null,null,null,null,null,null,null,null,null,0,null,0,0]
["البترون","E6",null,{"$f":"IFERROR(VLOOKUP($A48&$B48,CHOOSE({1,2},ALL!$A$4:$A$500&ALL!$B$4:$B$500,ALL!$E$4:$E$500),2,FALSE),\"\")","v":0},null,null,null,null,null,null,null,null,null,null,null,null,null,null,null,null,null,null,null,null,null,null,null,null,null,null,null,null,null,null,null,0,null,0,0]
["الكورة","E7",null,0,null,null,null,null,null,null,null,null,null,null,null,null,null,null,null,null,null,null,null,null,null,null,null,null,null,null,null,null,null,null,null,0,null,0,0]
["زغرتا","E8",null,{"$f":"IFERROR(VLOOKUP($A50&$B50,CHOOSE({1,2},ALL!$A$4:$A$500&ALL!$B$4:$B$500,ALL!$E$4:$E$500),2,FALSE),\"\")","v":0},null,null,null,null,null,null,null,null,null,null,null,null,null,null,null,null,null,null,null,null,null,null,null,null,null,null,null,null,null,null,null,0,null,0,0]
["بشري","E9",null,0,null,null,null,null,null,null,null,null,null,null,null,null,null,null,null,null,null,null,null,null,null,null,null,null,null,null,null,null,null,null,null,0,null,0,0]
["المجموع",null,{"$f":"SUM(C3:C51)","v":0},0,0,0,0,0,0,0,0,{"$f":"SUM(L3:L51)","v":0},0,0,0,0,0,0,0,0,0,0,0,0,0,0,0,0,0,0,0,0,0,null,null,{"$f":"SUM(AJ3:AJ50)","v":0},null,{"$f":"SUM(AL3:AL51)","v":0},91]

{"sheet":"HA_OMT","index":3,"n_rows":52,"n_cols":39,"rows_kept":52,"cut":false,"hidden":false,"merged":[]}
[2020,"هويات OMT",null,{"$f":"ALL!C1","v":"2020-12-01"}]
["كانون اول","رمز","المنصرم",{"$f":"ALL!C2","v":"02/12/"},null,null,null,null,null,null,null,null,null,null,null,null,null,null,null,null,null,null,null,null,null,null,null,null,null,null,null,null,null,null,null,"هويات مستلمة",null,"هويات OMT مستلمة + المنصرم","هويات OMT غير مسلمة "]
["بيروت","A",null,0,null,null,null,null,null,null,null,null,null,null,null,null,null,null,null,null,null,null,null,null,null,null,null,null,null,null,null,null,null,null,null,{"$f":"SUM(C3:AG3)","v":0},null,{"$f":"SUM(AJ3+C3)","v":0},0]
["بعبدا","B1",null,0,null,null,null,null,null,null,null,null,null,null,null,null,null,null,null,null,null,null,null,null,null,null,null,null,null,null,null,null,null,null,null,{"$f":"SUM(C4:AG4)","v":0},null,{"$f":"SUM(AJ4+C4)","v":0},0]
["بكفيا","B10",null,0,null,null,null,null,null,null,null,null,null,null,null,null,null,null,null,null,null,null,null,null,null,null,null,null,null,null,null,null,null,null,null,0,null,0,0]
["المتن الشمالي العالي","B11",null,0,null,null,null,null,null,null,null,null,null,null,null,null,null,null,null,null,null,null,null,null,null,null,null,null,null,null,null,null,null,null,null,0,null,0,0]
["كسروان ","B12",null,{"$f":"IFERROR(VLOOKUP($A7&$B7,CHOOSE({1,2},ALL!$A$4:$A$500&ALL!$B$4:$B$500,ALL!$F$4:$F$500),2,FALSE),\"\")","v":0},null,null,null,null,null,null,null,null,null,null,null,null,null,null,null,null,null,null,null,null,null,null,null,null,null,null,null,null,null,null,null,0,null,0,0]
["جبيل","B13",null,{"$f":"IFERROR(VLOOKUP($A8&$B8,CHOOSE({1,2},ALL!$A$4:$A$500&ALL!$B$4:$B$500,ALL!$F$4:$F$500),2,FALSE),\"\")","v":0},null,null,null,null,null,null,null,null,null,null,null,null,null,null,null,null,null,null,null,null,null,null,null,null,null,null,null,null,null,null,null,0,null,0,0]
["فتوح كسروان","B14",null,{"$f":"IFERROR(VLOOKUP($A9&$B9,CHOOSE({1,2},ALL!$A$4:$A$500&ALL!$B$4:$B$500,ALL!$F$4:$F$500),2,FALSE),\"\")","v":0},null,null,null,null,null,null,null,null,null,null,null,null,null,null,null,null,null,null,null,null,null,null,null,null,null,null,null,null,null,null,null,0,null,0,0]
["الشويفات","B2",null,{"$f":"IFERROR(VLOOKUP($A10&$B10,CHOOSE({1,2},ALL!$A$4:$A$500&ALL!$B$4:$B$500,ALL!$F$4:$F$500),2,FALSE),\"\")","v":0},null,null,null,null,null,null,null,null,null,null,null,null,null,null,null,null,null,null,null,null,null,null,null,null,null,null,null,null,null,null,null,0,null,0,0]
["برجا","B3",null,{"$f":"IFERROR(VLOOKUP($A11&$B11,CHOOSE({1,2},ALL!$A$4:$A$500&ALL!$B$4:$B$500,ALL!$F$4:$F$500),2,FALSE),\"\")","v":0},null,null,null,null,null,null,null,null,null,null,null,null,null,null,null,null,null,null,null,null,null,null,null,null,null,null,null,null,null,null,null,0,null,0,0]
["شحيم","B4",null,{"$f":"IFERROR(VLOOKUP($A12&$B12,CHOOSE({1,2},ALL!$A$4:$A$500&ALL!$B$4:$B$500,ALL!$F$4:$F$500),2,FALSE),\"\")","v":0},null,null,null,null,null,null,null,null,null,null,null,null,null,null,null,null,null,null,null,null,null,null,null,null,null,null,null,null,null,null,null,0,null,0,0]
["عاليه","B5",null,{"$f":"IFERROR(VLOOKUP($A13&$B13,CHOOSE({1,2},ALL!$A$4:$A$500&ALL!$B$4:$B$500,ALL!$F$4:$F$500),2,FALSE),\"\")","v":0},null,null,null,null,null,null,null,null,null,null,null,null,null,null,null,null,null,null,null,null,null,null,null,null,null,null,null,null,null,null,null,0,null,0,0]
["حمانا","B6",null,{"$f":"IFERROR(VLOOKUP($A14&$B14,CHOOSE({1,2},ALL!$A$4:$A$500&ALL!$B$4:$B$500,ALL!$F$4:$F$500),2,FALSE),\"\")","v":0},null,null,null,null,null,null,null,null,null,null,null,null,null,null,null,null,null,null,null,null,null,null,null,null,null,null,null,null,null,null,null,0,null,0,0]
["الشوف","B7",null,{"$f":"IFERROR(VLOOKUP($A15&$B15,CHOOSE({1,2},ALL!$A$4:$A$500&ALL!$B$4:$B$500,ALL!$F$4:$F$500),2,FALSE),\"\")","v":0},null,null,null,null,null,null,null,null,null,null,null,null,null,null,null,null,null,null,null,null,null,null,null,null,null,null,null,null,null,null,null,0,null,0,0]
["المتن ","B8",null,{"$f":"IFERROR(VLOOKUP($A16&$B16,CHOOSE({1,2},ALL!$A$4:$A$500&ALL!$B$4:$B$500,ALL!$F$4:$F$500),2,FALSE),\"\")","v":0},null,null,null,null,null,null,null,null,null,null,null,null,null,null,null,null,null,null,null,null,null,null,null,null,null,null,null,null,null,null,null,0,null,0,0]
["انطلياس","B9",null,{"$f":"IFERROR(VLOOKUP($A17&$B17,CHOOSE({1,2},ALL!$A$4:$A$500&ALL!$B$4:$B$500,ALL!$F$4:$F$500),2,FALSE),\"\")","v":0},null,null,null,null,null,null,null,null,null,null,null,null,null,null,null,null,null,null,null,null,null,null,null,null,null,null,null,null,null,null,null,0,null,0,0]
["صيدا","C1",null,{"$f":"IFERROR(VLOOKUP($A18&$B18,CHOOSE({1,2},ALL!$A$4:$A$500&ALL!$B$4:$B$500,ALL!$F$4:$F$500),2,FALSE),\"\")","v":0},null,null,null,null,null,null,null,null,null,null,null,null,null,null,null,null,null,null,null,null,null,null,null,null,null,null,null,null,null,null,null,0,null,0,0]
["جويا","C10",null,{"$f":"IFERROR(VLOOKUP($A19&$B19,CHOOSE({1,2},ALL!$A$4:$A$500&ALL!$B$4:$B$500,ALL!$F$4:$F$500),2,FALSE),\"\")","v":0},null,null,null,null,null,null,null,null,null,null,null,null,null,null,null,null,null,null,null,null,null,null,null,null,null,null,null,null,null,null,null,0,null,0,0]
["ميس الجبل","C11",null,{"$f":"IFERROR(VLOOKUP($A20&$B20,CHOOSE({1,2},ALL!$A$4:$A$500&ALL!$B$4:$B$500,ALL!$F$4:$F$500),2,FALSE),\"\")","v":0},null,null,null,null,null,null,null,null,null,null,null,null,null,null,null,null,null,null,null,null,null,null,null,null,null,null,null,null,null,null,null,0,null,0,0]
["صور","C2",null,{"$f":"IFERROR(VLOOKUP($A21&$B21,CHOOSE({1,2},ALL!$A$4:$A$500&ALL!$B$4:$B$500,ALL!$F$4:$F$500),2,FALSE),\"\")","v":0},null,null,null,null,null,null,null,null,null,null,null,null,null,null,null,null,null,null,null,null,null,null,null,null,null,null,null,null,null,null,null,0,null,0,0]
["جزين","C3",null,{"$f":"IFERROR(VLOOKUP($A22&$B22,CHOOSE({1,2},ALL!$A$4:$A$500&ALL!$B$4:$B$500,ALL!$F$4:$F$500),2,FALSE),\"\")","v":0},null,null,null,null,null,null,null,null,null,null,null,null,null,null,null,null,null,null,null,null,null,null,null,null,null,null,null,null,null,null,null,0,null,0,0]
["النبطية","C4",null,{"$f":"IFERROR(VLOOKUP($A23&$B23,CHOOSE({1,2},ALL!$A$4:$A$500&ALL!$B$4:$B$500,ALL!$F$4:$F$500),2,FALSE),\"\")","v":0},null,null,null,null,null,null,null,null,null,null,null,null,null,null,null,null,null,null,null,null,null,null,null,null,null,null,null,null,null,null,null,0,null,0,0]
["بنت جبيل","C5",null,{"$f":"IFERROR(VLOOKUP($A24&$B24,CHOOSE({1,2},ALL!$A$4:$A$500&ALL!$B$4:$B$500,ALL!$F$4:$F$500),2,FALSE),\"\")","v":0},null,null,null,null,null,null,null,null,null,null,null,null,null,null,null,null,null,null,null,null,null,null,null,null,null,null,null,null,null,null,null,0,null,0,0]
["مرجعيون","C6",null,{"$f":"IFERROR(VLOOKUP($A25&$B25,CHOOSE({1,2},ALL!$A$4:$A$500&ALL!$B$4:$B$500,ALL!$F$4:$F$500),2,FALSE),\"\")","v":0},null,null,null,null,null,null,null,null,null,null,null,null,null,null,null,null,null,null,null,null,null,null,null,null,null,null,null,null,null,null,null,0,null,0,0]
["حاصبيا","C7",null,{"$f":"IFERROR(VLOOKUP($A26&$B26,CHOOSE({1,2},ALL!$A$4:$A$500&ALL!$B$4:$B$500,ALL!$F$4:$F$500),2,FALSE),\"\")","v":0},null,null,null,null,null,null,null,null,null,null,null,null,null,null,null,null,null,null,null,null,null,null,null,null,null,null,null,null,null,null,null,0,null,0,0]
["تبنين","C8",null,{"$f":"IFERROR(VLOOKUP($A27&$B27,CHOOSE({1,2},ALL!$A$4:$A$500&ALL!$B$4:$B$500,ALL!$F$4:$F$500),2,FALSE),\"\")","v":0},null,null,null,null,null,null,null,null,null,null,null,null,null,null,null,null,null,null,null,null,null,null,null,null,null,null,null,null,null,null,null,0,null,0,0]
["جباع","C9",null,{"$f":"IFERROR(VLOOKUP($A28&$B28,CHOOSE({1,2},ALL!$A$4:$A$500&ALL!$B$4:$B$500,ALL!$F$4:$F$500),2,FALSE),\"\")","v":0},null,null,null,null,null,null,null,null,null,null,null,null,null,null,null,null,null,null,null,null,null,null,null,null,null,null,null,null,null,null,null,0,null,0,0]
["زحلة","D1",null,{"$f":"IFERROR(VLOOKUP($A29&$B29,CHOOSE({1,2},ALL!$A$4:$A$500&ALL!$B$4:$B$500,ALL!$F$4:$F$500),2,FALSE),\"\")","v":0},null,null,null,null,null,null,null,null,null,null,null,null,null,null,null,null,null,null,null,null,null,null,null,null,null,null,null,null,null,null,null,0,null,0,0]
["النبي شيت","D10",null,{"$f":"IFERROR(VLOOKUP($A30&$B30,CHOOSE({1,2},ALL!$A$4:$A$500&ALL!$B$4:$B$500,ALL!$F$4:$F$500),2,FALSE),\"\")","v":0},null,null,null,null,null,null,null,null,null,null,null,null,null,null,null,null,null,null,null,null,null,null,null,null,null,null,null,null,null,null,null,0,null,0,0]
["راشيا","D2",null,{"$f":"IFERROR(VLOOKUP($A31&$B31,CHOOSE({1,2},ALL!$A$4:$A$500&ALL!$B$4:$B$500,ALL!$F$4:$F$500),2,FALSE),\"\")","v":0},null,null,null,null,null,null,null,null,null,null,null,null,null,null,null,null,null,null,null,null,null,null,null,null,null,null,null,null,null,null,null,0,null,0,0]
["البقاع الغربي","D3",null,{"$f":"IFERROR(VLOOKUP($A32&$B32,CHOOSE({1,2},ALL!$A$4:$A$500&ALL!$B$4:$B$500,ALL!$F$4:$F$500),2,FALSE),\"\")","v":0},null,null,null,null,null,null,null,null,null,null,null,null,null,null,null,null,null,null,null,null,null,null,null,null,null,null,null,null,null,null,null,0,null,0,0]
["شمسطار","D4",null,{"$f":"IFERROR(VLOOKUP($A33&$B33,CHOOSE({1,2},ALL!$A$4:$A$500&ALL!$B$4:$B$500,ALL!$F$4:$F$500),2,FALSE),\"\")","v":0},null,null,null,null,null,null,null,null,null,null,null,null,null,null,null,null,null,null,null,null,null,null,null,null,null,null,null,null,null,null,null,0,null,0,0]
["بعلبك","D5",null,{"$f":"IFERROR(VLOOKUP($A34&$B34,CHOOSE({1,2},ALL!$A$4:$A$500&ALL!$B$4:$B$500,ALL!$F$4:$F$500),2,FALSE),\"\")","v":0},null,null,null,null,null,null,null,null,null,null,null,null,null,null,null,null,null,null,null,null,null,null,null,null,null,null,null,null,null,null,null,0,null,0,0]
["الهرمل","D6",null,{"$f":"IFERROR(VLOOKUP($A35&$B35,CHOOSE({1,2},ALL!$A$4:$A$500&ALL!$B$4:$B$500,ALL!$F$4:$F$500),2,FALSE),\"\")","v":0},null,null,null,null,null,null,null,null,null,null,null,null,null,null,null,null,null,null,null,null,null,null,null,null,null,null,null,null,null,null,null,0,null,0,0]
["دير الاحمر","D7",null,{"$f":"IFERROR(VLOOKUP($A36&$B36,CHOOSE({1,2},ALL!$A$4:$A$500&ALL!$B$4:$B$500,ALL!$F$4:$F$500),2,FALSE),\"\")","v":0},null,null,null,null,null,null,null,null,null,null,null,null,null,null,null,null,null,null,null,null,null,null,null,null,null,null,null,null,null,null,null,0,null,0,0]
["اللبوة","D8",null,{"$f":"IFERROR(VLOOKUP($A37&$B37,CHOOSE({1,2},ALL!$A$4:$A$500&ALL!$B$4:$B$500,ALL!$F$4:$F$500),2,FALSE),\"\")","v":0},null,null,null,null,null,null,null,null,null,null,null,null,null,null,null,null,null,null,null,null,null,null,null,null,null,null,null,null,null,null,null,0,null,0,0]
["صغبين","D9",null,{"$f":"IFERROR(VLOOKUP($A38&$B38,CHOOSE({1,2},ALL!$A$4:$A$500&ALL!$B$4:$B$500,ALL!$F$4:$F$500),2,FALSE),\"\")","v":0},null,null,null,null,null,null,null,null,null,null,null,null,null,null,null,null,null,null,null,null,null,null,null,null,null,null,null,null,null,null,null,0,null,0,0]
["طرابلس","E1",null,{"$f":"IFERROR(VLOOKUP($A39&$B39,CHOOSE({1,2},ALL!$A$4:$A$500&ALL!$B$4:$B$500,ALL!$F$4:$F$500),2,FALSE),\"\")","v":0},null,null,null,null,null,null,null,null,null,null,null,null,null,null,null,null,null,null,null,null,null,null,null,null,null,null,null,null,null,null,null,0,null,0,0]
["دوما","E10",null,{"$f":"IFERROR(VLOOKUP($A40&$B40,CHOOSE({1,2},ALL!$A$4:$A$500&ALL!$B$4:$B$500,ALL!$F$4:$F$500),2,FALSE),\"\")","v":0},null,null,null,null,null,null,null,null,null,null,null,null,null,null,null,null,null,null,null,null,null,null,null,null,null,null,null,null,null,null,null,0,null,0,0]
["العبدة","E11",null,{"$f":"IFERROR(VLOOKUP($A41&$B41,CHOOSE({1,2},ALL!$A$4:$A$500&ALL!$B$4:$B$500,ALL!$F$4:$F$500),2,FALSE),\"\")","v":0},null,null,null,null,null,null,null,null,null,null,null,null,null,null,null,null,null,null,null,null,null,null,null,null,null,null,null,null,null,null,null,0,null,0,0]
["بخعون","E12",null,{"$f":"IFERROR(VLOOKUP($A42&$B42,CHOOSE({1,2},ALL!$A$4:$A$500&ALL!$B$4:$B$500,ALL!$F$4:$F$500),2,FALSE),\"\")","v":0},null,null,null,null,null,null,null,null,null,null,null,null,null,null,null,null,null,null,null,null,null,null,null,null,null,null,null,null,null,null,null,0,null,0,0]
["بيت ملات","E13",null,{"$f":"IFERROR(VLOOKUP($A43&$B43,CHOOSE({1,2},ALL!$A$4:$A$500&ALL!$B$4:$B$500,ALL!$F$4:$F$500),2,FALSE),\"\")","v":0},null,null,null,null,null,null,null,null,null,null,null,null,null,null,null,null,null,null,null,null,null,null,null,null,null,null,null,null,null,null,null,0,null,0,0]
["المنية","E2",null,{"$f":"IFERROR(VLOOKUP($A44&$B44,CHOOSE({1,2},ALL!$A$4:$A$500&ALL!$B$4:$B$500,ALL!$F$4:$F$500),2,FALSE),\"\")","v":0},null,null,null,null,null,null,null,null,null,null,null,null,null,null,null,null,null,null,null,null,null,null,null,null,null,null,null,null,null,null,null,0,null,0,0]
["سير الضنية","E3",null,{"$f":"IFERROR(VLOOKUP($A45&$B45,CHOOSE({1,2},ALL!$A$4:$A$500&ALL!$B$4:$B$500,ALL!$F$4:$F$500),2,FALSE),\"\")","v":0},null,null,null,null,null,null,null,null,null,null,null,null,null,null,null,null,null,null,null,null,null,null,null,null,null,null,null,null,null,null,null,0,null,0,0]
["حلبا عكار","E4",null,{"$f":"IFERROR(VLOOKUP($A46&$B46,CHOOSE({1,2},ALL!$A$4:$A$500&ALL!$B$4:$B$500,ALL!$F$4:$F$500),2,FALSE),\"\")","v":0},null,null,null,null,null,null,null,null,null,null,null,null,null,null,null,null,null,null,null,null,null,null,null,null,null,null,null,null,null,null,null,0,null,0,0]
["القبيات","E5",null,{"$f":"IFERROR(VLOOKUP($A47&$B47,CHOOSE({1,2},ALL!$A$4:$A$500&ALL!$B$4:$B$500,ALL!$F$4:$F$500),2,FALSE),\"\")","v":0},null,null,null,null,null,null,null,null,null,null,null,null,null,null,null,null,null,null,null,null,null,null,null,null,null,null,null,null,null,null,null,0,null,0,0]
["البترون","E6",null,{"$f":"IFERROR(VLOOKUP($A48&$B48,CHOOSE({1,2},ALL!$A$4:$A$500&ALL!$B$4:$B$500,ALL!$F$4:$F$500),2,FALSE),\"\")","v":0},null,null,null,null,null,null,null,null,null,null,null,null,null,null,null,null,null,null,null,null,null,null,null,null,null,null,null,null,null,null,null,0,null,0,0]
["الكورة","E7",null,0,null,null,null,null,null,null,null,null,null,null,null,null,null,null,null,null,null,null,null,null,null,null,null,null,null,null,null,null,null,null,null,0,null,0,0]
["زغرتا","E8",null,0,null,null,null,null,null,null,null,null,null,null,null,null,null,null,null,null,null,null,null,null,null,null,null,null,null,null,null,null,null,null,null,0,null,0,0]
["بشري","E9",null,{"$f":"IFERROR(VLOOKUP($A51&$B51,CHOOSE({1,2},ALL!$A$4:$A$500&ALL!$B$4:$B$500,ALL!$F$4:$F$500),2,FALSE),\"\")","v":0},null,null,null,null,null,null,null,null,null,null,null,null,null,null,null,null,null,null,null,null,null,null,null,null,null,null,null,null,null,null,null,0,null,0,0]
["المجموع",null,{"$f":"SUM(C3:C51)","v":0},{"$f":"SUM(D3:D51)","v":0},0,0,0,0,0,0,0,0,0,0,0,0,0,0,0,0,0,0,0,0,0,0,0,0,0,0,0,0,0,null,null,{"$f":"SUM(AJ3:AJ50)","v":0},null,{"$f":"SUM(AL3:AL51)","v":0},{"$f":"SUM(AM3:AM51)","v":0}]

{"sheet":"JARD_MOG","index":4,"n_rows":52,"n_cols":6,"rows_kept":52,"cut":false,"hidden":false,"merged":[[0,1,0,5]]}
[null,"جدول بعدد المغلفات المستلمة من المشغل  والمسلمة الى اقلام النفوس والتي هي قيد التسليم من 2020/12/1 لغــاية 2020/12/31"]
["قلم النفوس","رمز","المجموع العام لغاية2020/12/31 ","مغلفات  الشهر المنصرم","مغلفات المسلمة لغاية 2020/12/31","مغلفات  قيد التسليم"]
["بيروت","A",{"$f":"IFERROR(VLOOKUP($A3&$B3,CHOOSE({1,2},MOG!$A$3:$A$500&MOG!$B$3:$B$500,MOG!$AK$3:$AK$500),2,FALSE),\"\")","v":4},11,{"$f":"SUM((D3+C3)-F3)","v":15},{"$f":"IFERROR(VLOOKUP($A3&$B3,CHOOSE({1,2},MOG!$A$3:$A$500&MOG!$B$3:$B$500,MOG!$AM$3:$AM$500),2,FALSE),\"\")","v":0}]
["بعبدا","B1",{"$f":"IFERROR(VLOOKUP($A4&$B4,CHOOSE({1,2},MOG!$A$3:$A$500&MOG!$B$3:$B$500,MOG!$AK$3:$AK$500),2,FALSE),\"\")","v":3},0,{"$f":"SUM((D4+C4)-F4)","v":0},{"$f":"IFERROR(VLOOKUP($A4&$B4,CHOOSE({1,2},MOG!$A$3:$A$500&MOG!$B$3:$B$500,MOG!$AM$3:$AM$500),2,FALSE),\"\")","v":3}]
["بكفيا","B10",{"$f":"IFERROR(VLOOKUP($A5&$B5,CHOOSE({1,2},MOG!$A$3:$A$500&MOG!$B$3:$B$500,MOG!$AK$3:$AK$500),2,FALSE),\"\")","v":4},11,11,{"$f":"IFERROR(VLOOKUP($A5&$B5,CHOOSE({1,2},MOG!$A$3:$A$500&MOG!$B$3:$B$500,MOG!$AM$3:$AM$500),2,FALSE),\"\")","v":4}]
["المتن الشمالي العالي","B11",{"$f":"IFERROR(VLOOKUP($A6&$B6,CHOOSE({1,2},MOG!$A$3:$A$500&MOG!$B$3:$B$500,MOG!$AK$3:$AK$500),2,FALSE),\"\")","v":5},7,7,{"$f":"IFERROR(VLOOKUP($A6&$B6,CHOOSE({1,2},MOG!$A$3:$A$500&MOG!$B$3:$B$500,MOG!$AM$3:$AM$500),2,FALSE),\"\")","v":5}]
["كسروان ","B12",{"$f":"IFERROR(VLOOKUP($A7&$B7,CHOOSE({1,2},MOG!$A$3:$A$500&MOG!$B$3:$B$500,MOG!$AK$3:$AK$500),2,FALSE),\"\")","v":12},30,30,{"$f":"IFERROR(VLOOKUP($A7&$B7,CHOOSE({1,2},MOG!$A$3:$A$500&MOG!$B$3:$B$500,MOG!$AM$3:$AM$500),2,FALSE),\"\")","v":12}]
["جبيل","B13",{"$f":"IFERROR(VLOOKUP($A8&$B8,CHOOSE({1,2},MOG!$A$3:$A$500&MOG!$B$3:$B$500,MOG!$AK$3:$AK$500),2,FALSE),\"\")","v":0},12,12,{"$f":"IFERROR(VLOOKUP($A8&$B8,CHOOSE({1,2},MOG!$A$3:$A$500&MOG!$B$3:$B$500,MOG!$AM$3:$AM$500),2,FALSE),\"\")","v":0}]
["فتوح كسروان","B14",{"$f":"IFERROR(VLOOKUP($A9&$B9,CHOOSE({1,2},MOG!$A$3:$A$500&MOG!$B$3:$B$500,MOG!$AK$3:$AK$500),2,FALSE),\"\")","v":4},13,13,{"$f":"IFERROR(VLOOKUP($A9&$B9,CHOOSE({1,2},MOG!$A$3:$A$500&MOG!$B$3:$B$500,MOG!$AM$3:$AM$500),2,FALSE),\"\")","v":4}]
["الشويفات","B2",{"$f":"IFERROR(VLOOKUP($A10&$B10,CHOOSE({1,2},MOG!$A$3:$A$500&MOG!$B$3:$B$500,MOG!$AK$3:$AK$500),2,FALSE),\"\")","v":8},26,26,{"$f":"IFERROR(VLOOKUP($A10&$B10,CHOOSE({1,2},MOG!$A$3:$A$500&MOG!$B$3:$B$500,MOG!$AM$3:$AM$500),2,FALSE),\"\")","v":8}]
["برجا","B3",{"$f":"IFERROR(VLOOKUP($A11&$B11,CHOOSE({1,2},MOG!$A$3:$A$500&MOG!$B$3:$B$500,MOG!$AK$3:$AK$500),2,FALSE),\"\")","v":0},16,16,{"$f":"IFERROR(VLOOKUP($A11&$B11,CHOOSE({1,2},MOG!$A$3:$A$500&MOG!$B$3:$B$500,MOG!$AM$3:$AM$500),2,FALSE),\"\")","v":0}]
["شحيم","B4",{"$f":"IFERROR(VLOOKUP($A12&$B12,CHOOSE({1,2},MOG!$A$3:$A$500&MOG!$B$3:$B$500,MOG!$AK$3:$AK$500),2,FALSE),\"\")","v":0},2,2,{"$f":"IFERROR(VLOOKUP($A12&$B12,CHOOSE({1,2},MOG!$A$3:$A$500&MOG!$B$3:$B$500,MOG!$AM$3:$AM$500),2,FALSE),\"\")","v":0}]
["عاليه","B5",{"$f":"IFERROR(VLOOKUP($A13&$B13,CHOOSE({1,2},MOG!$A$3:$A$500&MOG!$B$3:$B$500,MOG!$AK$3:$AK$500),2,FALSE),\"\")","v":5},26,26,{"$f":"IFERROR(VLOOKUP($A13&$B13,CHOOSE({1,2},MOG!$A$3:$A$500&MOG!$B$3:$B$500,MOG!$AM$3:$AM$500),2,FALSE),\"\")","v":5}]
["حمانا","B6",{"$f":"IFERROR(VLOOKUP($A14&$B14,CHOOSE({1,2},MOG!$A$3:$A$500&MOG!$B$3:$B$500,MOG!$AK$3:$AK$500),2,FALSE),\"\")","v":0},11,11,{"$f":"IFERROR(VLOOKUP($A14&$B14,CHOOSE({1,2},MOG!$A$3:$A$500&MOG!$B$3:$B$500,MOG!$AM$3:$AM$500),2,FALSE),\"\")","v":0}]
["الشوف","B7",{"$f":"IFERROR(VLOOKUP($A15&$B15,CHOOSE({1,2},MOG!$A$3:$A$500&MOG!$B$3:$B$500,MOG!$AK$3:$AK$500),2,FALSE),\"\")","v":1},13,13,{"$f":"IFERROR(VLOOKUP($A15&$B15,CHOOSE({1,2},MOG!$A$3:$A$500&MOG!$B$3:$B$500,MOG!$AM$3:$AM$500),2,FALSE),\"\")","v":1}]
["المتن ","B8",{"$f":"IFERROR(VLOOKUP($A16&$B16,CHOOSE({1,2},MOG!$A$3:$A$500&MOG!$B$3:$B$500,MOG!$AK$3:$AK$500),2,FALSE),\"\")","v":6},22,22,{"$f":"IFERROR(VLOOKUP($A16&$B16,CHOOSE({1,2},MOG!$A$3:$A$500&MOG!$B$3:$B$500,MOG!$AM$3:$AM$500),2,FALSE),\"\")","v":6}]
["انطلياس","B9",{"$f":"IFERROR(VLOOKUP($A17&$B17,CHOOSE({1,2},MOG!$A$3:$A$500&MOG!$B$3:$B$500,MOG!$AK$3:$AK$500),2,FALSE),\"\")","v":7},8,8,{"$f":"IFERROR(VLOOKUP($A17&$B17,CHOOSE({1,2},MOG!$A$3:$A$500&MOG!$B$3:$B$500,MOG!$AM$3:$AM$500),2,FALSE),\"\")","v":7}]
["صيدا","C1",{"$f":"IFERROR(VLOOKUP($A18&$B18,CHOOSE({1,2},MOG!$A$3:$A$500&MOG!$B$3:$B$500,MOG!$AK$3:$AK$500),2,FALSE),\"\")","v":0},9,9,{"$f":"IFERROR(VLOOKUP($A18&$B18,CHOOSE({1,2},MOG!$A$3:$A$500&MOG!$B$3:$B$500,MOG!$AM$3:$AM$500),2,FALSE),\"\")","v":0}]
["جويا","C10",{"$f":"IFERROR(VLOOKUP($A19&$B19,CHOOSE({1,2},MOG!$A$3:$A$500&MOG!$B$3:$B$500,MOG!$AK$3:$AK$500),2,FALSE),\"\")","v":0},21,21,{"$f":"IFERROR(VLOOKUP($A19&$B19,CHOOSE({1,2},MOG!$A$3:$A$500&MOG!$B$3:$B$500,MOG!$AM$3:$AM$500),2,FALSE),\"\")","v":0}]
["ميس الجبل","C11",{"$f":"IFERROR(VLOOKUP($A20&$B20,CHOOSE({1,2},MOG!$A$3:$A$500&MOG!$B$3:$B$500,MOG!$AK$3:$AK$500),2,FALSE),\"\")","v":0},12,12,{"$f":"IFERROR(VLOOKUP($A20&$B20,CHOOSE({1,2},MOG!$A$3:$A$500&MOG!$B$3:$B$500,MOG!$AM$3:$AM$500),2,FALSE),\"\")","v":0}]
["صور","C2",{"$f":"IFERROR(VLOOKUP($A21&$B21,CHOOSE({1,2},MOG!$A$3:$A$500&MOG!$B$3:$B$500,MOG!$AK$3:$AK$500),2,FALSE),\"\")","v":0},42,42,{"$f":"IFERROR(VLOOKUP($A21&$B21,CHOOSE({1,2},MOG!$A$3:$A$500&MOG!$B$3:$B$500,MOG!$AM$3:$AM$500),2,FALSE),\"\")","v":0}]
["جزين","C3",{"$f":"IFERROR(VLOOKUP($A22&$B22,CHOOSE({1,2},MOG!$A$3:$A$500&MOG!$B$3:$B$500,MOG!$AK$3:$AK$500),2,FALSE),\"\")","v":0},8,8,{"$f":"IFERROR(VLOOKUP($A22&$B22,CHOOSE({1,2},MOG!$A$3:$A$500&MOG!$B$3:$B$500,MOG!$AM$3:$AM$500),2,FALSE),\"\")","v":0}]
["النبطية","C4",{"$f":"IFERROR(VLOOKUP($A23&$B23,CHOOSE({1,2},MOG!$A$3:$A$500&MOG!$B$3:$B$500,MOG!$AK$3:$AK$500),2,FALSE),\"\")","v":2},47,47,{"$f":"IFERROR(VLOOKUP($A23&$B23,CHOOSE({1,2},MOG!$A$3:$A$500&MOG!$B$3:$B$500,MOG!$AM$3:$AM$500),2,FALSE),\"\")","v":2}]
["بنت جبيل","C5",{"$f":"IFERROR(VLOOKUP($A24&$B24,CHOOSE({1,2},MOG!$A$3:$A$500&MOG!$B$3:$B$500,MOG!$AK$3:$AK$500),2,FALSE),\"\")","v":2},46,46,{"$f":"IFERROR(VLOOKUP($A24&$B24,CHOOSE({1,2},MOG!$A$3:$A$500&MOG!$B$3:$B$500,MOG!$AM$3:$AM$500),2,FALSE),\"\")","v":2}]
["مرجعيون","C6",{"$f":"IFERROR(VLOOKUP($A25&$B25,CHOOSE({1,2},MOG!$A$3:$A$500&MOG!$B$3:$B$500,MOG!$AK$3:$AK$500),2,FALSE),\"\")","v":0},15,15,{"$f":"IFERROR(VLOOKUP($A25&$B25,CHOOSE({1,2},MOG!$A$3:$A$500&MOG!$B$3:$B$500,MOG!$AM$3:$AM$500),2,FALSE),\"\")","v":0}]
["حاصبيا","C7",{"$f":"IFERROR(VLOOKUP($A26&$B26,CHOOSE({1,2},MOG!$A$3:$A$500&MOG!$B$3:$B$500,MOG!$AK$3:$AK$500),2,FALSE),\"\")","v":0},21,21,{"$f":"IFERROR(VLOOKUP($A26&$B26,CHOOSE({1,2},MOG!$A$3:$A$500&MOG!$B$3:$B$500,MOG!$AM$3:$AM$500),2,FALSE),\"\")","v":0}]
["تبنين","C8",{"$f":"IFERROR(VLOOKUP($A27&$B27,CHOOSE({1,2},MOG!$A$3:$A$500&MOG!$B$3:$B$500,MOG!$AK$3:$AK$500),2,FALSE),\"\")","v":2},37,37,{"$f":"IFERROR(VLOOKUP($A27&$B27,CHOOSE({1,2},MOG!$A$3:$A$500&MOG!$B$3:$B$500,MOG!$AM$3:$AM$500),2,FALSE),\"\")","v":2}]
["جباع","C9",{"$f":"IFERROR(VLOOKUP($A28&$B28,CHOOSE({1,2},MOG!$A$3:$A$500&MOG!$B$3:$B$500,MOG!$AK$3:$AK$500),2,FALSE),\"\")","v":1},17,17,{"$f":"IFERROR(VLOOKUP($A28&$B28,CHOOSE({1,2},MOG!$A$3:$A$500&MOG!$B$3:$B$500,MOG!$AM$3:$AM$500),2,FALSE),\"\")","v":1}]
["زحلة","D1",{"$f":"IFERROR(VLOOKUP($A29&$B29,CHOOSE({1,2},MOG!$A$3:$A$500&MOG!$B$3:$B$500,MOG!$AK$3:$AK$500),2,FALSE),\"\")","v":4},80,80,{"$f":"IFERROR(VLOOKUP($A29&$B29,CHOOSE({1,2},MOG!$A$3:$A$500&MOG!$B$3:$B$500,MOG!$AM$3:$AM$500),2,FALSE),\"\")","v":4}]
["النبي شيت","D10",{"$f":"IFERROR(VLOOKUP($A30&$B30,CHOOSE({1,2},MOG!$A$3:$A$500&MOG!$B$3:$B$500,MOG!$AK$3:$AK$500),2,FALSE),\"\")","v":11},18,18,{"$f":"IFERROR(VLOOKUP($A30&$B30,CHOOSE({1,2},MOG!$A$3:$A$500&MOG!$B$3:$B$500,MOG!$AM$3:$AM$500),2,FALSE),\"\")","v":11}]
["راشيا","D2",{"$f":"IFERROR(VLOOKUP($A31&$B31,CHOOSE({1,2},MOG!$A$3:$A$500&MOG!$B$3:$B$500,MOG!$AK$3:$AK$500),2,FALSE),\"\")","v":0},22,22,{"$f":"IFERROR(VLOOKUP($A31&$B31,CHOOSE({1,2},MOG!$A$3:$A$500&MOG!$B$3:$B$500,MOG!$AM$3:$AM$500),2,FALSE),\"\")","v":0}]
["البقاع الغربي","D3",{"$f":"IFERROR(VLOOKUP($A32&$B32,CHOOSE({1,2},MOG!$A$3:$A$500&MOG!$B$3:$B$500,MOG!$AK$3:$AK$500),2,FALSE),\"\")","v":2},47,47,{"$f":"IFERROR(VLOOKUP($A32&$B32,CHOOSE({1,2},MOG!$A$3:$A$500&MOG!$B$3:$B$500,MOG!$AM$3:$AM$500),2,FALSE),\"\")","v":2}]
["شمسطار","D4",{"$f":"IFERROR(VLOOKUP($A33&$B33,CHOOSE({1,2},MOG!$A$3:$A$500&MOG!$B$3:$B$500,MOG!$AK$3:$AK$500),2,FALSE),\"\")","v":5},25,25,{"$f":"IFERROR(VLOOKUP($A33&$B33,CHOOSE({1,2},MOG!$A$3:$A$500&MOG!$B$3:$B$500,MOG!$AM$3:$AM$500),2,FALSE),\"\")","v":5}]
["بعلبك","D5",{"$f":"IFERROR(VLOOKUP($A34&$B34,CHOOSE({1,2},MOG!$A$3:$A$500&MOG!$B$3:$B$500,MOG!$AK$3:$AK$500),2,FALSE),\"\")","v":19},57,57,{"$f":"IFERROR(VLOOKUP($A34&$B34,CHOOSE({1,2},MOG!$A$3:$A$500&MOG!$B$3:$B$500,MOG!$AM$3:$AM$500),2,FALSE),\"\")","v":19}]
["الهرمل","D6",{"$f":"IFERROR(VLOOKUP($A35&$B35,CHOOSE({1,2},MOG!$A$3:$A$500&MOG!$B$3:$B$500,MOG!$AK$3:$AK$500),2,FALSE),\"\")","v":0},30,30,{"$f":"IFERROR(VLOOKUP($A35&$B35,CHOOSE({1,2},MOG!$A$3:$A$500&MOG!$B$3:$B$500,MOG!$AM$3:$AM$500),2,FALSE),\"\")","v":0}]
["دير الاحمر","D7",{"$f":"IFERROR(VLOOKUP($A36&$B36,CHOOSE({1,2},MOG!$A$3:$A$500&MOG!$B$3:$B$500,MOG!$AK$3:$AK$500),2,FALSE),\"\")","v":6},12,12,{"$f":"IFERROR(VLOOKUP($A36&$B36,CHOOSE({1,2},MOG!$A$3:$A$500&MOG!$B$3:$B$500,MOG!$AM$3:$AM$500),2,FALSE),\"\")","v":6}]
["اللبوة","D8",{"$f":"IFERROR(VLOOKUP($A37&$B37,CHOOSE({1,2},MOG!$A$3:$A$500&MOG!$B$3:$B$500,MOG!$AK$3:$AK$500),2,FALSE),\"\")","v":0},47,47,{"$f":"IFERROR(VLOOKUP($A37&$B37,CHOOSE({1,2},MOG!$A$3:$A$500&MOG!$B$3:$B$500,MOG!$AM$3:$AM$500),2,FALSE),\"\")","v":0}]
["صغبين","D9",{"$f":"IFERROR(VLOOKUP($A38&$B38,CHOOSE({1,2},MOG!$A$3:$A$500&MOG!$B$3:$B$500,MOG!$AK$3:$AK$500),2,FALSE),\"\")","v":2},33,33,{"$f":"IFERROR(VLOOKUP($A38&$B38,CHOOSE({1,2},MOG!$A$3:$A$500&MOG!$B$3:$B$500,MOG!$AM$3:$AM$500),2,FALSE),\"\")","v":2}]
["طرابلس","E1",{"$f":"IFERROR(VLOOKUP($A39&$B39,CHOOSE({1,2},MOG!$A$3:$A$500&MOG!$B$3:$B$500,MOG!$AK$3:$AK$500),2,FALSE),\"\")","v":4},0,0,{"$f":"IFERROR(VLOOKUP($A39&$B39,CHOOSE({1,2},MOG!$A$3:$A$500&MOG!$B$3:$B$500,MOG!$AM$3:$AM$500),2,FALSE),\"\")","v":4}]
["دوما","E10",{"$f":"IFERROR(VLOOKUP($A40&$B40,CHOOSE({1,2},MOG!$A$3:$A$500&MOG!$B$3:$B$500,MOG!$AK$3:$AK$500),2,FALSE),\"\")","v":4},4,4,{"$f":"IFERROR(VLOOKUP($A40&$B40,CHOOSE({1,2},MOG!$A$3:$A$500&MOG!$B$3:$B$500,MOG!$AM$3:$AM$500),2,FALSE),\"\")","v":4}]
["العبدة","E11",{"$f":"IFERROR(VLOOKUP($A41&$B41,CHOOSE({1,2},MOG!$A$3:$A$500&MOG!$B$3:$B$500,MOG!$AK$3:$AK$500),2,FALSE),\"\")","v":0},11,11,{"$f":"IFERROR(VLOOKUP($A41&$B41,CHOOSE({1,2},MOG!$A$3:$A$500&MOG!$B$3:$B$500,MOG!$AM$3:$AM$500),2,FALSE),\"\")","v":0}]
["بخعون","E12",{"$f":"IFERROR(VLOOKUP($A42&$B42,CHOOSE({1,2},MOG!$A$3:$A$500&MOG!$B$3:$B$500,MOG!$AK$3:$AK$500),2,FALSE),\"\")","v":0},2,2,{"$f":"IFERROR(VLOOKUP($A42&$B42,CHOOSE({1,2},MOG!$A$3:$A$500&MOG!$B$3:$B$500,MOG!$AM$3:$AM$500),2,FALSE),\"\")","v":0}]
["بيت ملات","E13",{"$f":"IFERROR(VLOOKUP($A43&$B43,CHOOSE({1,2},MOG!$A$3:$A$500&MOG!$B$3:$B$500,MOG!$AK$3:$AK$500),2,FALSE),\"\")","v":0},10,10,{"$f":"IFERROR(VLOOKUP($A43&$B43,CHOOSE({1,2},MOG!$A$3:$A$500&MOG!$B$3:$B$500,MOG!$AM$3:$AM$500),2,FALSE),\"\")","v":0}]
["المنية","E2",{"$f":"IFERROR(VLOOKUP($A44&$B44,CHOOSE({1,2},MOG!$A$3:$A$500&MOG!$B$3:$B$500,MOG!$AK$3:$AK$500),2,FALSE),\"\")","v":1},20,20,{"$f":"IFERROR(VLOOKUP($A44&$B44,CHOOSE({1,2},MOG!$A$3:$A$500&MOG!$B$3:$B$500,MOG!$AM$3:$AM$500),2,FALSE),\"\")","v":1}]
["سير الضنية","E3",{"$f":"IFERROR(VLOOKUP($A45&$B45,CHOOSE({1,2},MOG!$A$3:$A$500&MOG!$B$3:$B$500,MOG!$AK$3:$AK$500),2,FALSE),\"\")","v":2},11,11,{"$f":"IFERROR(VLOOKUP($A45&$B45,CHOOSE({1,2},MOG!$A$3:$A$500&MOG!$B$3:$B$500,MOG!$AM$3:$AM$500),2,FALSE),\"\")","v":2}]
["حلبا عكار","E4",{"$f":"IFERROR(VLOOKUP($A46&$B46,CHOOSE({1,2},MOG!$A$3:$A$500&MOG!$B$3:$B$500,MOG!$AK$3:$AK$500),2,FALSE),\"\")","v":0},7,7,{"$f":"IFERROR(VLOOKUP($A46&$B46,CHOOSE({1,2},MOG!$A$3:$A$500&MOG!$B$3:$B$500,MOG!$AM$3:$AM$500),2,FALSE),\"\")","v":0}]
["القبيات","E5",{"$f":"IFERROR(VLOOKUP($A47&$B47,CHOOSE({1,2},MOG!$A$3:$A$500&MOG!$B$3:$B$500,MOG!$AK$3:$AK$500),2,FALSE),\"\")","v":0},18,18,{"$f":"IFERROR(VLOOKUP($A47&$B47,CHOOSE({1,2},MOG!$A$3:$A$500&MOG!$B$3:$B$500,MOG!$AM$3:$AM$500),2,FALSE),\"\")","v":0}]
["البترون","E6",{"$f":"IFERROR(VLOOKUP($A48&$B48,CHOOSE({1,2},MOG!$A$3:$A$500&MOG!$B$3:$B$500,MOG!$AK$3:$AK$500),2,FALSE),\"\")","v":3},5,5,{"$f":"IFERROR(VLOOKUP($A48&$B48,CHOOSE({1,2},MOG!$A$3:$A$500&MOG!$B$3:$B$500,MOG!$AM$3:$AM$500),2,FALSE),\"\")","v":3}]
["الكورة","E7",{"$f":"IFERROR(VLOOKUP($A49&$B49,CHOOSE({1,2},MOG!$A$3:$A$500&MOG!$B$3:$B$500,MOG!$AK$3:$AK$500),2,FALSE),\"\")","v":5},9,9,{"$f":"IFERROR(VLOOKUP($A49&$B49,CHOOSE({1,2},MOG!$A$3:$A$500&MOG!$B$3:$B$500,MOG!$AM$3:$AM$500),2,FALSE),\"\")","v":5}]
["زغرتا","E8",{"$f":"IFERROR(VLOOKUP($A50&$B50,CHOOSE({1,2},MOG!$A$3:$A$500&MOG!$B$3:$B$500,MOG!$AK$3:$AK$500),2,FALSE),\"\")","v":1},13,13,{"$f":"IFERROR(VLOOKUP($A50&$B50,CHOOSE({1,2},MOG!$A$3:$A$500&MOG!$B$3:$B$500,MOG!$AM$3:$AM$500),2,FALSE),\"\")","v":1}]
["بشري","E9",{"$f":"IFERROR(VLOOKUP($A51&$B51,CHOOSE({1,2},MOG!$A$3:$A$500&MOG!$B$3:$B$500,MOG!$AK$3:$AK$500),2,FALSE),\"\")","v":4},2,2,{"$f":"IFERROR(VLOOKUP($A51&$B51,CHOOSE({1,2},MOG!$A$3:$A$500&MOG!$B$3:$B$500,MOG!$AM$3:$AM$500),2,FALSE),\"\")","v":4}]
["المجموع العام",null,{"$f":"SUM(C3:C51)","v":139},{"$f":"SUM(D3:D51)","v":966},{"$f":"SUM(E3:E51)","v":970},{"$f":"SUM(F3:F51)","v":135}]

{"sheet":"JARD_HA","index":5,"n_rows":52,"n_cols":6,"rows_kept":52,"cut":false,"hidden":false,"merged":[[0,1,0,5]]}
[null,"جدول بعدد الهويات المستلمة من المشغل  والمسلمة الى اقلام النفوس والتي هي قيد التسليم من 2020/12/1 لغــاية 2020/12/31"]
["قلم النفوس","رمز","  المجموع العام لغاية2020/12/31   ","بطاقات الشهر المنصرم","بطاقات المسلمة لغاية 2020/12/31","بطاقات قيد التسليم"]
["بيروت","A",{"$f":"IFERROR(VLOOKUP($A3&$B3,CHOOSE({1,2},HA!$A$3:$A$500&HA!$B$3:$B$500,HA!$AK$3:$AK$500),2,FALSE),\"\")","v":4},140,{"$f":"SUM((D3+C3)-F3)","v":144},{"$f":"IFERROR(VLOOKUP($A3&$B3,CHOOSE({1,2},HA!$A$3:$A$500&HA!$B$3:$B$500,HA!$AM$3:$AM$500),2,FALSE),\"\")","v":0}]
["بعبدا","B1",{"$f":"IFERROR(VLOOKUP($A4&$B4,CHOOSE({1,2},HA!$A$3:$A$500&HA!$B$3:$B$500,HA!$AK$3:$AK$500),2,FALSE),\"\")","v":22},0,{"$f":"SUM((D4+C4)-F4)","v":0},{"$f":"IFERROR(VLOOKUP($A4&$B4,CHOOSE({1,2},HA!$A$3:$A$500&HA!$B$3:$B$500,HA!$AM$3:$AM$500),2,FALSE),\"\")","v":22}]
["بكفيا","B10",{"$f":"IFERROR(VLOOKUP($A5&$B5,CHOOSE({1,2},HA!$A$3:$A$500&HA!$B$3:$B$500,HA!$AK$3:$AK$500),2,FALSE),\"\")","v":82},88,88,{"$f":"IFERROR(VLOOKUP($A5&$B5,CHOOSE({1,2},HA!$A$3:$A$500&HA!$B$3:$B$500,HA!$AM$3:$AM$500),2,FALSE),\"\")","v":82}]
["المتن الشمالي العالي","B11",{"$f":"IFERROR(VLOOKUP($A6&$B6,CHOOSE({1,2},HA!$A$3:$A$500&HA!$B$3:$B$500,HA!$AK$3:$AK$500),2,FALSE),\"\")","v":9},16,16,{"$f":"IFERROR(VLOOKUP($A6&$B6,CHOOSE({1,2},HA!$A$3:$A$500&HA!$B$3:$B$500,HA!$AM$3:$AM$500),2,FALSE),\"\")","v":9}]
["كسروان ","B12",{"$f":"IFERROR(VLOOKUP($A7&$B7,CHOOSE({1,2},HA!$A$3:$A$500&HA!$B$3:$B$500,HA!$AK$3:$AK$500),2,FALSE),\"\")","v":63},81,81,{"$f":"IFERROR(VLOOKUP($A7&$B7,CHOOSE({1,2},HA!$A$3:$A$500&HA!$B$3:$B$500,HA!$AM$3:$AM$500),2,FALSE),\"\")","v":63}]
["جبيل","B13",{"$f":"IFERROR(VLOOKUP($A8&$B8,CHOOSE({1,2},HA!$A$3:$A$500&HA!$B$3:$B$500,HA!$AK$3:$AK$500),2,FALSE),\"\")","v":0},81,81,{"$f":"IFERROR(VLOOKUP($A8&$B8,CHOOSE({1,2},HA!$A$3:$A$500&HA!$B$3:$B$500,HA!$AM$3:$AM$500),2,FALSE),\"\")","v":0}]
["فتوح كسروان","B14",{"$f":"IFERROR(VLOOKUP($A9&$B9,CHOOSE({1,2},HA!$A$3:$A$500&HA!$B$3:$B$500,HA!$AK$3:$AK$500),2,FALSE),\"\")","v":22},22,22,{"$f":"IFERROR(VLOOKUP($A9&$B9,CHOOSE({1,2},HA!$A$3:$A$500&HA!$B$3:$B$500,HA!$AM$3:$AM$500),2,FALSE),\"\")","v":22}]
["الشويفات","B2",{"$f":"IFERROR(VLOOKUP($A10&$B10,CHOOSE({1,2},HA!$A$3:$A$500&HA!$B$3:$B$500,HA!$AK$3:$AK$500),2,FALSE),\"\")","v":24},58,58,{"$f":"IFERROR(VLOOKUP($A10&$B10,CHOOSE({1,2},HA!$A$3:$A$500&HA!$B$3:$B$500,HA!$AM$3:$AM$500),2,FALSE),\"\")","v":24}]
["برجا","B3",{"$f":"IFERROR(VLOOKUP($A11&$B11,CHOOSE({1,2},HA!$A$3:$A$500&HA!$B$3:$B$500,HA!$AK$3:$AK$500),2,FALSE),\"\")","v":0},44,44,{"$f":"IFERROR(VLOOKUP($A11&$B11,CHOOSE({1,2},HA!$A$3:$A$500&HA!$B$3:$B$500,HA!$AM$3:$AM$500),2,FALSE),\"\")","v":0}]
["شحيم","B4",{"$f":"IFERROR(VLOOKUP($A12&$B12,CHOOSE({1,2},HA!$A$3:$A$500&HA!$B$3:$B$500,HA!$AK$3:$AK$500),2,FALSE),\"\")","v":0},5,5,{"$f":"IFERROR(VLOOKUP($A12&$B12,CHOOSE({1,2},HA!$A$3:$A$500&HA!$B$3:$B$500,HA!$AM$3:$AM$500),2,FALSE),\"\")","v":0}]
["عاليه","B5",{"$f":"IFERROR(VLOOKUP($A13&$B13,CHOOSE({1,2},HA!$A$3:$A$500&HA!$B$3:$B$500,HA!$AK$3:$AK$500),2,FALSE),\"\")","v":7},51,51,{"$f":"IFERROR(VLOOKUP($A13&$B13,CHOOSE({1,2},HA!$A$3:$A$500&HA!$B$3:$B$500,HA!$AM$3:$AM$500),2,FALSE),\"\")","v":7}]
["حمانا","B6",{"$f":"IFERROR(VLOOKUP($A14&$B14,CHOOSE({1,2},HA!$A$3:$A$500&HA!$B$3:$B$500,HA!$AK$3:$AK$500),2,FALSE),\"\")","v":0},10,10,{"$f":"IFERROR(VLOOKUP($A14&$B14,CHOOSE({1,2},HA!$A$3:$A$500&HA!$B$3:$B$500,HA!$AM$3:$AM$500),2,FALSE),\"\")","v":0}]
["الشوف","B7",{"$f":"IFERROR(VLOOKUP($A15&$B15,CHOOSE({1,2},HA!$A$3:$A$500&HA!$B$3:$B$500,HA!$AK$3:$AK$500),2,FALSE),\"\")","v":1},19,19,{"$f":"IFERROR(VLOOKUP($A15&$B15,CHOOSE({1,2},HA!$A$3:$A$500&HA!$B$3:$B$500,HA!$AM$3:$AM$500),2,FALSE),\"\")","v":1}]
["المتن ","B8",{"$f":"IFERROR(VLOOKUP($A16&$B16,CHOOSE({1,2},HA!$A$3:$A$500&HA!$B$3:$B$500,HA!$AK$3:$AK$500),2,FALSE),\"\")","v":14},62,62,{"$f":"IFERROR(VLOOKUP($A16&$B16,CHOOSE({1,2},HA!$A$3:$A$500&HA!$B$3:$B$500,HA!$AM$3:$AM$500),2,FALSE),\"\")","v":14}]
["انطلياس","B9",{"$f":"IFERROR(VLOOKUP($A17&$B17,CHOOSE({1,2},HA!$A$3:$A$500&HA!$B$3:$B$500,HA!$AK$3:$AK$500),2,FALSE),\"\")","v":28},36,36,{"$f":"IFERROR(VLOOKUP($A17&$B17,CHOOSE({1,2},HA!$A$3:$A$500&HA!$B$3:$B$500,HA!$AM$3:$AM$500),2,FALSE),\"\")","v":28}]
["صيدا","C1",{"$f":"IFERROR(VLOOKUP($A18&$B18,CHOOSE({1,2},HA!$A$3:$A$500&HA!$B$3:$B$500,HA!$AK$3:$AK$500),2,FALSE),\"\")","v":0},16,16,{"$f":"IFERROR(VLOOKUP($A18&$B18,CHOOSE({1,2},HA!$A$3:$A$500&HA!$B$3:$B$500,HA!$AM$3:$AM$500),2,FALSE),\"\")","v":0}]
["جويا","C10",{"$f":"IFERROR(VLOOKUP($A19&$B19,CHOOSE({1,2},HA!$A$3:$A$500&HA!$B$3:$B$500,HA!$AK$3:$AK$500),2,FALSE),\"\")","v":0},90,90,{"$f":"IFERROR(VLOOKUP($A19&$B19,CHOOSE({1,2},HA!$A$3:$A$500&HA!$B$3:$B$500,HA!$AM$3:$AM$500),2,FALSE),\"\")","v":0}]
["ميس الجبل","C11",{"$f":"IFERROR(VLOOKUP($A20&$B20,CHOOSE({1,2},HA!$A$3:$A$500&HA!$B$3:$B$500,HA!$AK$3:$AK$500),2,FALSE),\"\")","v":0},69,69,{"$f":"IFERROR(VLOOKUP($A20&$B20,CHOOSE({1,2},HA!$A$3:$A$500&HA!$B$3:$B$500,HA!$AM$3:$AM$500),2,FALSE),\"\")","v":0}]
["صور","C2",{"$f":"IFERROR(VLOOKUP($A21&$B21,CHOOSE({1,2},HA!$A$3:$A$500&HA!$B$3:$B$500,HA!$AK$3:$AK$500),2,FALSE),\"\")","v":0},139,139,{"$f":"IFERROR(VLOOKUP($A21&$B21,CHOOSE({1,2},HA!$A$3:$A$500&HA!$B$3:$B$500,HA!$AM$3:$AM$500),2,FALSE),\"\")","v":0}]
["جزين","C3",{"$f":"IFERROR(VLOOKUP($A22&$B22,CHOOSE({1,2},HA!$A$3:$A$500&HA!$B$3:$B$500,HA!$AK$3:$AK$500),2,FALSE),\"\")","v":0},13,13,{"$f":"IFERROR(VLOOKUP($A22&$B22,CHOOSE({1,2},HA!$A$3:$A$500&HA!$B$3:$B$500,HA!$AM$3:$AM$500),2,FALSE),\"\")","v":0}]
["النبطية","C4",{"$f":"IFERROR(VLOOKUP($A23&$B23,CHOOSE({1,2},HA!$A$3:$A$500&HA!$B$3:$B$500,HA!$AK$3:$AK$500),2,FALSE),\"\")","v":2},94,94,{"$f":"IFERROR(VLOOKUP($A23&$B23,CHOOSE({1,2},HA!$A$3:$A$500&HA!$B$3:$B$500,HA!$AM$3:$AM$500),2,FALSE),\"\")","v":2}]
["بنت جبيل","C5",{"$f":"IFERROR(VLOOKUP($A24&$B24,CHOOSE({1,2},HA!$A$3:$A$500&HA!$B$3:$B$500,HA!$AK$3:$AK$500),2,FALSE),\"\")","v":3},216,216,{"$f":"IFERROR(VLOOKUP($A24&$B24,CHOOSE({1,2},HA!$A$3:$A$500&HA!$B$3:$B$500,HA!$AM$3:$AM$500),2,FALSE),\"\")","v":3}]
["مرجعيون","C6",{"$f":"IFERROR(VLOOKUP($A25&$B25,CHOOSE({1,2},HA!$A$3:$A$500&HA!$B$3:$B$500,HA!$AK$3:$AK$500),2,FALSE),\"\")","v":0},29,29,{"$f":"IFERROR(VLOOKUP($A25&$B25,CHOOSE({1,2},HA!$A$3:$A$500&HA!$B$3:$B$500,HA!$AM$3:$AM$500),2,FALSE),\"\")","v":0}]
["حاصبيا","C7",{"$f":"IFERROR(VLOOKUP($A26&$B26,CHOOSE({1,2},HA!$A$3:$A$500&HA!$B$3:$B$500,HA!$AK$3:$AK$500),2,FALSE),\"\")","v":0},45,45,{"$f":"IFERROR(VLOOKUP($A26&$B26,CHOOSE({1,2},HA!$A$3:$A$500&HA!$B$3:$B$500,HA!$AM$3:$AM$500),2,FALSE),\"\")","v":0}]
["تبنين","C8",{"$f":"IFERROR(VLOOKUP($A27&$B27,CHOOSE({1,2},HA!$A$3:$A$500&HA!$B$3:$B$500,HA!$AK$3:$AK$500),2,FALSE),\"\")","v":3},97,97,{"$f":"IFERROR(VLOOKUP($A27&$B27,CHOOSE({1,2},HA!$A$3:$A$500&HA!$B$3:$B$500,HA!$AM$3:$AM$500),2,FALSE),\"\")","v":3}]
["جباع","C9",{"$f":"IFERROR(VLOOKUP($A28&$B28,CHOOSE({1,2},HA!$A$3:$A$500&HA!$B$3:$B$500,HA!$AK$3:$AK$500),2,FALSE),\"\")","v":1},60,60,{"$f":"IFERROR(VLOOKUP($A28&$B28,CHOOSE({1,2},HA!$A$3:$A$500&HA!$B$3:$B$500,HA!$AM$3:$AM$500),2,FALSE),\"\")","v":1}]
["زحلة","D1",{"$f":"IFERROR(VLOOKUP($A29&$B29,CHOOSE({1,2},HA!$A$3:$A$500&HA!$B$3:$B$500,HA!$AK$3:$AK$500),2,FALSE),\"\")","v":21},322,322,{"$f":"IFERROR(VLOOKUP($A29&$B29,CHOOSE({1,2},HA!$A$3:$A$500&HA!$B$3:$B$500,HA!$AM$3:$AM$500),2,FALSE),\"\")","v":21}]
["النبي شيت","D10",{"$f":"IFERROR(VLOOKUP($A30&$B30,CHOOSE({1,2},HA!$A$3:$A$500&HA!$B$3:$B$500,HA!$AK$3:$AK$500),2,FALSE),\"\")","v":68},36,36,{"$f":"IFERROR(VLOOKUP($A30&$B30,CHOOSE({1,2},HA!$A$3:$A$500&HA!$B$3:$B$500,HA!$AM$3:$AM$500),2,FALSE),\"\")","v":68}]
["راشيا","D2",{"$f":"IFERROR(VLOOKUP($A31&$B31,CHOOSE({1,2},HA!$A$3:$A$500&HA!$B$3:$B$500,HA!$AK$3:$AK$500),2,FALSE),\"\")","v":0},82,82,{"$f":"IFERROR(VLOOKUP($A31&$B31,CHOOSE({1,2},HA!$A$3:$A$500&HA!$B$3:$B$500,HA!$AM$3:$AM$500),2,FALSE),\"\")","v":0}]
["البقاع الغربي","D3",{"$f":"IFERROR(VLOOKUP($A32&$B32,CHOOSE({1,2},HA!$A$3:$A$500&HA!$B$3:$B$500,HA!$AK$3:$AK$500),2,FALSE),\"\")","v":4},174,174,{"$f":"IFERROR(VLOOKUP($A32&$B32,CHOOSE({1,2},HA!$A$3:$A$500&HA!$B$3:$B$500,HA!$AM$3:$AM$500),2,FALSE),\"\")","v":4}]
["شمسطار","D4",{"$f":"IFERROR(VLOOKUP($A33&$B33,CHOOSE({1,2},HA!$A$3:$A$500&HA!$B$3:$B$500,HA!$AK$3:$AK$500),2,FALSE),\"\")","v":10},93,93,{"$f":"IFERROR(VLOOKUP($A33&$B33,CHOOSE({1,2},HA!$A$3:$A$500&HA!$B$3:$B$500,HA!$AM$3:$AM$500),2,FALSE),\"\")","v":10}]
["بعلبك","D5",{"$f":"IFERROR(VLOOKUP($A34&$B34,CHOOSE({1,2},HA!$A$3:$A$500&HA!$B$3:$B$500,HA!$AK$3:$AK$500),2,FALSE),\"\")","v":58},167,167,{"$f":"IFERROR(VLOOKUP($A34&$B34,CHOOSE({1,2},HA!$A$3:$A$500&HA!$B$3:$B$500,HA!$AM$3:$AM$500),2,FALSE),\"\")","v":58}]
["الهرمل","D6",{"$f":"IFERROR(VLOOKUP($A35&$B35,CHOOSE({1,2},HA!$A$3:$A$500&HA!$B$3:$B$500,HA!$AK$3:$AK$500),2,FALSE),\"\")","v":0},131,131,{"$f":"IFERROR(VLOOKUP($A35&$B35,CHOOSE({1,2},HA!$A$3:$A$500&HA!$B$3:$B$500,HA!$AM$3:$AM$500),2,FALSE),\"\")","v":0}]
["دير الاحمر","D7",{"$f":"IFERROR(VLOOKUP($A36&$B36,CHOOSE({1,2},HA!$A$3:$A$500&HA!$B$3:$B$500,HA!$AK$3:$AK$500),2,FALSE),\"\")","v":14},24,24,{"$f":"IFERROR(VLOOKUP($A36&$B36,CHOOSE({1,2},HA!$A$3:$A$500&HA!$B$3:$B$500,HA!$AM$3:$AM$500),2,FALSE),\"\")","v":14}]
["اللبوة","D8",{"$f":"IFERROR(VLOOKUP($A37&$B37,CHOOSE({1,2},HA!$A$3:$A$500&HA!$B$3:$B$500,HA!$AK$3:$AK$500),2,FALSE),\"\")","v":0},144,144,{"$f":"IFERROR(VLOOKUP($A37&$B37,CHOOSE({1,2},HA!$A$3:$A$500&HA!$B$3:$B$500,HA!$AM$3:$AM$500),2,FALSE),\"\")","v":0}]
["صغبين","D9",{"$f":"IFERROR(VLOOKUP($A38&$B38,CHOOSE({1,2},HA!$A$3:$A$500&HA!$B$3:$B$500,HA!$AK$3:$AK$500),2,FALSE),\"\")","v":2},86,86,{"$f":"IFERROR(VLOOKUP($A38&$B38,CHOOSE({1,2},HA!$A$3:$A$500&HA!$B$3:$B$500,HA!$AM$3:$AM$500),2,FALSE),\"\")","v":2}]
["طرابلس","E1",{"$f":"IFERROR(VLOOKUP($A39&$B39,CHOOSE({1,2},HA!$A$3:$A$500&HA!$B$3:$B$500,HA!$AK$3:$AK$500),2,FALSE),\"\")","v":7},0,0,{"$f":"IFERROR(VLOOKUP($A39&$B39,CHOOSE({1,2},HA!$A$3:$A$500&HA!$B$3:$B$500,HA!$AM$3:$AM$500),2,FALSE),\"\")","v":7}]
["دوما","E10",{"$f":"IFERROR(VLOOKUP($A40&$B40,CHOOSE({1,2},HA!$A$3:$A$500&HA!$B$3:$B$500,HA!$AK$3:$AK$500),2,FALSE),\"\")","v":9},12,12,{"$f":"IFERROR(VLOOKUP($A40&$B40,CHOOSE({1,2},HA!$A$3:$A$500&HA!$B$3:$B$500,HA!$AM$3:$AM$500),2,FALSE),\"\")","v":9}]
["العبدة","E11",{"$f":"IFERROR(VLOOKUP($A41&$B41,CHOOSE({1,2},HA!$A$3:$A$500&HA!$B$3:$B$500,HA!$AK$3:$AK$500),2,FALSE),\"\")","v":0},32,32,{"$f":"IFERROR(VLOOKUP($A41&$B41,CHOOSE({1,2},HA!$A$3:$A$500&HA!$B$3:$B$500,HA!$AM$3:$AM$500),2,FALSE),\"\")","v":0}]
["بخعون","E12",{"$f":"IFERROR(VLOOKUP($A42&$B42,CHOOSE({1,2},HA!$A$3:$A$500&HA!$B$3:$B$500,HA!$AK$3:$AK$500),2,FALSE),\"\")","v":0},5,5,{"$f":"IFERROR(VLOOKUP($A42&$B42,CHOOSE({1,2},HA!$A$3:$A$500&HA!$B$3:$B$500,HA!$AM$3:$AM$500),2,FALSE),\"\")","v":0}]
["بيت ملات","E13",{"$f":"IFERROR(VLOOKUP($A43&$B43,CHOOSE({1,2},HA!$A$3:$A$500&HA!$B$3:$B$500,HA!$AK$3:$AK$500),2,FALSE),\"\")","v":0},17,17,{"$f":"IFERROR(VLOOKUP($A43&$B43,CHOOSE({1,2},HA!$A$3:$A$500&HA!$B$3:$B$500,HA!$AM$3:$AM$500),2,FALSE),\"\")","v":0}]
["المنية","E2",{"$f":"IFERROR(VLOOKUP($A44&$B44,CHOOSE({1,2},HA!$A$3:$A$500&HA!$B$3:$B$500,HA!$AK$3:$AK$500),2,FALSE),\"\")","v":2},63,63,{"$f":"IFERROR(VLOOKUP($A44&$B44,CHOOSE({1,2},HA!$A$3:$A$500&HA!$B$3:$B$500,HA!$AM$3:$AM$500),2,FALSE),\"\")","v":2}]
["سير الضنية","E3",{"$f":"IFERROR(VLOOKUP($A45&$B45,CHOOSE({1,2},HA!$A$3:$A$500&HA!$B$3:$B$500,HA!$AK$3:$AK$500),2,FALSE),\"\")","v":2},49,49,{"$f":"IFERROR(VLOOKUP($A45&$B45,CHOOSE({1,2},HA!$A$3:$A$500&HA!$B$3:$B$500,HA!$AM$3:$AM$500),2,FALSE),\"\")","v":2}]
["حلبا عكار","E4",{"$f":"IFERROR(VLOOKUP($A46&$B46,CHOOSE({1,2},HA!$A$3:$A$500&HA!$B$3:$B$500,HA!$AK$3:$AK$500),2,FALSE),\"\")","v":0},71,71,{"$f":"IFERROR(VLOOKUP($A46&$B46,CHOOSE({1,2},HA!$A$3:$A$500&HA!$B$3:$B$500,HA!$AM$3:$AM$500),2,FALSE),\"\")","v":0}]
["القبيات","E5",{"$f":"IFERROR(VLOOKUP($A47&$B47,CHOOSE({1,2},HA!$A$3:$A$500&HA!$B$3:$B$500,HA!$AK$3:$AK$500),2,FALSE),\"\")","v":0},41,41,{"$f":"IFERROR(VLOOKUP($A47&$B47,CHOOSE({1,2},HA!$A$3:$A$500&HA!$B$3:$B$500,HA!$AM$3:$AM$500),2,FALSE),\"\")","v":0}]
["البترون","E6",{"$f":"IFERROR(VLOOKUP($A48&$B48,CHOOSE({1,2},HA!$A$3:$A$500&HA!$B$3:$B$500,HA!$AK$3:$AK$500),2,FALSE),\"\")","v":8},29,29,{"$f":"IFERROR(VLOOKUP($A48&$B48,CHOOSE({1,2},HA!$A$3:$A$500&HA!$B$3:$B$500,HA!$AM$3:$AM$500),2,FALSE),\"\")","v":8}]
["الكورة","E7",{"$f":"IFERROR(VLOOKUP($A49&$B49,CHOOSE({1,2},HA!$A$3:$A$500&HA!$B$3:$B$500,HA!$AK$3:$AK$500),2,FALSE),\"\")","v":36},53,53,{"$f":"IFERROR(VLOOKUP($A49&$B49,CHOOSE({1,2},HA!$A$3:$A$500&HA!$B$3:$B$500,HA!$AM$3:$AM$500),2,FALSE),\"\")","v":36}]
["زغرتا","E8",{"$f":"IFERROR(VLOOKUP($A50&$B50,CHOOSE({1,2},HA!$A$3:$A$500&HA!$B$3:$B$500,HA!$AK$3:$AK$500),2,FALSE),\"\")","v":2},77,77,{"$f":"IFERROR(VLOOKUP($A50&$B50,CHOOSE({1,2},HA!$A$3:$A$500&HA!$B$3:$B$500,HA!$AM$3:$AM$500),2,FALSE),\"\")","v":2}]
["بشري","E9",{"$f":"IFERROR(VLOOKUP($A51&$B51,CHOOSE({1,2},HA!$A$3:$A$500&HA!$B$3:$B$500,HA!$AK$3:$AK$500),2,FALSE),\"\")","v":22},2,2,{"$f":"IFERROR(VLOOKUP($A51&$B51,CHOOSE({1,2},HA!$A$3:$A$500&HA!$B$3:$B$500,HA!$AM$3:$AM$500),2,FALSE),\"\")","v":22}]
["المجموع العام",null,{"$f":"SUM(C3:C51)","v":550},{"$f":"SUM(D3:D51)","v":3291},{"$f":"SUM(E3:E51)","v":3295},{"$f":"SUM(F3:F51)","v":546}]

{"sheet":"JARD_MOG_OMT","index":6,"n_rows":52,"n_cols":6,"rows_kept":52,"cut":false,"hidden":false,"merged":[[0,1,0,5]]}
[null,"جدول بعدد المغلفات المستلمة من المشغل  والمسلمة الى اقلام النفوس والتي هي قيد التسليم من 2020/12/1 لغــاية 2020/12/31"]
["قلم النفوس","رمز","المجموع العام لغاية2020/12/31 ","مغلفات  الشهر المنصرم","مغلفات المسلمة لغاية 2020/12/31","مغلفات  قيد التسليم"]
["بيروت","A",{"$f":"IFERROR(VLOOKUP($A3&$B3,CHOOSE({1,2},MOG_OMT!$A$3:$A$500&MOG_OMT!$B$3:$B$500,MOG_OMT!$AK$3:$AK$500),2,FALSE),\"\")","v":0},0,{"$f":"SUM((D3+C3)-F3)","v":0},{"$f":"IFERROR(VLOOKUP($A3&$B3,CHOOSE({1,2},MOG_OMT!$A$3:$A$500&MOG_OMT!$B$3:$B$500,MOG_OMT!$AM$3:$AM$500),2,FALSE),\"\")","v":0}]
["بعبدا","B1",{"$f":"IFERROR(VLOOKUP($A4&$B4,CHOOSE({1,2},MOG_OMT!$A$3:$A$500&MOG_OMT!$B$3:$B$500,MOG_OMT!$AK$3:$AK$500),2,FALSE),\"\")","v":0},0,{"$f":"SUM((D4+C4)-F4)","v":0},{"$f":"IFERROR(VLOOKUP($A4&$B4,CHOOSE({1,2},MOG_OMT!$A$3:$A$500&MOG_OMT!$B$3:$B$500,MOG_OMT!$AM$3:$AM$500),2,FALSE),\"\")","v":0}]
["بكفيا","B10",{"$f":"IFERROR(VLOOKUP($A5&$B5,CHOOSE({1,2},MOG_OMT!$A$3:$A$500&MOG_OMT!$B$3:$B$500,MOG_OMT!$AK$3:$AK$500),2,FALSE),\"\")","v":0},0,0,{"$f":"IFERROR(VLOOKUP($A5&$B5,CHOOSE({1,2},MOG_OMT!$A$3:$A$500&MOG_OMT!$B$3:$B$500,MOG_OMT!$AM$3:$AM$500),2,FALSE),\"\")","v":0}]
["المتن الشمالي العالي","B11",{"$f":"IFERROR(VLOOKUP($A6&$B6,CHOOSE({1,2},MOG_OMT!$A$3:$A$500&MOG_OMT!$B$3:$B$500,MOG_OMT!$AK$3:$AK$500),2,FALSE),\"\")","v":0},0,0,{"$f":"IFERROR(VLOOKUP($A6&$B6,CHOOSE({1,2},MOG_OMT!$A$3:$A$500&MOG_OMT!$B$3:$B$500,MOG_OMT!$AM$3:$AM$500),2,FALSE),\"\")","v":0}]
["كسروان ","B12",{"$f":"IFERROR(VLOOKUP($A7&$B7,CHOOSE({1,2},MOG_OMT!$A$3:$A$500&MOG_OMT!$B$3:$B$500,MOG_OMT!$AK$3:$AK$500),2,FALSE),\"\")","v":0},0,0,{"$f":"IFERROR(VLOOKUP($A7&$B7,CHOOSE({1,2},MOG_OMT!$A$3:$A$500&MOG_OMT!$B$3:$B$500,MOG_OMT!$AM$3:$AM$500),2,FALSE),\"\")","v":0}]
["جبيل","B13",{"$f":"IFERROR(VLOOKUP($A8&$B8,CHOOSE({1,2},MOG_OMT!$A$3:$A$500&MOG_OMT!$B$3:$B$500,MOG_OMT!$AK$3:$AK$500),2,FALSE),\"\")","v":0},0,0,{"$f":"IFERROR(VLOOKUP($A8&$B8,CHOOSE({1,2},MOG_OMT!$A$3:$A$500&MOG_OMT!$B$3:$B$500,MOG_OMT!$AM$3:$AM$500),2,FALSE),\"\")","v":0}]
["فتوح كسروان","B14",{"$f":"IFERROR(VLOOKUP($A9&$B9,CHOOSE({1,2},MOG_OMT!$A$3:$A$500&MOG_OMT!$B$3:$B$500,MOG_OMT!$AK$3:$AK$500),2,FALSE),\"\")","v":0},0,0,{"$f":"IFERROR(VLOOKUP($A9&$B9,CHOOSE({1,2},MOG_OMT!$A$3:$A$500&MOG_OMT!$B$3:$B$500,MOG_OMT!$AM$3:$AM$500),2,FALSE),\"\")","v":0}]
["الشويفات","B2",{"$f":"IFERROR(VLOOKUP($A10&$B10,CHOOSE({1,2},MOG_OMT!$A$3:$A$500&MOG_OMT!$B$3:$B$500,MOG_OMT!$AK$3:$AK$500),2,FALSE),\"\")","v":0},0,0,{"$f":"IFERROR(VLOOKUP($A10&$B10,CHOOSE({1,2},MOG_OMT!$A$3:$A$500&MOG_OMT!$B$3:$B$500,MOG_OMT!$AM$3:$AM$500),2,FALSE),\"\")","v":0}]
["برجا","B3",{"$f":"IFERROR(VLOOKUP($A11&$B11,CHOOSE({1,2},MOG_OMT!$A$3:$A$500&MOG_OMT!$B$3:$B$500,MOG_OMT!$AK$3:$AK$500),2,FALSE),\"\")","v":0},0,0,{"$f":"IFERROR(VLOOKUP($A11&$B11,CHOOSE({1,2},MOG_OMT!$A$3:$A$500&MOG_OMT!$B$3:$B$500,MOG_OMT!$AM$3:$AM$500),2,FALSE),\"\")","v":0}]
["شحيم","B4",{"$f":"IFERROR(VLOOKUP($A12&$B12,CHOOSE({1,2},MOG_OMT!$A$3:$A$500&MOG_OMT!$B$3:$B$500,MOG_OMT!$AK$3:$AK$500),2,FALSE),\"\")","v":0},0,0,{"$f":"IFERROR(VLOOKUP($A12&$B12,CHOOSE({1,2},MOG_OMT!$A$3:$A$500&MOG_OMT!$B$3:$B$500,MOG_OMT!$AM$3:$AM$500),2,FALSE),\"\")","v":0}]
["عاليه","B5",{"$f":"IFERROR(VLOOKUP($A13&$B13,CHOOSE({1,2},MOG_OMT!$A$3:$A$500&MOG_OMT!$B$3:$B$500,MOG_OMT!$AK$3:$AK$500),2,FALSE),\"\")","v":0},0,0,{"$f":"IFERROR(VLOOKUP($A13&$B13,CHOOSE({1,2},MOG_OMT!$A$3:$A$500&MOG_OMT!$B$3:$B$500,MOG_OMT!$AM$3:$AM$500),2,FALSE),\"\")","v":0}]
["حمانا","B6",{"$f":"IFERROR(VLOOKUP($A14&$B14,CHOOSE({1,2},MOG_OMT!$A$3:$A$500&MOG_OMT!$B$3:$B$500,MOG_OMT!$AK$3:$AK$500),2,FALSE),\"\")","v":0},0,0,{"$f":"IFERROR(VLOOKUP($A14&$B14,CHOOSE({1,2},MOG_OMT!$A$3:$A$500&MOG_OMT!$B$3:$B$500,MOG_OMT!$AM$3:$AM$500),2,FALSE),\"\")","v":0}]
["الشوف","B7",{"$f":"IFERROR(VLOOKUP($A15&$B15,CHOOSE({1,2},MOG_OMT!$A$3:$A$500&MOG_OMT!$B$3:$B$500,MOG_OMT!$AK$3:$AK$500),2,FALSE),\"\")","v":0},0,0,{"$f":"IFERROR(VLOOKUP($A15&$B15,CHOOSE({1,2},MOG_OMT!$A$3:$A$500&MOG_OMT!$B$3:$B$500,MOG_OMT!$AM$3:$AM$500),2,FALSE),\"\")","v":0}]
["المتن ","B8",{"$f":"IFERROR(VLOOKUP($A16&$B16,CHOOSE({1,2},MOG_OMT!$A$3:$A$500&MOG_OMT!$B$3:$B$500,MOG_OMT!$AK$3:$AK$500),2,FALSE),\"\")","v":0},0,0,{"$f":"IFERROR(VLOOKUP($A16&$B16,CHOOSE({1,2},MOG_OMT!$A$3:$A$500&MOG_OMT!$B$3:$B$500,MOG_OMT!$AM$3:$AM$500),2,FALSE),\"\")","v":0}]
["انطلياس","B9",{"$f":"IFERROR(VLOOKUP($A17&$B17,CHOOSE({1,2},MOG_OMT!$A$3:$A$500&MOG_OMT!$B$3:$B$500,MOG_OMT!$AK$3:$AK$500),2,FALSE),\"\")","v":0},0,0,{"$f":"IFERROR(VLOOKUP($A17&$B17,CHOOSE({1,2},MOG_OMT!$A$3:$A$500&MOG_OMT!$B$3:$B$500,MOG_OMT!$AM$3:$AM$500),2,FALSE),\"\")","v":0}]
["صيدا","C1",{"$f":"IFERROR(VLOOKUP($A18&$B18,CHOOSE({1,2},MOG_OMT!$A$3:$A$500&MOG_OMT!$B$3:$B$500,MOG_OMT!$AK$3:$AK$500),2,FALSE),\"\")","v":0},0,0,{"$f":"IFERROR(VLOOKUP($A18&$B18,CHOOSE({1,2},MOG_OMT!$A$3:$A$500&MOG_OMT!$B$3:$B$500,MOG_OMT!$AM$3:$AM$500),2,FALSE),\"\")","v":0}]
["جويا","C10",{"$f":"IFERROR(VLOOKUP($A19&$B19,CHOOSE({1,2},MOG_OMT!$A$3:$A$500&MOG_OMT!$B$3:$B$500,MOG_OMT!$AK$3:$AK$500),2,FALSE),\"\")","v":0},0,0,{"$f":"IFERROR(VLOOKUP($A19&$B19,CHOOSE({1,2},MOG_OMT!$A$3:$A$500&MOG_OMT!$B$3:$B$500,MOG_OMT!$AM$3:$AM$500),2,FALSE),\"\")","v":0}]
["ميس الجبل","C11",{"$f":"IFERROR(VLOOKUP($A20&$B20,CHOOSE({1,2},MOG_OMT!$A$3:$A$500&MOG_OMT!$B$3:$B$500,MOG_OMT!$AK$3:$AK$500),2,FALSE),\"\")","v":0},0,0,{"$f":"IFERROR(VLOOKUP($A20&$B20,CHOOSE({1,2},MOG_OMT!$A$3:$A$500&MOG_OMT!$B$3:$B$500,MOG_OMT!$AM$3:$AM$500),2,FALSE),\"\")","v":0}]
["صور","C2",{"$f":"IFERROR(VLOOKUP($A21&$B21,CHOOSE({1,2},MOG_OMT!$A$3:$A$500&MOG_OMT!$B$3:$B$500,MOG_OMT!$AK$3:$AK$500),2,FALSE),\"\")","v":0},0,0,{"$f":"IFERROR(VLOOKUP($A21&$B21,CHOOSE({1,2},MOG_OMT!$A$3:$A$500&MOG_OMT!$B$3:$B$500,MOG_OMT!$AM$3:$AM$500),2,FALSE),\"\")","v":0}]
["جزين","C3",{"$f":"IFERROR(VLOOKUP($A22&$B22,CHOOSE({1,2},MOG_OMT!$A$3:$A$500&MOG_OMT!$B$3:$B$500,MOG_OMT!$AK$3:$AK$500),2,FALSE),\"\")","v":0},0,0,{"$f":"IFERROR(VLOOKUP($A22&$B22,CHOOSE({1,2},MOG_OMT!$A$3:$A$500&MOG_OMT!$B$3:$B$500,MOG_OMT!$AM$3:$AM$500),2,FALSE),\"\")","v":0}]
["النبطية","C4",{"$f":"IFERROR(VLOOKUP($A23&$B23,CHOOSE({1,2},MOG_OMT!$A$3:$A$500&MOG_OMT!$B$3:$B$500,MOG_OMT!$AK$3:$AK$500),2,FALSE),\"\")","v":0},0,0,{"$f":"IFERROR(VLOOKUP($A23&$B23,CHOOSE({1,2},MOG_OMT!$A$3:$A$500&MOG_OMT!$B$3:$B$500,MOG_OMT!$AM$3:$AM$500),2,FALSE),\"\")","v":0}]
["بنت جبيل","C5",{"$f":"IFERROR(VLOOKUP($A24&$B24,CHOOSE({1,2},MOG_OMT!$A$3:$A$500&MOG_OMT!$B$3:$B$500,MOG_OMT!$AK$3:$AK$500),2,FALSE),\"\")","v":0},0,0,{"$f":"IFERROR(VLOOKUP($A24&$B24,CHOOSE({1,2},MOG_OMT!$A$3:$A$500&MOG_OMT!$B$3:$B$500,MOG_OMT!$AM$3:$AM$500),2,FALSE),\"\")","v":0}]
["مرجعيون","C6",{"$f":"IFERROR(VLOOKUP($A25&$B25,CHOOSE({1,2},MOG_OMT!$A$3:$A$500&MOG_OMT!$B$3:$B$500,MOG_OMT!$AK$3:$AK$500),2,FALSE),\"\")","v":0},0,0,{"$f":"IFERROR(VLOOKUP($A25&$B25,CHOOSE({1,2},MOG_OMT!$A$3:$A$500&MOG_OMT!$B$3:$B$500,MOG_OMT!$AM$3:$AM$500),2,FALSE),\"\")","v":0}]
["حاصبيا","C7",{"$f":"IFERROR(VLOOKUP($A26&$B26,CHOOSE({1,2},MOG_OMT!$A$3:$A$500&MOG_OMT!$B$3:$B$500,MOG_OMT!$AK$3:$AK$500),2,FALSE),\"\")","v":0},0,0,{"$f":"IFERROR(VLOOKUP($A26&$B26,CHOOSE({1,2},MOG_OMT!$A$3:$A$500&MOG_OMT!$B$3:$B$500,MOG_OMT!$AM$3:$AM$500),2,FALSE),\"\")","v":0}]
["تبنين","C8",{"$f":"IFERROR(VLOOKUP($A27&$B27,CHOOSE({1,2},MOG_OMT!$A$3:$A$500&MOG_OMT!$B$3:$B$500,MOG_OMT!$AK$3:$AK$500),2,FALSE),\"\")","v":0},0,0,{"$f":"IFERROR(VLOOKUP($A27&$B27,CHOOSE({1,2},MOG_OMT!$A$3:$A$500&MOG_OMT!$B$3:$B$500,MOG_OMT!$AM$3:$AM$500),2,FALSE),\"\")","v":0}]
["جباع","C9",{"$f":"IFERROR(VLOOKUP($A28&$B28,CHOOSE({1,2},MOG_OMT!$A$3:$A$500&MOG_OMT!$B$3:$B$500,MOG_OMT!$AK$3:$AK$500),2,FALSE),\"\")","v":0},0,0,{"$f":"IFERROR(VLOOKUP($A28&$B28,CHOOSE({1,2},MOG_OMT!$A$3:$A$500&MOG_OMT!$B$3:$B$500,MOG_OMT!$AM$3:$AM$500),2,FALSE),\"\")","v":0}]
["زحلة","D1",{"$f":"IFERROR(VLOOKUP($A29&$B29,CHOOSE({1,2},MOG_OMT!$A$3:$A$500&MOG_OMT!$B$3:$B$500,MOG_OMT!$AK$3:$AK$500),2,FALSE),\"\")","v":0},0,0,{"$f":"IFERROR(VLOOKUP($A29&$B29,CHOOSE({1,2},MOG_OMT!$A$3:$A$500&MOG_OMT!$B$3:$B$500,MOG_OMT!$AM$3:$AM$500),2,FALSE),\"\")","v":0}]
["النبي شيت","D10",{"$f":"IFERROR(VLOOKUP($A30&$B30,CHOOSE({1,2},MOG_OMT!$A$3:$A$500&MOG_OMT!$B$3:$B$500,MOG_OMT!$AK$3:$AK$500),2,FALSE),\"\")","v":0},0,0,{"$f":"IFERROR(VLOOKUP($A30&$B30,CHOOSE({1,2},MOG_OMT!$A$3:$A$500&MOG_OMT!$B$3:$B$500,MOG_OMT!$AM$3:$AM$500),2,FALSE),\"\")","v":0}]
["راشيا","D2",{"$f":"IFERROR(VLOOKUP($A31&$B31,CHOOSE({1,2},MOG_OMT!$A$3:$A$500&MOG_OMT!$B$3:$B$500,MOG_OMT!$AK$3:$AK$500),2,FALSE),\"\")","v":0},0,0,{"$f":"IFERROR(VLOOKUP($A31&$B31,CHOOSE({1,2},MOG_OMT!$A$3:$A$500&MOG_OMT!$B$3:$B$500,MOG_OMT!$AM$3:$AM$500),2,FALSE),\"\")","v":0}]
["البقاع الغربي","D3",{"$f":"IFERROR(VLOOKUP($A32&$B32,CHOOSE({1,2},MOG_OMT!$A$3:$A$500&MOG_OMT!$B$3:$B$500,MOG_OMT!$AK$3:$AK$500),2,FALSE),\"\")","v":0},0,0,{"$f":"IFERROR(VLOOKUP($A32&$B32,CHOOSE({1,2},MOG_OMT!$A$3:$A$500&MOG_OMT!$B$3:$B$500,MOG_OMT!$AM$3:$AM$500),2,FALSE),\"\")","v":0}]
["شمسطار","D4",{"$f":"IFERROR(VLOOKUP($A33&$B33,CHOOSE({1,2},MOG_OMT!$A$3:$A$500&MOG_OMT!$B$3:$B$500,MOG_OMT!$AK$3:$AK$500),2,FALSE),\"\")","v":0},0,0,{"$f":"IFERROR(VLOOKUP($A33&$B33,CHOOSE({1,2},MOG_OMT!$A$3:$A$500&MOG_OMT!$B$3:$B$500,MOG_OMT!$AM$3:$AM$500),2,FALSE),\"\")","v":0}]
["بعلبك","D5",{"$f":"IFERROR(VLOOKUP($A34&$B34,CHOOSE({1,2},MOG_OMT!$A$3:$A$500&MOG_OMT!$B$3:$B$500,MOG_OMT!$AK$3:$AK$500),2,FALSE),\"\")","v":0},0,0,{"$f":"IFERROR(VLOOKUP($A34&$B34,CHOOSE({1,2},MOG_OMT!$A$3:$A$500&MOG_OMT!$B$3:$B$500,MOG_OMT!$AM$3:$AM$500),2,FALSE),\"\")","v":0}]
["الهرمل","D6",{"$f":"IFERROR(VLOOKUP($A35&$B35,CHOOSE({1,2},MOG_OMT!$A$3:$A$500&MOG_OMT!$B$3:$B$500,MOG_OMT!$AK$3:$AK$500),2,FALSE),\"\")","v":0},0,0,{"$f":"IFERROR(VLOOKUP($A35&$B35,CHOOSE({1,2},MOG_OMT!$A$3:$A$500&MOG_OMT!$B$3:$B$500,MOG_OMT!$AM$3:$AM$500),2,FALSE),\"\")","v":0}]
["دير الاحمر","D7",{"$f":"IFERROR(VLOOKUP($A36&$B36,CHOOSE({1,2},MOG_OMT!$A$3:$A$500&MOG_OMT!$B$3:$B$500,MOG_OMT!$AK$3:$AK$500),2,FALSE),\"\")","v":0},0,0,{"$f":"IFERROR(VLOOKUP($A36&$B36,CHOOSE({1,2},MOG_OMT!$A$3:$A$500&MOG_OMT!$B$3:$B$500,MOG_OMT!$AM$3:$AM$500),2,FALSE),\"\")","v":0}]
["اللبوة","D8",{"$f":"IFERROR(VLOOKUP($A37&$B37,CHOOSE({1,2},MOG_OMT!$A$3:$A$500&MOG_OMT!$B$3:$B$500,MOG_OMT!$AK$3:$AK$500),2,FALSE),\"\")","v":0},0,0,{"$f":"IFERROR(VLOOKUP($A37&$B37,CHOOSE({1,2},MOG_OMT!$A$3:$A$500&MOG_OMT!$B$3:$B$500,MOG_OMT!$AM$3:$AM$500),2,FALSE),\"\")","v":0}]
["صغبين","D9",{"$f":"IFERROR(VLOOKUP($A38&$B38,CHOOSE({1,2},MOG_OMT!$A$3:$A$500&MOG_OMT!$B$3:$B$500,MOG_OMT!$AK$3:$AK$500),2,FALSE),\"\")","v":0},0,0,{"$f":"IFERROR(VLOOKUP($A38&$B38,CHOOSE({1,2},MOG_OMT!$A$3:$A$500&MOG_OMT!$B$3:$B$500,MOG_OMT!$AM$3:$AM$500),2,FALSE),\"\")","v":0}]
["طرابلس","E1",{"$f":"IFERROR(VLOOKUP($A39&$B39,CHOOSE({1,2},MOG_OMT!$A$3:$A$500&MOG_OMT!$B$3:$B$500,MOG_OMT!$AK$3:$AK$500),2,FALSE),\"\")","v":0},0,0,{"$f":"IFERROR(VLOOKUP($A39&$B39,CHOOSE({1,2},MOG_OMT!$A$3:$A$500&MOG_OMT!$B$3:$B$500,MOG_OMT!$AM$3:$AM$500),2,FALSE),\"\")","v":0}]
["دوما","E10",{"$f":"IFERROR(VLOOKUP($A40&$B40,CHOOSE({1,2},MOG_OMT!$A$3:$A$500&MOG_OMT!$B$3:$B$500,MOG_OMT!$AK$3:$AK$500),2,FALSE),\"\")","v":0},0,0,{"$f":"IFERROR(VLOOKUP($A40&$B40,CHOOSE({1,2},MOG_OMT!$A$3:$A$500&MOG_OMT!$B$3:$B$500,MOG_OMT!$AM$3:$AM$500),2,FALSE),\"\")","v":0}]
["العبدة","E11",{"$f":"IFERROR(VLOOKUP($A41&$B41,CHOOSE({1,2},MOG_OMT!$A$3:$A$500&MOG_OMT!$B$3:$B$500,MOG_OMT!$AK$3:$AK$500),2,FALSE),\"\")","v":0},0,0,{"$f":"IFERROR(VLOOKUP($A41&$B41,CHOOSE({1,2},MOG_OMT!$A$3:$A$500&MOG_OMT!$B$3:$B$500,MOG_OMT!$AM$3:$AM$500),2,FALSE),\"\")","v":0}]
["بخعون","E12",{"$f":"IFERROR(VLOOKUP($A42&$B42,CHOOSE({1,2},MOG_OMT!$A$3:$A$500&MOG_OMT!$B$3:$B$500,MOG_OMT!$AK$3:$AK$500),2,FALSE),\"\")","v":0},0,0,{"$f":"IFERROR(VLOOKUP($A42&$B42,CHOOSE({1,2},MOG_OMT!$A$3:$A$500&MOG_OMT!$B$3:$B$500,MOG_OMT!$AM$3:$AM$500),2,FALSE),\"\")","v":0}]
["بيت ملات","E13",{"$f":"IFERROR(VLOOKUP($A43&$B43,CHOOSE({1,2},MOG_OMT!$A$3:$A$500&MOG_OMT!$B$3:$B$500,MOG_OMT!$AK$3:$AK$500),2,FALSE),\"\")","v":0},0,0,{"$f":"IFERROR(VLOOKUP($A43&$B43,CHOOSE({1,2},MOG_OMT!$A$3:$A$500&MOG_OMT!$B$3:$B$500,MOG_OMT!$AM$3:$AM$500),2,FALSE),\"\")","v":0}]
["المنية","E2",{"$f":"IFERROR(VLOOKUP($A44&$B44,CHOOSE({1,2},MOG_OMT!$A$3:$A$500&MOG_OMT!$B$3:$B$500,MOG_OMT!$AK$3:$AK$500),2,FALSE),\"\")","v":0},0,0,{"$f":"IFERROR(VLOOKUP($A44&$B44,CHOOSE({1,2},MOG_OMT!$A$3:$A$500&MOG_OMT!$B$3:$B$500,MOG_OMT!$AM$3:$AM$500),2,FALSE),\"\")","v":0}]
["سير الضنية","E3",{"$f":"IFERROR(VLOOKUP($A45&$B45,CHOOSE({1,2},MOG_OMT!$A$3:$A$500&MOG_OMT!$B$3:$B$500,MOG_OMT!$AK$3:$AK$500),2,FALSE),\"\")","v":0},0,0,{"$f":"IFERROR(VLOOKUP($A45&$B45,CHOOSE({1,2},MOG_OMT!$A$3:$A$500&MOG_OMT!$B$3:$B$500,MOG_OMT!$AM$3:$AM$500),2,FALSE),\"\")","v":0}]
["حلبا عكار","E4",{"$f":"IFERROR(VLOOKUP($A46&$B46,CHOOSE({1,2},MOG_OMT!$A$3:$A$500&MOG_OMT!$B$3:$B$500,MOG_OMT!$AK$3:$AK$500),2,FALSE),\"\")","v":0},0,0,{"$f":"IFERROR(VLOOKUP($A46&$B46,CHOOSE({1,2},MOG_OMT!$A$3:$A$500&MOG_OMT!$B$3:$B$500,MOG_OMT!$AM$3:$AM$500),2,FALSE),\"\")","v":0}]
["القبيات","E5",{"$f":"IFERROR(VLOOKUP($A47&$B47,CHOOSE({1,2},MOG_OMT!$A$3:$A$500&MOG_OMT!$B$3:$B$500,MOG_OMT!$AK$3:$AK$500),2,FALSE),\"\")","v":0},0,0,{"$f":"IFERROR(VLOOKUP($A47&$B47,CHOOSE({1,2},MOG_OMT!$A$3:$A$500&MOG_OMT!$B$3:$B$500,MOG_OMT!$AM$3:$AM$500),2,FALSE),\"\")","v":0}]
["البترون","E6",{"$f":"IFERROR(VLOOKUP($A48&$B48,CHOOSE({1,2},MOG_OMT!$A$3:$A$500&MOG_OMT!$B$3:$B$500,MOG_OMT!$AK$3:$AK$500),2,FALSE),\"\")","v":0},0,0,{"$f":"IFERROR(VLOOKUP($A48&$B48,CHOOSE({1,2},MOG_OMT!$A$3:$A$500&MOG_OMT!$B$3:$B$500,MOG_OMT!$AM$3:$AM$500),2,FALSE),\"\")","v":0}]
["الكورة","E7",{"$f":"IFERROR(VLOOKUP($A49&$B49,CHOOSE({1,2},MOG_OMT!$A$3:$A$500&MOG_OMT!$B$3:$B$500,MOG_OMT!$AK$3:$AK$500),2,FALSE),\"\")","v":0},0,0,{"$f":"IFERROR(VLOOKUP($A49&$B49,CHOOSE({1,2},MOG_OMT!$A$3:$A$500&MOG_OMT!$B$3:$B$500,MOG_OMT!$AM$3:$AM$500),2,FALSE),\"\")","v":0}]
["زغرتا","E8",{"$f":"IFERROR(VLOOKUP($A50&$B50,CHOOSE({1,2},MOG_OMT!$A$3:$A$500&MOG_OMT!$B$3:$B$500,MOG_OMT!$AK$3:$AK$500),2,FALSE),\"\")","v":0},0,0,{"$f":"IFERROR(VLOOKUP($A50&$B50,CHOOSE({1,2},MOG_OMT!$A$3:$A$500&MOG_OMT!$B$3:$B$500,MOG_OMT!$AM$3:$AM$500),2,FALSE),\"\")","v":0}]
["بشري","E9",{"$f":"IFERROR(VLOOKUP($A51&$B51,CHOOSE({1,2},MOG_OMT!$A$3:$A$500&MOG_OMT!$B$3:$B$500,MOG_OMT!$AK$3:$AK$500),2,FALSE),\"\")","v":0},0,0,{"$f":"IFERROR(VLOOKUP($A51&$B51,CHOOSE({1,2},MOG_OMT!$A$3:$A$500&MOG_OMT!$B$3:$B$500,MOG_OMT!$AM$3:$AM$500),2,FALSE),\"\")","v":0}]
["المجموع العام",null,{"$f":"SUM(C3:C51)","v":0},{"$f":"SUM(D3:D51)","v":0},{"$f":"SUM(E3:E51)","v":0},{"$f":"SUM(F3:F51)","v":0}]

{"sheet":"JARD_HA_OMT","index":7,"n_rows":52,"n_cols":6,"rows_kept":52,"cut":false,"hidden":false,"merged":[[0,1,0,5]]}
[null,"جدول بعدد الهويات المستلمة من المشغل  والمسلمة الى اقلام النفوس والتي هي قيد التسليم من 2020/12/1 لغــاية 2020/12/31"]
["قلم النفوس","رمز","  المجموع العام لغاية2020/12/31   ","بطاقات الشهر المنصرم","بطاقات المسلمة لغاية 2020/12/31","بطاقات قيد التسليم"]
["بيروت","A",{"$f":"IFERROR(VLOOKUP($A3&$B3,CHOOSE({1,2},HA_OMT!$A$3:$A$500&HA_OMT!$B$3:$B$500,HA_OMT!$AK$3:$AK$500),2,FALSE),\"\")","v":0},0,{"$f":"SUM((D3+C3)-F3)","v":0},{"$f":"IFERROR(VLOOKUP($A3&$B3,CHOOSE({1,2},HA_OMT!$A$3:$A$500&HA_OMT!$B$3:$B$500,HA_OMT!$AM$3:$AM$500),2,FALSE),\"\")","v":0}]
["بعبدا","B1",{"$f":"IFERROR(VLOOKUP($A4&$B4,CHOOSE({1,2},HA_OMT!$A$3:$A$500&HA_OMT!$B$3:$B$500,HA_OMT!$AK$3:$AK$500),2,FALSE),\"\")","v":0},0,{"$f":"SUM((D4+C4)-F4)","v":0},{"$f":"IFERROR(VLOOKUP($A4&$B4,CHOOSE({1,2},HA_OMT!$A$3:$A$500&HA_OMT!$B$3:$B$500,HA_OMT!$AM$3:$AM$500),2,FALSE),\"\")","v":0}]
["بكفيا","B10",{"$f":"IFERROR(VLOOKUP($A5&$B5,CHOOSE({1,2},HA_OMT!$A$3:$A$500&HA_OMT!$B$3:$B$500,HA_OMT!$AK$3:$AK$500),2,FALSE),\"\")","v":0},0,0,{"$f":"IFERROR(VLOOKUP($A5&$B5,CHOOSE({1,2},HA_OMT!$A$3:$A$500&HA_OMT!$B$3:$B$500,HA_OMT!$AM$3:$AM$500),2,FALSE),\"\")","v":0}]
["المتن الشمالي العالي","B11",{"$f":"IFERROR(VLOOKUP($A6&$B6,CHOOSE({1,2},HA_OMT!$A$3:$A$500&HA_OMT!$B$3:$B$500,HA_OMT!$AK$3:$AK$500),2,FALSE),\"\")","v":0},0,0,{"$f":"IFERROR(VLOOKUP($A6&$B6,CHOOSE({1,2},HA_OMT!$A$3:$A$500&HA_OMT!$B$3:$B$500,HA_OMT!$AM$3:$AM$500),2,FALSE),\"\")","v":0}]
["كسروان ","B12",{"$f":"IFERROR(VLOOKUP($A7&$B7,CHOOSE({1,2},HA_OMT!$A$3:$A$500&HA_OMT!$B$3:$B$500,HA_OMT!$AK$3:$AK$500),2,FALSE),\"\")","v":0},0,0,{"$f":"IFERROR(VLOOKUP($A7&$B7,CHOOSE({1,2},HA_OMT!$A$3:$A$500&HA_OMT!$B$3:$B$500,HA_OMT!$AM$3:$AM$500),2,FALSE),\"\")","v":0}]
["جبيل","B13",{"$f":"IFERROR(VLOOKUP($A8&$B8,CHOOSE({1,2},HA_OMT!$A$3:$A$500&HA_OMT!$B$3:$B$500,HA_OMT!$AK$3:$AK$500),2,FALSE),\"\")","v":0},0,0,{"$f":"IFERROR(VLOOKUP($A8&$B8,CHOOSE({1,2},HA_OMT!$A$3:$A$500&HA_OMT!$B$3:$B$500,HA_OMT!$AM$3:$AM$500),2,FALSE),\"\")","v":0}]
["فتوح كسروان","B14",{"$f":"IFERROR(VLOOKUP($A9&$B9,CHOOSE({1,2},HA_OMT!$A$3:$A$500&HA_OMT!$B$3:$B$500,HA_OMT!$AK$3:$AK$500),2,FALSE),\"\")","v":0},0,0,{"$f":"IFERROR(VLOOKUP($A9&$B9,CHOOSE({1,2},HA_OMT!$A$3:$A$500&HA_OMT!$B$3:$B$500,HA_OMT!$AM$3:$AM$500),2,FALSE),\"\")","v":0}]
["الشويفات","B2",{"$f":"IFERROR(VLOOKUP($A10&$B10,CHOOSE({1,2},HA_OMT!$A$3:$A$500&HA_OMT!$B$3:$B$500,HA_OMT!$AK$3:$AK$500),2,FALSE),\"\")","v":0},0,0,{"$f":"IFERROR(VLOOKUP($A10&$B10,CHOOSE({1,2},HA_OMT!$A$3:$A$500&HA_OMT!$B$3:$B$500,HA_OMT!$AM$3:$AM$500),2,FALSE),\"\")","v":0}]
["برجا","B3",{"$f":"IFERROR(VLOOKUP($A11&$B11,CHOOSE({1,2},HA_OMT!$A$3:$A$500&HA_OMT!$B$3:$B$500,HA_OMT!$AK$3:$AK$500),2,FALSE),\"\")","v":0},0,0,{"$f":"IFERROR(VLOOKUP($A11&$B11,CHOOSE({1,2},HA_OMT!$A$3:$A$500&HA_OMT!$B$3:$B$500,HA_OMT!$AM$3:$AM$500),2,FALSE),\"\")","v":0}]
["شحيم","B4",{"$f":"IFERROR(VLOOKUP($A12&$B12,CHOOSE({1,2},HA_OMT!$A$3:$A$500&HA_OMT!$B$3:$B$500,HA_OMT!$AK$3:$AK$500),2,FALSE),\"\")","v":0},0,0,{"$f":"IFERROR(VLOOKUP($A12&$B12,CHOOSE({1,2},HA_OMT!$A$3:$A$500&HA_OMT!$B$3:$B$500,HA_OMT!$AM$3:$AM$500),2,FALSE),\"\")","v":0}]
["عاليه","B5",{"$f":"IFERROR(VLOOKUP($A13&$B13,CHOOSE({1,2},HA_OMT!$A$3:$A$500&HA_OMT!$B$3:$B$500,HA_OMT!$AK$3:$AK$500),2,FALSE),\"\")","v":0},0,0,{"$f":"IFERROR(VLOOKUP($A13&$B13,CHOOSE({1,2},HA_OMT!$A$3:$A$500&HA_OMT!$B$3:$B$500,HA_OMT!$AM$3:$AM$500),2,FALSE),\"\")","v":0}]
["حمانا","B6",{"$f":"IFERROR(VLOOKUP($A14&$B14,CHOOSE({1,2},HA_OMT!$A$3:$A$500&HA_OMT!$B$3:$B$500,HA_OMT!$AK$3:$AK$500),2,FALSE),\"\")","v":0},0,0,{"$f":"IFERROR(VLOOKUP($A14&$B14,CHOOSE({1,2},HA_OMT!$A$3:$A$500&HA_OMT!$B$3:$B$500,HA_OMT!$AM$3:$AM$500),2,FALSE),\"\")","v":0}]
["الشوف","B7",{"$f":"IFERROR(VLOOKUP($A15&$B15,CHOOSE({1,2},HA_OMT!$A$3:$A$500&HA_OMT!$B$3:$B$500,HA_OMT!$AK$3:$AK$500),2,FALSE),\"\")","v":0},0,0,{"$f":"IFERROR(VLOOKUP($A15&$B15,CHOOSE({1,2},HA_OMT!$A$3:$A$500&HA_OMT!$B$3:$B$500,HA_OMT!$AM$3:$AM$500),2,FALSE),\"\")","v":0}]
["المتن ","B8",{"$f":"IFERROR(VLOOKUP($A16&$B16,CHOOSE({1,2},HA_OMT!$A$3:$A$500&HA_OMT!$B$3:$B$500,HA_OMT!$AK$3:$AK$500),2,FALSE),\"\")","v":0},0,0,{"$f":"IFERROR(VLOOKUP($A16&$B16,CHOOSE({1,2},HA_OMT!$A$3:$A$500&HA_OMT!$B$3:$B$500,HA_OMT!$AM$3:$AM$500),2,FALSE),\"\")","v":0}]
["انطلياس","B9",{"$f":"IFERROR(VLOOKUP($A17&$B17,CHOOSE({1,2},HA_OMT!$A$3:$A$500&HA_OMT!$B$3:$B$500,HA_OMT!$AK$3:$AK$500),2,FALSE),\"\")","v":0},0,0,{"$f":"IFERROR(VLOOKUP($A17&$B17,CHOOSE({1,2},HA_OMT!$A$3:$A$500&HA_OMT!$B$3:$B$500,HA_OMT!$AM$3:$AM$500),2,FALSE),\"\")","v":0}]
["صيدا","C1",{"$f":"IFERROR(VLOOKUP($A18&$B18,CHOOSE({1,2},HA_OMT!$A$3:$A$500&HA_OMT!$B$3:$B$500,HA_OMT!$AK$3:$AK$500),2,FALSE),\"\")","v":0},0,0,{"$f":"IFERROR(VLOOKUP($A18&$B18,CHOOSE({1,2},HA_OMT!$A$3:$A$500&HA_OMT!$B$3:$B$500,HA_OMT!$AM$3:$AM$500),2,FALSE),\"\")","v":0}]
["جويا","C10",{"$f":"IFERROR(VLOOKUP($A19&$B19,CHOOSE({1,2},HA_OMT!$A$3:$A$500&HA_OMT!$B$3:$B$500,HA_OMT!$AK$3:$AK$500),2,FALSE),\"\")","v":0},0,0,{"$f":"IFERROR(VLOOKUP($A19&$B19,CHOOSE({1,2},HA_OMT!$A$3:$A$500&HA_OMT!$B$3:$B$500,HA_OMT!$AM$3:$AM$500),2,FALSE),\"\")","v":0}]
["ميس الجبل","C11",{"$f":"IFERROR(VLOOKUP($A20&$B20,CHOOSE({1,2},HA_OMT!$A$3:$A$500&HA_OMT!$B$3:$B$500,HA_OMT!$AK$3:$AK$500),2,FALSE),\"\")","v":0},0,0,{"$f":"IFERROR(VLOOKUP($A20&$B20,CHOOSE({1,2},HA_OMT!$A$3:$A$500&HA_OMT!$B$3:$B$500,HA_OMT!$AM$3:$AM$500),2,FALSE),\"\")","v":0}]
["صور","C2",{"$f":"IFERROR(VLOOKUP($A21&$B21,CHOOSE({1,2},HA_OMT!$A$3:$A$500&HA_OMT!$B$3:$B$500,HA_OMT!$AK$3:$AK$500),2,FALSE),\"\")","v":0},0,0,{"$f":"IFERROR(VLOOKUP($A21&$B21,CHOOSE({1,2},HA_OMT!$A$3:$A$500&HA_OMT!$B$3:$B$500,HA_OMT!$AM$3:$AM$500),2,FALSE),\"\")","v":0}]
["جزين","C3",{"$f":"IFERROR(VLOOKUP($A22&$B22,CHOOSE({1,2},HA_OMT!$A$3:$A$500&HA_OMT!$B$3:$B$500,HA_OMT!$AK$3:$AK$500),2,FALSE),\"\")","v":0},0,0,{"$f":"IFERROR(VLOOKUP($A22&$B22,CHOOSE({1,2},HA_OMT!$A$3:$A$500&HA_OMT!$B$3:$B$500,HA_OMT!$AM$3:$AM$500),2,FALSE),\"\")","v":0}]
["النبطية","C4",{"$f":"IFERROR(VLOOKUP($A23&$B23,CHOOSE({1,2},HA_OMT!$A$3:$A$500&HA_OMT!$B$3:$B$500,HA_OMT!$AK$3:$AK$500),2,FALSE),\"\")","v":0},0,0,{"$f":"IFERROR(VLOOKUP($A23&$B23,CHOOSE({1,2},HA_OMT!$A$3:$A$500&HA_OMT!$B$3:$B$500,HA_OMT!$AM$3:$AM$500),2,FALSE),\"\")","v":0}]
["بنت جبيل","C5",{"$f":"IFERROR(VLOOKUP($A24&$B24,CHOOSE({1,2},HA_OMT!$A$3:$A$500&HA_OMT!$B$3:$B$500,HA_OMT!$AK$3:$AK$500),2,FALSE),\"\")","v":0},0,0,{"$f":"IFERROR(VLOOKUP($A24&$B24,CHOOSE({1,2},HA_OMT!$A$3:$A$500&HA_OMT!$B$3:$B$500,HA_OMT!$AM$3:$AM$500),2,FALSE),\"\")","v":0}]
["مرجعيون","C6",{"$f":"IFERROR(VLOOKUP($A25&$B25,CHOOSE({1,2},HA_OMT!$A$3:$A$500&HA_OMT!$B$3:$B$500,HA_OMT!$AK$3:$AK$500),2,FALSE),\"\")","v":0},0,0,{"$f":"IFERROR(VLOOKUP($A25&$B25,CHOOSE({1,2},HA_OMT!$A$3:$A$500&HA_OMT!$B$3:$B$500,HA_OMT!$AM$3:$AM$500),2,FALSE),\"\")","v":0}]
["حاصبيا","C7",{"$f":"IFERROR(VLOOKUP($A26&$B26,CHOOSE({1,2},HA_OMT!$A$3:$A$500&HA_OMT!$B$3:$B$500,HA_OMT!$AK$3:$AK$500),2,FALSE),\"\")","v":0},0,0,{"$f":"IFERROR(VLOOKUP($A26&$B26,CHOOSE({1,2},HA_OMT!$A$3:$A$500&HA_OMT!$B$3:$B$500,HA_OMT!$AM$3:$AM$500),2,FALSE),\"\")","v":0}]
["تبنين","C8",{"$f":"IFERROR(VLOOKUP($A27&$B27,CHOOSE({1,2},HA_OMT!$A$3:$A$500&HA_OMT!$B$3:$B$500,HA_OMT!$AK$3:$AK$500),2,FALSE),\"\")","v":0},0,0,{"$f":"IFERROR(VLOOKUP($A27&$B27,CHOOSE({1,2},HA_OMT!$A$3:$A$500&HA_OMT!$B$3:$B$500,HA_OMT!$AM$3:$AM$500),2,FALSE),\"\")","v":0}]
["جباع","C9",{"$f":"IFERROR(VLOOKUP($A28&$B28,CHOOSE({1,2},HA_OMT!$A$3:$A$500&HA_OMT!$B$3:$B$500,HA_OMT!$AK$3:$AK$500),2,FALSE),\"\")","v":0},0,0,{"$f":"IFERROR(VLOOKUP($A28&$B28,CHOOSE({1,2},HA_OMT!$A$3:$A$500&HA_OMT!$B$3:$B$500,HA_OMT!$AM$3:$AM$500),2,FALSE),\"\")","v":0}]
["زحلة","D1",{"$f":"IFERROR(VLOOKUP($A29&$B29,CHOOSE({1,2},HA_OMT!$A$3:$A$500&HA_OMT!$B$3:$B$500,HA_OMT!$AK$3:$AK$500),2,FALSE),\"\")","v":0},0,0,{"$f":"IFERROR(VLOOKUP($A29&$B29,CHOOSE({1,2},HA_OMT!$A$3:$A$500&HA_OMT!$B$3:$B$500,HA_OMT!$AM$3:$AM$500),2,FALSE),\"\")","v":0}]
["النبي شيت","D10",{"$f":"IFERROR(VLOOKUP($A30&$B30,CHOOSE({1,2},HA_OMT!$A$3:$A$500&HA_OMT!$B$3:$B$500,HA_OMT!$AK$3:$AK$500),2,FALSE),\"\")","v":0},0,0,{"$f":"IFERROR(VLOOKUP($A30&$B30,CHOOSE({1,2},HA_OMT!$A$3:$A$500&HA_OMT!$B$3:$B$500,HA_OMT!$AM$3:$AM$500),2,FALSE),\"\")","v":0}]
["راشيا","D2",{"$f":"IFERROR(VLOOKUP($A31&$B31,CHOOSE({1,2},HA_OMT!$A$3:$A$500&HA_OMT!$B$3:$B$500,HA_OMT!$AK$3:$AK$500),2,FALSE),\"\")","v":0},0,0,{"$f":"IFERROR(VLOOKUP($A31&$B31,CHOOSE({1,2},HA_OMT!$A$3:$A$500&HA_OMT!$B$3:$B$500,HA_OMT!$AM$3:$AM$500),2,FALSE),\"\")","v":0}]
["البقاع الغربي","D3",{"$f":"IFERROR(VLOOKUP($A32&$B32,CHOOSE({1,2},HA_OMT!$A$3:$A$500&HA_OMT!$B$3:$B$500,HA_OMT!$AK$3:$AK$500),2,FALSE),\"\")","v":0},0,0,{"$f":"IFERROR(VLOOKUP($A32&$B32,CHOOSE({1,2},HA_OMT!$A$3:$A$500&HA_OMT!$B$3:$B$500,HA_OMT!$AM$3:$AM$500),2,FALSE),\"\")","v":0}]
["شمسطار","D4",{"$f":"IFERROR(VLOOKUP($A33&$B33,CHOOSE({1,2},HA_OMT!$A$3:$A$500&HA_OMT!$B$3:$B$500,HA_OMT!$AK$3:$AK$500),2,FALSE),\"\")","v":0},0,0,{"$f":"IFERROR(VLOOKUP($A33&$B33,CHOOSE({1,2},HA_OMT!$A$3:$A$500&HA_OMT!$B$3:$B$500,HA_OMT!$AM$3:$AM$500),2,FALSE),\"\")","v":0}]
["بعلبك","D5",{"$f":"IFERROR(VLOOKUP($A34&$B34,CHOOSE({1,2},HA_OMT!$A$3:$A$500&HA_OMT!$B$3:$B$500,HA_OMT!$AK$3:$AK$500),2,FALSE),\"\")","v":0},0,0,{"$f":"IFERROR(VLOOKUP($A34&$B34,CHOOSE({1,2},HA_OMT!$A$3:$A$500&HA_OMT!$B$3:$B$500,HA_OMT!$AM$3:$AM$500),2,FALSE),\"\")","v":0}]
["الهرمل","D6",{"$f":"IFERROR(VLOOKUP($A35&$B35,CHOOSE({1,2},HA_OMT!$A$3:$A$500&HA_OMT!$B$3:$B$500,HA_OMT!$AK$3:$AK$500),2,FALSE),\"\")","v":0},0,0,{"$f":"IFERROR(VLOOKUP($A35&$B35,CHOOSE({1,2},HA_OMT!$A$3:$A$500&HA_OMT!$B$3:$B$500,HA_OMT!$AM$3:$AM$500),2,FALSE),\"\")","v":0}]
["دير الاحمر","D7",{"$f":"IFERROR(VLOOKUP($A36&$B36,CHOOSE({1,2},HA_OMT!$A$3:$A$500&HA_OMT!$B$3:$B$500,HA_OMT!$AK$3:$AK$500),2,FALSE),\"\")","v":0},0,0,{"$f":"IFERROR(VLOOKUP($A36&$B36,CHOOSE({1,2},HA_OMT!$A$3:$A$500&HA_OMT!$B$3:$B$500,HA_OMT!$AM$3:$AM$500),2,FALSE),\"\")","v":0}]
["اللبوة","D8",{"$f":"IFERROR(VLOOKUP($A37&$B37,CHOOSE({1,2},HA_OMT!$A$3:$A$500&HA_OMT!$B$3:$B$500,HA_OMT!$AK$3:$AK$500),2,FALSE),\"\")","v":0},0,0,{"$f":"IFERROR(VLOOKUP($A37&$B37,CHOOSE({1,2},HA_OMT!$A$3:$A$500&HA_OMT!$B$3:$B$500,HA_OMT!$AM$3:$AM$500),2,FALSE),\"\")","v":0}]
["صغبين","D9",{"$f":"IFERROR(VLOOKUP($A38&$B38,CHOOSE({1,2},HA_OMT!$A$3:$A$500&HA_OMT!$B$3:$B$500,HA_OMT!$AK$3:$AK$500),2,FALSE),\"\")","v":0},0,0,{"$f":"IFERROR(VLOOKUP($A38&$B38,CHOOSE({1,2},HA_OMT!$A$3:$A$500&HA_OMT!$B$3:$B$500,HA_OMT!$AM$3:$AM$500),2,FALSE),\"\")","v":0}]
["طرابلس","E1",{"$f":"IFERROR(VLOOKUP($A39&$B39,CHOOSE({1,2},HA_OMT!$A$3:$A$500&HA_OMT!$B$3:$B$500,HA_OMT!$AK$3:$AK$500),2,FALSE),\"\")","v":0},0,0,{"$f":"IFERROR(VLOOKUP($A39&$B39,CHOOSE({1,2},HA_OMT!$A$3:$A$500&HA_OMT!$B$3:$B$500,HA_OMT!$AM$3:$AM$500),2,FALSE),\"\")","v":0}]
["دوما","E10",{"$f":"IFERROR(VLOOKUP($A40&$B40,CHOOSE({1,2},HA_OMT!$A$3:$A$500&HA_OMT!$B$3:$B$500,HA_OMT!$AK$3:$AK$500),2,FALSE),\"\")","v":0},0,0,{"$f":"IFERROR(VLOOKUP($A40&$B40,CHOOSE({1,2},HA_OMT!$A$3:$A$500&HA_OMT!$B$3:$B$500,HA_OMT!$AM$3:$AM$500),2,FALSE),\"\")","v":0}]
["العبدة","E11",{"$f":"IFERROR(VLOOKUP($A41&$B41,CHOOSE({1,2},HA_OMT!$A$3:$A$500&HA_OMT!$B$3:$B$500,HA_OMT!$AK$3:$AK$500),2,FALSE),\"\")","v":0},0,0,{"$f":"IFERROR(VLOOKUP($A41&$B41,CHOOSE({1,2},HA_OMT!$A$3:$A$500&HA_OMT!$B$3:$B$500,HA_OMT!$AM$3:$AM$500),2,FALSE),\"\")","v":0}]
["بخعون","E12",{"$f":"IFERROR(VLOOKUP($A42&$B42,CHOOSE({1,2},HA_OMT!$A$3:$A$500&HA_OMT!$B$3:$B$500,HA_OMT!$AK$3:$AK$500),2,FALSE),\"\")","v":0},0,0,{"$f":"IFERROR(VLOOKUP($A42&$B42,CHOOSE({1,2},HA_OMT!$A$3:$A$500&HA_OMT!$B$3:$B$500,HA_OMT!$AM$3:$AM$500),2,FALSE),\"\")","v":0}]
["بيت ملات","E13",{"$f":"IFERROR(VLOOKUP($A43&$B43,CHOOSE({1,2},HA_OMT!$A$3:$A$500&HA_OMT!$B$3:$B$500,HA_OMT!$AK$3:$AK$500),2,FALSE),\"\")","v":0},0,0,{"$f":"IFERROR(VLOOKUP($A43&$B43,CHOOSE({1,2},HA_OMT!$A$3:$A$500&HA_OMT!$B$3:$B$500,HA_OMT!$AM$3:$AM$500),2,FALSE),\"\")","v":0}]
["المنية","E2",{"$f":"IFERROR(VLOOKUP($A44&$B44,CHOOSE({1,2},HA_OMT!$A$3:$A$500&HA_OMT!$B$3:$B$500,HA_OMT!$AK$3:$AK$500),2,FALSE),\"\")","v":0},0,0,{"$f":"IFERROR(VLOOKUP($A44&$B44,CHOOSE({1,2},HA_OMT!$A$3:$A$500&HA_OMT!$B$3:$B$500,HA_OMT!$AM$3:$AM$500),2,FALSE),\"\")","v":0}]
["سير الضنية","E3",{"$f":"IFERROR(VLOOKUP($A45&$B45,CHOOSE({1,2},HA_OMT!$A$3:$A$500&HA_OMT!$B$3:$B$500,HA_OMT!$AK$3:$AK$500),2,FALSE),\"\")","v":0},0,0,{"$f":"IFERROR(VLOOKUP($A45&$B45,CHOOSE({1,2},HA_OMT!$A$3:$A$500&HA_OMT!$B$3:$B$500,HA_OMT!$AM$3:$AM$500),2,FALSE),\"\")","v":0}]
["حلبا عكار","E4",{"$f":"IFERROR(VLOOKUP($A46&$B46,CHOOSE({1,2},HA_OMT!$A$3:$A$500&HA_OMT!$B$3:$B$500,HA_OMT!$AK$3:$AK$500),2,FALSE),\"\")","v":0},0,0,{"$f":"IFERROR(VLOOKUP($A46&$B46,CHOOSE({1,2},HA_OMT!$A$3:$A$500&HA_OMT!$B$3:$B$500,HA_OMT!$AM$3:$AM$500),2,FALSE),\"\")","v":0}]
["القبيات","E5",{"$f":"IFERROR(VLOOKUP($A47&$B47,CHOOSE({1,2},HA_OMT!$A$3:$A$500&HA_OMT!$B$3:$B$500,HA_OMT!$AK$3:$AK$500),2,FALSE),\"\")","v":0},0,0,{"$f":"IFERROR(VLOOKUP($A47&$B47,CHOOSE({1,2},HA_OMT!$A$3:$A$500&HA_OMT!$B$3:$B$500,HA_OMT!$AM$3:$AM$500),2,FALSE),\"\")","v":0}]
["البترون","E6",{"$f":"IFERROR(VLOOKUP($A48&$B48,CHOOSE({1,2},HA_OMT!$A$3:$A$500&HA_OMT!$B$3:$B$500,HA_OMT!$AK$3:$AK$500),2,FALSE),\"\")","v":0},0,0,{"$f":"IFERROR(VLOOKUP($A48&$B48,CHOOSE({1,2},HA_OMT!$A$3:$A$500&HA_OMT!$B$3:$B$500,HA_OMT!$AM$3:$AM$500),2,FALSE),\"\")","v":0}]
["الكورة","E7",{"$f":"IFERROR(VLOOKUP($A49&$B49,CHOOSE({1,2},HA_OMT!$A$3:$A$500&HA_OMT!$B$3:$B$500,HA_OMT!$AK$3:$AK$500),2,FALSE),\"\")","v":0},0,0,{"$f":"IFERROR(VLOOKUP($A49&$B49,CHOOSE({1,2},HA_OMT!$A$3:$A$500&HA_OMT!$B$3:$B$500,HA_OMT!$AM$3:$AM$500),2,FALSE),\"\")","v":0}]
["زغرتا","E8",{"$f":"IFERROR(VLOOKUP($A50&$B50,CHOOSE({1,2},HA_OMT!$A$3:$A$500&HA_OMT!$B$3:$B$500,HA_OMT!$AK$3:$AK$500),2,FALSE),\"\")","v":0},0,0,{"$f":"IFERROR(VLOOKUP($A50&$B50,CHOOSE({1,2},HA_OMT!$A$3:$A$500&HA_OMT!$B$3:$B$500,HA_OMT!$AM$3:$AM$500),2,FALSE),\"\")","v":0}]
["بشري","E9",{"$f":"IFERROR(VLOOKUP($A51&$B51,CHOOSE({1,2},HA_OMT!$A$3:$A$500&HA_OMT!$B$3:$B$500,HA_OMT!$AK$3:$AK$500),2,FALSE),\"\")","v":0},0,0,{"$f":"IFERROR(VLOOKUP($A51&$B51,CHOOSE({1,2},HA_OMT!$A$3:$A$500&HA_OMT!$B$3:$B$500,HA_OMT!$AM$3:$AM$500),2,FALSE),\"\")","v":0}]
["المجموع العام",null,{"$f":"SUM(C3:C51)","v":0},{"$f":"SUM(D3:D51)","v":0},{"$f":"SUM(E3:E51)","v":0},{"$f":"SUM(F3:F51)","v":0}]

{"sheet":"ALL","index":8,"n_rows":53,"n_cols":133,"rows_kept":53,"cut":false,"hidden":false,"merged":[[0,18,0,21],[1,2,1,5],[0,2,0,5],[0,6,0,9],[0,10,0,13],[0,14,0,17],[0,62,0,65],[0,46,0,49],[1,6,1,9],[1,10,1,13],[1,14,1,17],[1,18,1,21],[1,22,1,25],[1,26,1,29],[1,30,1,33],[1,34,1,37],[1,38,1,41],[0,22,0,25],[0,26,0,29],[0,30,0,33],[0,34,0,37],[0,38,0,41],[1,42,1,45],[1,46,1,49],[0,50,0,53],[0,54,0,57],[0,58,0,61],[0,42,0,45],[0,102,0,105],[0,90,0,93],[0,94,0,97],[1,50,1,53],[1,54,1,57],[1,58,1,61],[1,62,1,65],[1,66,1,69],[1,70,1,73],[1,74,1,77],[1,78,1,81],[0,66,0,69],[0,70,0,73],[0,74,0,77],[0,78,0,81],[0,82,0,85],[1,82,1,85],[1,86,1,89],[1,90,1,93],[1,94,1,97],[0,98,0,101],[0,86,0,89],[0,106,0,109],[0,110,0,113],[0,114,0,117],[0,118,0,121],[0,122,0,125],[1,122,1,125],[1,98,1,101],[1,102,1,105],[1,106,1,109],[1,110,1,113],[1,114,1,117],[1,118,1,121]]}
[2020,"ALL","2020-12-01"]
["كانون اول","رمز","02/12/"]
[null,null,"مغلفات","هويات","مغلفات OMT","هويات OMT","مغلفات","هويات","مغلفات OMT","هويات OMT","مغلفات","هويات","مغلفات OMT","هويات OMT","مغلفات","هويات","مغلفات OMT","هويات OMT","مغلفات","هويات","مغلفات OMT","هويات OMT","مغلفات","هويات","مغلفات OMT","هويات OMT","مغلفات","هويات","مغلفات OMT","هويات OMT","مغلفات","هويات","مغلفات OMT","هويات OMT","مغلفات","هويات","مغلفات OMT","هويات OMT","مغلفات","هويات","مغلفات OMT","هويات OMT","مغلفات","هويات","مغلفات OMT","هويات OMT","مغلفات","هويات","مغلفات OMT","هويات OMT","مغلفات","هويات","مغلفات OMT","هويات OMT","مغلفات","هويات","مغلفات OMT","هويات OMT","مغلفات","هويات","مغلفات OMT","هويات OMT","مغلفات","هويات","مغلفات OMT","هويات OMT","مغلفات","هويات","مغلفات OMT","هويات OMT","مغلفات","هويات","مغلفات OMT","هويات OMT","مغلفات","هويات","مغلفات OMT","هويات OMT","مغلفات","هويات","مغلفات OMT","هويات OMT","مغلفات","هويات","مغلفات OMT","هويات OMT","مغلفات","هويات","مغلفات OMT","هويات OMT","مغلفات","هويات","مغلفات OMT","هويات OMT","مغلفات","هويات","مغلفات OMT","هويات OMT","مغلفات","هويات","مغلفات OMT","هويات OMT","مغلفات","هويات","مغلفات OMT","هويات OMT","مغلفات","هويات","مغلفات OMT","هويات OMT","مغلفات","هويات","مغلفات OMT","هويات OMT","مغلفات","هويات","مغلفات OMT","هويات OMT","مغلفات","هويات","مغلفات OMT","هويات OMT","مغلفات","هويات","مغلفات OMT","هويات OMT",null,null,null,"مغلفات","هويات","مغلفات OMT","هويات OMT"]
["بيروت","A",4,4,null,null,null,null,null,null,null,null,null,null,null,null,null,null,null,null,null,null,null,null,null,null,null,null,null,null,null,null,null,null,null,null,null,null,null,null,null,null,null,null,null,null,null,null,null,null,null,null,null,null,null,null,null,null,null,null,null,null,null,null,null,null,null,null,null,null,null,null,null,null,null,null,null,null,null,null,null,null,null,null,null,null,null,null,null,null,null,null,null,null,null,null,null,null,null,null,null,null,null,null,null,null,null,null,null,null,null,null,null,null,null,null,null,null,null,null,null,null,null,null,null,null,null,null,null,{"$f":"SUM(C4+G4+K4+O4+S4+W4+AA4+AE4+AI4+AM4+AQ4+AU4+AY4+BC4+BG4+BK4+BO4+BS4+BW4+CA4+CE4+CI4+CM4+CQ4+CU4+CY4+DC4+DG4+DK4+DO4+DS4)","v":4},{"$f":"SUM(D4+H4+L4+P4+T4+X4+AB4+AF4+AJ4+AN4+AR4+AV4+AZ4+BD4+BH4+BL4+BP4+BT4+BX4+CB4+CF4+CJ4+CN4+CR4+CV4+CZ4+DD4+DH4+DL4+DP4+DT4)","v":4},{"$f":"SUM(E4+I4+M4+Q4+U4+Y4+AC4+AG4+AK4+AO4+AS4+AW4+BA4+BE4+BI4+BM4+BQ4+BU4+BY4+CC4+CG4+CK4+CO4+CS4+CW4+DA4+DE4+DI4+DM4+DQ4+DU4)","v":0},{"$f":"SUM(F4+J4+N4+R4+V4+Z4+AD4+AH4+AL4+AP4+AT4+AX4+BB4+BF4+BJ4+BN4+BR4+BV4+BZ4+CD4+CH4+CL4+CP4+CT4+CX4+DB4+DF4+DJ4+DN4+DR4+DV4)","v":0}]
["بعبدا","B1",3,22,null,null,null,null,null,null,null,null,null,null,null,null,null,null,null,null,null,null,null,null,null,null,null,null,null,null,null,null,null,null,null,null,null,null,null,null,null,null,null,null,null,null,null,null,null,null,null,null,null,null,null,null,null,null,null,null,null,null,null,null,null,null,null,null,null,null,null,null,null,null,null,null,null,null,null,null,null,null,null,null,null,null,null,null,null,null,null,null,null,null,null,null,null,null,null,null,null,null,null,null,null,null,null,null,null,null,null,null,null,null,null,null,null,null,null,null,null,null,null,null,null,null,null,null,null,{"$f":"SUM(C5+G5+K5+O5+S5+W5+AA5+AE5+AI5+AM5+AQ5+AU5+AY5+BC5+BG5+BK5+BO5+BS5+BW5+CA5+CE5+CI5+CM5+CQ5+CU5+CY5+DC5+DG5+DK5+DO5+DS5)","v":3},{"$f":"SUM(D5+H5+L5+P5+T5+X5+AB5+AF5+AJ5+AN5+AR5+AV5+AZ5+BD5+BH5+BL5+BP5+BT5+BX5+CB5+CF5+CJ5+CN5+CR5+CV5+CZ5+DD5+DH5+DL5+DP5+DT5)","v":22},{"$f":"SUM(E5+I5+M5+Q5+U5+Y5+AC5+AG5+AK5+AO5+AS5+AW5+BA5+BE5+BI5+BM5+BQ5+BU5+BY5+CC5+CG5+CK5+CO5+CS5+CW5+DA5+DE5+DI5+DM5+DQ5+DU5)","v":0},{"$f":"SUM(F5+J5+N5+R5+V5+Z5+AD5+AH5+AL5+AP5+AT5+AX5+BB5+BF5+BJ5+BN5+BR5+BV5+BZ5+CD5+CH5+CL5+CP5+CT5+CX5+DB5+DF5+DJ5+DN5+DR5+DV5)","v":0}]
["بكفيا","B10",4,82,null,null,null,null,null,null,null,null,null,null,null,null,null,null,null,null,null,null,null,null,null,null,null,null,null,null,null,null,null,null,null,null,null,null,null,null,null,null,null,null,null,null,null,null,null,null,null,null,null,null,null,null,null,null,null,null,null,null,null,null,null,null,null,null,null,null,null,null,null,null,null,null,null,null,null,null,null,null,null,null,null,null,null,null,null,null,null,null,null,null,null,null,null,null,null,null,null,null,null,null,null,null,null,null,null,null,null,null,null,null,null,null,null,null,null,null,null,null,null,null,null,null,null,null,null,4,82,0,0]
["المتن الشمالي العالي","B11",5,9,null,null,null,null,null,null,null,null,null,null,null,null,null,null,null,null,null,null,null,null,null,null,null,null,null,null,null,null,null,null,null,null,null,null,null,null,null,null,null,null,null,null,null,null,null,null,null,null,null,null,null,null,null,null,null,null,null,null,null,null,null,null,null,null,null,null,null,null,null,null,null,null,null,null,null,null,null,null,null,null,null,null,null,null,null,null,null,null,null,null,null,null,null,null,null,null,null,null,null,null,null,null,null,null,null,null,null,null,null,null,null,null,null,null,null,null,null,null,null,null,null,null,null,null,null,5,9,0,0]
["كسروان ","B12",12,63,null,null,null,null,null,null,null,null,null,null,null,null,null,null,null,null,null,null,null,null,null,null,null,null,null,null,null,null,null,null,null,null,null,null,null,null,null,null,null,null,null,null,null,null,null,null,null,null,null,null,null,null,null,null,null,null,null,null,null,null,null,null,null,null,null,null,null,null,null,null,null,null,null,null,null,null,null,null,null,null,null,null,null,null,null,null,null,null,null,null,null,null,null,null,null,null,null,null,null,null,null,null,null,null,null,null,null,null,null,null,null,null,null,null,null,null,null,null,null,null,null,null,null,null,null,12,63,0,0]
["جبيل","B13",null,null,null,null,null,null,null,null,null,null,null,null,null,null,null,null,null,null,null,null,null,null,null,null,null,null,null,null,null,null,null,null,null,null,null,null,null,null,null,null,null,null,null,null,null,null,null,null,null,null,null,null,null,null,null,null,null,null,null,null,null,null,null,null,null,null,null,null,null,null,null,null,null,null,null,null,null,null,null,null,null,null,null,null,null,null,null,null,null,null,null,null,null,null,null,null,null,null,null,null,null,null,null,null,null,null,null,null,null,null,null,null,null,null,null,null,null,null,null,null,null,null,null,null,null,null,null,0,0,0,0]
["فتوح كسروان","B14",4,22,null,null,null,null,null,null,null,null,null,null,null,null,null,null,null,null,null,null,null,null,null,null,null,null,null,null,null,null,null,null,null,null,null,null,null,null,null,null,null,null,null,null,null,null,null,null,null,null,null,null,null,null,null,null,null,null,null,null,null,null,null,null,null,null,null,null,null,null,null,null,null,null,null,null,null,null,null,null,null,null,null,null,null,null,null,null,null,null,null,null,null,null,null,null,null,null,null,null,null,null,null,null,null,null,null,null,null,null,null,null,null,null,null,null,null,null,null,null,null,null,null,null,null,null,null,4,22,0,0]
["الشويفات","B2",8,24,null,null,null,null,null,null,null,null,null,null,null,null,null,null,null,null,null,null,null,null,null,null,null,null,null,null,null,null,null,null,null,null,null,null,null,null,null,null,null,null,null,null,null,null,null,null,null,null,null,null,null,null,null,null,null,null,null,null,null,null,null,null,null,null,null,null,null,null,null,null,null,null,null,null,null,null,null,null,null,null,null,null,null,null,null,null,null,null,null,null,null,null,null,null,null,null,null,null,null,null,null,null,null,null,null,null,null,null,null,null,null,null,null,null,null,null,null,null,null,null,null,null,null,null,null,8,24,0,0]
["برجا","B3",null,null,null,null,null,null,null,null,null,null,null,null,null,null,null,null,null,null,null,null,null,null,null,null,null,null,null,null,null,null,null,null,null,null,null,null,null,null,null,null,null,null,null,null,null,null,null,null,null,null,null,null,null,null,null,null,null,null,null,null,null,null,null,null,null,null,null,null,null,null,null,null,null,null,null,null,null,null,null,null,null,null,null,null,null,null,null,null,null,null,null,null,null,null,null,null,null,null,null,null,null,null,null,null,null,null,null,null,null,null,null,null,null,null,null,null,null,null,null,null,null,null,null,null,null,null,null,0,0,0,0]
["شحيم","B4",null,null,null,null,null,null,null,null,null,null,null,null,null,null,null,null,null,null,null,null,null,null,null,null,null,null,null,null,null,null,null,null,null,null,null,null,null,null,null,null,null,null,null,null,null,null,null,null,null,null,null,null,null,null,null,null,null,null,null,null,null,null,null,null,null,null,null,null,null,null,null,null,null,null,null,null,null,null,null,null,null,null,null,null,null,null,null,null,null,null,null,null,null,null,null,null,null,null,null,null,null,null,null,null,null,null,null,null,null,null,null,null,null,null,null,null,null,null,null,null,null,null,null,null,null,null,null,0,0,0,0]
["عاليه","B5",5,7,null,null,null,null,null,null,null,null,null,null,null,null,null,null,null,null,null,null,null,null,null,null,null,null,null,null,null,null,null,null,null,null,null,null,null,null,null,null,null,null,null,null,null,null,null,null,null,null,null,null,null,null,null,null,null,null,null,null,null,null,null,null,null,null,null,null,null,null,null,null,null,null,null,null,null,null,null,null,null,null,null,null,null,null,null,null,null,null,null,null,null,null,null,null,null,null,null,null,null,null,null,null,null,null,null,null,null,null,null,null,null,null,null,null,null,null,null,null,null,null,null,null,null,null,null,5,7,0,0]
["حمانا","B6",null,null,null,null,null,null,null,null,null,null,null,null,null,null,null,null,null,null,null,null,null,null,null,null,null,null,null,null,null,null,null,null,null,null,null,null,null,null,null,null,null,null,null,null,null,null,null,null,null,null,null,null,null,null,null,null,null,null,null,null,null,null,null,null,null,null,null,null,null,null,null,null,null,null,null,null,null,null,null,null,null,null,null,null,null,null,null,null,null,null,null,null,null,null,null,null,null,null,null,null,null,null,null,null,null,null,null,null,null,null,null,null,null,null,null,null,null,null,null,null,null,null,null,null,null,null,null,0,0,0,0]
["الشوف","B7",1,1,null,null,null,null,null,null,null,null,null,null,null,null,null,null,null,null,null,null,null,null,null,null,null,null,null,null,null,null,null,null,null,null,null,null,null,null,null,null,null,null,null,null,null,null,null,null,null,null,null,null,null,null,null,null,null,null,null,null,null,null,null,null,null,null,null,null,null,null,null,null,null,null,null,null,null,null,null,null,null,null,null,null,null,null,null,null,null,null,null,null,null,null,null,null,null,null,null,null,null,null,null,null,null,null,null,null,null,null,null,null,null,null,null,null,null,null,null,null,null,null,null,null,null,null,null,1,1,0,0]
["المتن ","B8",6,14,null,null,null,null,null,null,null,null,null,null,null,null,null,null,null,null,null,null,null,null,null,null,null,null,null,null,null,null,null,null,null,null,null,null,null,null,null,null,null,null,null,null,null,null,null,null,null,null,null,null,null,null,null,null,null,null,null,null,null,null,null,null,null,null,null,null,null,null,null,null,null,null,null,null,null,null,null,null,null,null,null,null,null,null,null,null,null,null,null,null,null,null,null,null,null,null,null,null,null,null,null,null,null,null,null,null,null,null,null,null,null,null,null,null,null,null,null,null,null,null,null,null,null,null,null,6,14,0,0]
["انطلياس","B9",7,28,null,null,null,null,null,null,null,null,null,null,null,null,null,null,null,null,null,null,null,null,null,null,null,null,null,null,null,null,null,null,null,null,null,null,null,null,null,null,null,null,null,null,null,null,null,null,null,null,null,null,null,null,null,null,null,null,null,null,null,null,null,null,null,null,null,null,null,null,null,null,null,null,null,null,null,null,null,null,null,null,null,null,null,null,null,null,null,null,null,null,null,null,null,null,null,null,null,null,null,null,null,null,null,null,null,null,null,null,null,null,null,null,null,null,null,null,null,null,null,null,null,null,null,null,null,7,28,0,0]
["صيدا","C1",null,null,null,null,null,null,null,null,null,null,null,null,null,null,null,null,null,null,null,null,null,null,null,null,null,null,null,null,null,null,null,null,null,null,null,null,null,null,null,null,null,null,null,null,null,null,null,null,null,null,null,null,null,null,null,null,null,null,null,null,null,null,null,null,null,null,null,null,null,null,null,null,null,null,null,null,null,null,null,null,null,null,null,null,null,null,null,null,null,null,null,null,null,null,null,null,null,null,null,null,null,null,null,null,null,null,null,null,null,null,null,null,null,null,null,null,null,null,null,null,null,null,null,null,null,null,null,0,0,0,0]
["جويا","C10",null,null,null,null,null,null,null,null,null,null,null,null,null,null,null,null,null,null,null,null,null,null,null,null,null,null,null,null,null,null,null,null,null,null,null,null,null,null,null,null,null,null,null,null,null,null,null,null,null,null,null,null,null,null,null,null,null,null,null,null,null,null,null,null,null,null,null,null,null,null,null,null,null,null,null,null,null,null,null,null,null,null,null,null,null,null,null,null,null,null,null,null,null,null,null,null,null,null,null,null,null,null,null,null,null,null,null,null,null,null,null,null,null,null,null,null,null,null,null,null,null,null,null,null,null,null,null,0,0,0,0]
["ميس الجبل","C11",null,null,null,null,null,null,null,null,null,null,null,null,null,null,null,null,null,null,null,null,null,null,null,null,null,null,null,null,null,null,null,null,null,null,null,null,null,null,null,null,null,null,null,null,null,null,null,null,null,null,null,null,null,null,null,null,null,null,null,null,null,null,null,null,null,null,null,null,null,null,null,null,null,null,null,null,null,null,null,null,null,null,null,null,null,null,null,null,null,null,null,null,null,null,null,null,null,null,null,null,null,null,null,null,null,null,null,null,null,null,null,null,null,null,null,null,null,null,null,null,null,null,null,null,null,null,null,0,0,0,0]
["صور","C2",null,null,null,null,null,null,null,null,null,null,null,null,null,null,null,null,null,null,null,null,null,null,null,null,null,null,null,null,null,null,null,null,null,null,null,null,null,null,null,null,null,null,null,null,null,null,null,null,null,null,null,null,null,null,null,null,null,null,null,null,null,null,null,null,null,null,null,null,null,null,null,null,null,null,null,null,null,null,null,null,null,null,null,null,null,null,null,null,null,null,null,null,null,null,null,null,null,null,null,null,null,null,null,null,null,null,null,null,null,null,null,null,null,null,null,null,null,null,null,null,null,null,null,null,null,null,null,0,0,0,0]
["جزين","C3",null,null,null,null,null,null,null,null,null,null,null,null,null,null,null,null,null,null,null,null,null,null,null,null,null,null,null,null,null,null,null,null,null,null,null,null,null,null,null,null,null,null,null,null,null,null,null,null,null,null,null,null,null,null,null,null,null,null,null,null,null,null,null,null,null,null,null,null,null,null,null,null,null,null,null,null,null,null,null,null,null,null,null,null,null,null,null,null,null,null,null,null,null,null,null,null,null,null,null,null,null,null,null,null,null,null,null,null,null,null,null,null,null,null,null,null,null,null,null,null,null,null,null,null,null,null,null,0,0,0,0]
["النبطية","C4",2,2,null,null,null,null,null,null,null,null,null,null,null,null,null,null,null,null,null,null,null,null,null,null,null,null,null,null,null,null,null,null,null,null,null,null,null,null,null,null,null,null,null,null,null,null,null,null,null,null,null,null,null,null,null,null,null,null,null,null,null,null,null,null,null,null,null,null,null,null,null,null,null,null,null,null,null,null,null,null,null,null,null,null,null,null,null,null,null,null,null,null,null,null,null,null,null,null,null,null,null,null,null,null,null,null,null,null,null,null,null,null,null,null,null,null,null,null,null,null,null,null,null,null,null,null,null,2,2,0,0]
["بنت جبيل","C5",2,3,null,null,null,null,null,null,null,null,null,null,null,null,null,null,null,null,null,null,null,null,null,null,null,null,null,null,null,null,null,null,null,null,null,null,null,null,null,null,null,null,null,null,null,null,null,null,null,null,null,null,null,null,null,null,null,null,null,null,null,null,null,null,null,null,null,null,null,null,null,null,null,null,null,null,null,null,null,null,null,null,null,null,null,null,null,null,null,null,null,null,null,null,null,null,null,null,null,null,null,null,null,null,null,null,null,null,null,null,null,null,null,null,null,null,null,null,null,null,null,null,null,null,null,null,null,2,3,0,0]
["مرجعيون","C6",null,null,null,null,null,null,null,null,null,null,null,null,null,null,null,null,null,null,null,null,null,null,null,null,null,null,null,null,null,null,null,null,null,null,null,null,null,null,null,null,null,null,null,null,null,null,null,null,null,null,null,null,null,null,null,null,null,null,null,null,null,null,null,null,null,null,null,null,null,null,null,null,null,null,null,null,null,null,null,null,null,null,null,null,null,null,null,null,null,null,null,null,null,null,null,null,null,null,null,null,null,null,null,null,null,null,null,null,null,null,null,null,null,null,null,null,null,null,null,null,null,null,null,null,null,null,null,0,0,0,0]
["حاصبيا","C7",null,null,null,null,null,null,null,null,null,null,null,null,null,null,null,null,null,null,null,null,null,null,null,null,null,null,null,null,null,null,null,null,null,null,null,null,null,null,null,null,null,null,null,null,null,null,null,null,null,null,null,null,null,null,null,null,null,null,null,null,null,null,null,null,null,null,null,null,null,null,null,null,null,null,null,null,null,null,null,null,null,null,null,null,null,null,null,null,null,null,null,null,null,null,null,null,null,null,null,null,null,null,null,null,null,null,null,null,null,null,null,null,null,null,null,null,null,null,null,null,null,null,null,null,null,null,null,0,0,0,0]
["تبنين","C8",2,3,null,null,null,null,null,null,null,null,null,null,null,null,null,null,null,null,null,null,null,null,null,null,null,null,null,null,null,null,null,null,null,null,null,null,null,null,null,null,null,null,null,null,null,null,null,null,null,null,null,null,null,null,null,null,null,null,null,null,null,null,null,null,null,null,null,null,null,null,null,null,null,null,null,null,null,null,null,null,null,null,null,null,null,null,null,null,null,null,null,null,null,null,null,null,null,null,null,null,null,null,null,null,null,null,null,null,null,null,null,null,null,null,null,null,null,null,null,null,null,null,null,null,null,null,null,2,3,0,0]
["جباع","C9",1,1,null,null,null,null,null,null,null,null,null,null,null,null,null,null,null,null,null,null,null,null,null,null,null,null,null,null,null,null,null,null,null,null,null,null,null,null,null,null,null,null,null,null,null,null,null,null,null,null,null,null,null,null,null,null,null,null,null,null,null,null,null,null,null,null,null,null,null,null,null,null,null,null,null,null,null,null,null,null,null,null,null,null,null,null,null,null,null,null,null,null,null,null,null,null,null,null,null,null,null,null,null,null,null,null,null,null,null,null,null,null,null,null,null,null,null,null,null,null,null,null,null,null,null,null,null,1,1,0,0]
["زحلة","D1",4,21,null,null,null,null,null,null,null,null,null,null,null,null,null,null,null,null,null,null,null,null,null,null,null,null,null,null,null,null,null,null,null,null,null,null,null,null,null,null,null,null,null,null,null,null,null,null,null,null,null,null,null,null,null,null,null,null,null,null,null,null,null,null,null,null,null,null,null,null,null,null,null,null,null,null,null,null,null,null,null,null,null,null,null,null,null,null,null,null,null,null,null,null,null,null,null,null,null,null,null,null,null,null,null,null,null,null,null,null,null,null,null,null,null,null,null,null,null,null,null,null,null,null,null,null,null,4,21,0,0]
["النبي شيت","D10",11,68,null,null,null,null,null,null,null,null,null,null,null,null,null,null,null,null,null,null,null,null,null,null,null,null,null,null,null,null,null,null,null,null,null,null,null,null,null,null,null,null,null,null,null,null,null,null,null,null,null,null,null,null,null,null,null,null,null,null,null,null,null,null,null,null,null,null,null,null,null,null,null,null,null,null,null,null,null,null,null,null,null,null,null,null,null,null,null,null,null,null,null,null,null,null,null,null,null,null,null,null,null,null,null,null,null,null,null,null,null,null,null,null,null,null,null,null,null,null,null,null,null,null,null,null,null,11,68,0,0]
["راشيا","D2",null,null,null,null,null,null,null,null,null,null,null,null,null,null,null,null,null,null,null,null,null,null,null,null,null,null,null,null,null,null,null,null,null,null,null,null,null,null,null,null,null,null,null,null,null,null,null,null,null,null,null,null,null,null,null,null,null,null,null,null,null,null,null,null,null,null,null,null,null,null,null,null,null,null,null,null,null,null,null,null,null,null,null,null,null,null,null,null,null,null,null,null,null,null,null,null,null,null,null,null,null,null,null,null,null,null,null,null,null,null,null,null,null,null,null,null,null,null,null,null,null,null,null,null,null,null,null,0,0,0,0]
["البقاع الغربي","D3",2,4,null,null,null,null,null,null,null,null,null,null,null,null,null,null,null,null,null,null,null,null,null,null,null,null,null,null,null,null,null,null,null,null,null,null,null,null,null,null,null,null,null,null,null,null,null,null,null,null,null,null,null,null,null,null,null,null,null,null,null,null,null,null,null,null,null,null,null,null,null,null,null,null,null,null,null,null,null,null,null,null,null,null,null,null,null,null,null,null,null,null,null,null,null,null,null,null,null,null,null,null,null,null,null,null,null,null,null,null,null,null,null,null,null,null,null,null,null,null,null,null,null,null,null,null,null,2,4,0,0]
["شمسطار","D4",5,10,null,null,null,null,null,null,null,null,null,null,null,null,null,null,null,null,null,null,null,null,null,null,null,null,null,null,null,null,null,null,null,null,null,null,null,null,null,null,null,null,null,null,null,null,null,null,null,null,null,null,null,null,null,null,null,null,null,null,null,null,null,null,null,null,null,null,null,null,null,null,null,null,null,null,null,null,null,null,null,null,null,null,null,null,null,null,null,null,null,null,null,null,null,null,null,null,null,null,null,null,null,null,null,null,null,null,null,null,null,null,null,null,null,null,null,null,null,null,null,null,null,null,null,null,null,5,10,0,0]
["بعلبك","D5",19,58,null,null,null,null,null,null,null,null,null,null,null,null,null,null,null,null,null,null,null,null,null,null,null,null,null,null,null,null,null,null,null,null,null,null,null,null,null,null,null,null,null,null,null,null,null,null,null,null,null,null,null,null,null,null,null,null,null,null,null,null,null,null,null,null,null,null,null,null,null,null,null,null,null,null,null,null,null,null,null,null,null,null,null,null,null,null,null,null,null,null,null,null,null,null,null,null,null,null,null,null,null,null,null,null,null,null,null,null,null,null,null,null,null,null,null,null,null,null,null,null,null,null,null,null,null,19,58,0,0]
["الهرمل","D6",null,null,null,null,null,null,null,null,null,null,null,null,null,null,null,null,null,null,null,null,null,null,null,null,null,null,null,null,null,null,null,null,null,null,null,null,null,null,null,null,null,null,null,null,null,null,null,null,null,null,null,null,null,null,null,null,null,null,null,null,null,null,null,null,null,null,null,null,null,null,null,null,null,null,null,null,null,null,null,null,null,null,null,null,null,null,null,null,null,null,null,null,null,null,null,null,null,null,null,null,null,null,null,null,null,null,null,null,null,null,null,null,null,null,null,null,null,null,null,null,null,null,null,null,null,null,null,0,0,0,0]
["دير الاحمر","D7",6,14,null,null,null,null,null,null,null,null,null,null,null,null,null,null,null,null,null,null,null,null,null,null,null,null,null,null,null,null,null,null,null,null,null,null,null,null,null,null,null,null,null,null,null,null,null,null,null,null,null,null,null,null,null,null,null,null,null,null,null,null,null,null,null,null,null,null,null,null,null,null,null,null,null,null,null,null,null,null,null,null,null,null,null,null,null,null,null,null,null,null,null,null,null,null,null,null,null,null,null,null,null,null,null,null,null,null,null,null,null,null,null,null,null,null,null,null,null,null,null,null,null,null,null,null,null,6,14,0,0]
["اللبوة","D8",null,null,null,null,null,null,null,null,null,null,null,null,null,null,null,null,null,null,null,null,null,null,null,null,null,null,null,null,null,null,null,null,null,null,null,null,null,null,null,null,null,null,null,null,null,null,null,null,null,null,null,null,null,null,null,null,null,null,null,null,null,null,null,null,null,null,null,null,null,null,null,null,null,null,null,null,null,null,null,null,null,null,null,null,null,null,null,null,null,null,null,null,null,null,null,null,null,null,null,null,null,null,null,null,null,null,null,null,null,null,null,null,null,null,null,null,null,null,null,null,null,null,null,null,null,null,null,0,0,0,0]
["صغبين","D9",2,2,null,null,null,null,null,null,null,null,null,null,null,null,null,null,null,null,null,null,null,null,null,null,null,null,null,null,null,null,null,null,null,null,null,null,null,null,null,null,null,null,null,null,null,null,null,null,null,null,null,null,null,null,null,null,null,null,null,null,null,null,null,null,null,null,null,null,null,null,null,null,null,null,null,null,null,null,null,null,null,null,null,null,null,null,null,null,null,null,null,null,null,null,null,null,null,null,null,null,null,null,null,null,null,null,null,null,null,null,null,null,null,null,null,null,null,null,null,null,null,null,null,null,null,null,null,2,2,0,0]
["طرابلس","E1",4,7,null,null,null,null,null,null,null,null,null,null,null,null,null,null,null,null,null,null,null,null,null,null,null,null,null,null,null,null,null,null,null,null,null,null,null,null,null,null,null,null,null,null,null,null,null,null,null,null,null,null,null,null,null,null,null,null,null,null,null,null,null,null,null,null,null,null,null,null,null,null,null,null,null,null,null,null,null,null,null,null,null,null,null,null,null,null,null,null,null,null,null,null,null,null,null,null,null,null,null,null,null,null,null,null,null,null,null,null,null,null,null,null,null,null,null,null,null,null,null,null,null,null,null,null,null,4,7,0,0]
["دوما","E10",4,9,null,null,null,null,null,null,null,null,null,null,null,null,null,null,null,null,null,null,null,null,null,null,null,null,null,null,null,null,null,null,null,null,null,null,null,null,null,null,null,null,null,null,null,null,null,null,null,null,null,null,null,null,null,null,null,null,null,null,null,null,null,null,null,null,null,null,null,null,null,null,null,null,null,null,null,null,null,null,null,null,null,null,null,null,null,null,null,null,null,null,null,null,null,null,null,null,null,null,null,null,null,null,null,null,null,null,null,null,null,null,null,null,null,null,null,null,null,null,null,null,null,null,null,null,null,4,9,0,0]
["العبدة","E11",null,null,null,null,null,null,null,null,null,null,null,null,null,null,null,null,null,null,null,null,null,null,null,null,null,null,null,null,null,null,null,null,null,null,null,null,null,null,null,null,null,null,null,null,null,null,null,null,null,null,null,null,null,null,null,null,null,null,null,null,null,null,null,null,null,null,null,null,null,null,null,null,null,null,null,null,null,null,null,null,null,null,null,null,null,null,null,null,null,null,null,null,null,null,null,null,null,null,null,null,null,null,null,null,null,null,null,null,null,null,null,null,null,null,null,null,null,null,null,null,null,null,null,null,null,null,null,0,0,0,0]
["بخعون","E12",null,null,null,null,null,null,null,null,null,null,null,null,null,null,null,null,null,null,null,null,null,null,null,null,null,null,null,null,null,null,null,null,null,null,null,null,null,null,null,null,null,null,null,null,null,null,null,null,null,null,null,null,null,null,null,null,null,null,null,null,null,null,null,null,null,null,null,null,null,null,null,null,null,null,null,null,null,null,null,null,null,null,null,null,null,null,null,null,null,null,null,null,null,null,null,null,null,null,null,null,null,null,null,null,null,null,null,null,null,null,null,null,null,null,null,null,null,null,null,null,null,null,null,null,null,null,null,0,0,0,0]
["بيت ملات","E13",null,null,null,null,null,null,null,null,null,null,null,null,null,null,null,null,null,null,null,null,null,null,null,null,null,null,null,null,null,null,null,null,null,null,null,null,null,null,null,null,null,null,null,null,null,null,null,null,null,null,null,null,null,null,null,null,null,null,null,null,null,null,null,null,null,null,null,null,null,null,null,null,null,null,null,null,null,null,null,null,null,null,null,null,null,null,null,null,null,null,null,null,null,null,null,null,null,null,null,null,null,null,null,null,null,null,null,null,null,null,null,null,null,null,null,null,null,null,null,null,null,null,null,null,null,null,null,0,0,0,0]
["المنية","E2",1,2,null,null,null,null,null,null,null,null,null,null,null,null,null,null,null,null,null,null,null,null,null,null,null,null,null,null,null,null,null,null,null,null,null,null,null,null,null,null,null,null,null,null,null,null,null,null,null,null,null,null,null,null,null,null,null,null,null,null,null,null,null,null,null,null,null,null,null,null,null,null,null,null,null,null,null,null,null,null,null,null,null,null,null,null,null,null,null,null,null,null,null,null,null,null,null,null,null,null,null,null,null,null,null,null,null,null,null,null,null,null,null,null,null,null,null,null,null,null,null,null,null,null,null,null,null,1,2,0,0]
["سير الضنية","E3",2,2,null,null,null,null,null,null,null,null,null,null,null,null,null,null,null,null,null,null,null,null,null,null,null,null,null,null,null,null,null,null,null,null,null,null,null,null,null,null,null,null,null,null,null,null,null,null,null,null,null,null,null,null,null,null,null,null,null,null,null,null,null,null,null,null,null,null,null,null,null,null,null,null,null,null,null,null,null,null,null,null,null,null,null,null,null,null,null,null,null,null,null,null,null,null,null,null,null,null,null,null,null,null,null,null,null,null,null,null,null,null,null,null,null,null,null,null,null,null,null,null,null,null,null,null,null,2,2,0,0]
["حلبا عكار","E4",null,null,null,null,null,null,null,null,null,null,null,null,null,null,null,null,null,null,null,null,null,null,null,null,null,null,null,null,null,null,null,null,null,null,null,null,null,null,null,null,null,null,null,null,null,null,null,null,null,null,null,null,null,null,null,null,null,null,null,null,null,null,null,null,null,null,null,null,null,null,null,null,null,null,null,null,null,null,null,null,null,null,null,null,null,null,null,null,null,null,null,null,null,null,null,null,null,null,null,null,null,null,null,null,null,null,null,null,null,null,null,null,null,null,null,null,null,null,null,null,null,null,null,null,null,null,null,0,0,0,0]
["القبيات","E5",null,null,null,null,null,null,null,null,null,null,null,null,null,null,null,null,null,null,null,null,null,null,null,null,null,null,null,null,null,null,null,null,null,null,null,null,null,null,null,null,null,null,null,null,null,null,null,null,null,null,null,null,null,null,null,null,null,null,null,null,null,null,null,null,null,null,null,null,null,null,null,null,null,null,null,null,null,null,null,null,null,null,null,null,null,null,null,null,null,null,null,null,null,null,null,null,null,null,null,null,null,null,null,null,null,null,null,null,null,null,null,null,null,null,null,null,null,null,null,null,null,null,null,null,null,null,null,0,0,0,0]
["البترون","E6",3,8,null,null,null,null,null,null,null,null,null,null,null,null,null,null,null,null,null,null,null,null,null,null,null,null,null,null,null,null,null,null,null,null,null,null,null,null,null,null,null,null,null,null,null,null,null,null,null,null,null,null,null,null,null,null,null,null,null,null,null,null,null,null,null,null,null,null,null,null,null,null,null,null,null,null,null,null,null,null,null,null,null,null,null,null,null,null,null,null,null,null,null,null,null,null,null,null,null,null,null,null,null,null,null,null,null,null,null,null,null,null,null,null,null,null,null,null,null,null,null,null,null,null,null,null,null,3,8,0,0]
["الكورة","E7",5,36,null,null,null,null,null,null,null,null,null,null,null,null,null,null,null,null,null,null,null,null,null,null,null,null,null,null,null,null,null,null,null,null,null,null,null,null,null,null,null,null,null,null,null,null,null,null,null,null,null,null,null,null,null,null,null,null,null,null,null,null,null,null,null,null,null,null,null,null,null,null,null,null,null,null,null,null,null,null,null,null,null,null,null,null,null,null,null,null,null,null,null,null,null,null,null,null,null,null,null,null,null,null,null,null,null,null,null,null,null,null,null,null,null,null,null,null,null,null,null,null,null,null,null,null,null,5,36,0,0]
["زغرتا","E8",1,2,null,null,null,null,null,null,null,null,null,null,null,null,null,null,null,null,null,null,null,null,null,null,null,null,null,null,null,null,null,null,null,null,null,null,null,null,null,null,null,null,null,null,null,null,null,null,null,null,null,null,null,null,null,null,null,null,null,null,null,null,null,null,null,null,null,null,null,null,null,null,null,null,null,null,null,null,null,null,null,null,null,null,null,null,null,null,null,null,null,null,null,null,null,null,null,null,null,null,null,null,null,null,null,null,null,null,null,null,null,null,null,null,null,null,null,null,null,null,null,null,null,null,null,null,null,1,2,0,0]
["بشري","E9",4,22,null,null,null,null,null,null,null,null,null,null,null,null,null,null,null,null,null,null,null,null,null,null,null,null,null,null,null,null,null,null,null,null,null,null,null,null,null,null,null,null,null,null,null,null,null,null,null,null,null,null,null,null,null,null,null,null,null,null,null,null,null,null,null,null,null,null,null,null,null,null,null,null,null,null,null,null,null,null,null,null,null,null,null,null,null,null,null,null,null,null,null,null,null,null,null,null,null,null,null,null,null,null,null,null,null,null,null,null,null,null,null,null,null,null,null,null,null,null,null,null,null,null,null,null,null,4,22,0,0]
["المجموع",null,{"$f":"SUM(C4:C52)","v":139},{"$f":"SUM(D4:D52)","v":550},{"$f":"SUM(E4:E52)","v":0},{"$f":"SUM(F4:F52)","v":0},{"$f":"SUM(G4:G52)","v":0},0,0,0,0,0,0,0,0,0,0,0,0,0,0,0,0,0,0,0,0,0,0,0,0,0,0,0,0,0,0,0,0,0,0,0,0,0,0,0,0,0,0,0,{"$f":"SUM(AY4:AY52)","v":0},{"$f":"SUM(AZ4:AZ52)","v":0},{"$f":"SUM(BA4:BA52)","v":0},{"$f":"SUM(BB4:BB52)","v":0},{"$f":"SUM(BC4:BC52)","v":0},{"$f":"SUM(BD4:BD52)","v":0},{"$f":"SUM(BE4:BE52)","v":0},{"$f":"SUM(BF4:BF52)","v":0},{"$f":"SUM(BG4:BG52)","v":0},{"$f":"SUM(BH4:BH52)","v":0},{"$f":"SUM(BI4:BI52)","v":0},{"$f":"SUM(BJ4:BJ52)","v":0},{"$f":"SUM(BK4:BK52)","v":0},{"$f":"SUM(BL4:BL52)","v":0},{"$f":"SUM(BM4:BM52)","v":0},{"$f":"SUM(BN4:BN52)","v":0},{"$f":"SUM(BO4:BO52)","v":0},{"$f":"SUM(BP4:BP52)","v":0},{"$f":"SUM(BQ4:BQ52)","v":0},{"$f":"SUM(BR4:BR52)","v":0},{"$f":"SUM(BS4:BS52)","v":0},{"$f":"SUM(BT4:BT52)","v":0},{"$f":"SUM(BU4:BU52)","v":0},{"$f":"SUM(BV4:BV52)","v":0},{"$f":"SUM(BW4:BW52)","v":0},{"$f":"SUM(BX4:BX52)","v":0},{"$f":"SUM(BY4:BY52)","v":0},{"$f":"SUM(BZ4:BZ52)","v":0},{"$f":"SUM(CA4:CA52)","v":0},{"$f":"SUM(CB4:CB52)","v":0},{"$f":"SUM(CC4:CC52)","v":0},{"$f":"SUM(CD4:CD52)","v":0},{"$f":"SUM(CE4:CE52)","v":0},{"$f":"SUM(CF4:CF52)","v":0},{"$f":"SUM(CG4:CG52)","v":0},{"$f":"SUM(CH4:CH52)","v":0},{"$f":"SUM(CI4:CI52)","v":0},{"$f":"SUM(CJ4:CJ52)","v":0},{"$f":"SUM(CK4:CK52)","v":0},{"$f":"SUM(CL4:CL52)","v":0},{"$f":"SUM(CM4:CM52)","v":0},{"$f":"SUM(CN4:CN52)","v":0},{"$f":"SUM(CO4:CO52)","v":0},{"$f":"SUM(CP4:CP52)","v":0},{"$f":"SUM(CQ4:CQ52)","v":0},{"$f":"SUM(CR4:CR52)","v":0},{"$f":"SUM(CS4:CS52)","v":0},{"$f":"SUM(CT4:CT52)","v":0},{"$f":"SUM(CU4:CU52)","v":0},{"$f":"SUM(CV4:CV52)","v":0},{"$f":"SUM(CW4:CW52)","v":0},{"$f":"SUM(CX4:CX52)","v":0},{"$f":"SUM(CY4:CY52)","v":0},{"$f":"SUM(CZ4:CZ52)","v":0},{"$f":"SUM(DA4:DA52)","v":0},{"$f":"SUM(DB4:DB52)","v":0},{"$f":"SUM(DC4:DC52)","v":0},{"$f":"SUM(DD4:DD52)","v":0},{"$f":"SUM(DE4:DE52)","v":0},{"$f":"SUM(DF4:DF52)","v":0},{"$f":"SUM(DG4:DG52)","v":0},{"$f":"SUM(DH4:DH52)","v":0},{"$f":"SUM(DI4:DI52)","v":0},{"$f":"SUM(DJ4:DJ52)","v":0},{"$f":"SUM(DK4:DK52)","v":0},{"$f":"SUM(DL4:DL52)","v":0},{"$f":"SUM(DM4:DM52)","v":0},{"$f":"SUM(DN4:DN52)","v":0},{"$f":"SUM(DO4:DO52)","v":0},{"$f":"SUM(DP4:DP52)","v":0},{"$f":"SUM(DQ4:DQ52)","v":0},{"$f":"SUM(DR4:DR52)","v":0},{"$f":"SUM(DS4:DS52)","v":0},{"$f":"SUM(DT4:DT52)","v":0},{"$f":"SUM(DU4:DU52)","v":0},{"$f":"SUM(DV4:DV52)","v":0},null,null,null,139,550,0,0]

{"sheet":"جدول تسليم البطاقات","index":9,"n_rows":41,"n_cols":11,"rows_kept":41,"cut":false,"hidden":false,"merged":[[39,0,39,4],[39,6,39,10],[40,0,40,4],[40,6,40,10],[8,0,8,10],[9,0,9,10],[10,0,11,0],[10,6,11,6],[38,0,38,4],[38,6,38,10]]}
["وزارة الداخــلية والبلــديات"]
["المديرية العامة للاحوال الشخصية",null,null,null,null,null,"جانب: رئيس دائرة التنسيق والمراقبة ."]
[]
["رقم المحفوظات:"]
["رقم الصادر:"]
[null,null,null,null,null,"الموضوع: بيان بحركة استمارات وبطاقات الهوية في مشغل بطاقة الهوية ."]
[null,null,null,null,null,"المرجع: المذكرة رقم 3/ص تاريخ 2007/3/9 ."]
[]
["نودعكم بياناً بعدد بطاقات الهوية المسلمة الى اقلام النفوس وعدد الاستمارات المسلمة الينا من "]
["                         قبل  هذه  الاقلام  خلال  شهر كانون الاول   من  العـام   2020"]
["اقلام النفوس",null,"عدد الهويات ","استمارات","عدد الاستمارات ",null,"اقلام النفوس",null,"عدد الهويات","استمارات","عدد الاستمارات"]
[null,null,"المسلمة الى القلم","محطة التبصيم","المستلمة من القلم",null,null,null," المسلمة الى القلم","محطة التبصيم"," المستلمة من القلم"]
["بيروت","A",{"$f":"IFERROR(VLOOKUP($A13&$B13,CHOOSE({1,2},HA!$A$3:$A$500&HA!$B$3:$B$500,HA!$AK$3:$AK$500),2,FALSE),\"\")","v":4},null,null,null,"جباع","C9",{"$f":"IFERROR(VLOOKUP($G13&$H13,CHOOSE({1,2},HA!$A$28:$A$500&HA!$B$28:$B$500,HA!$AK$28:$AK$500),2,FALSE),\"\")","v":1}]
["بعبدا","B1",{"$f":"IFERROR(VLOOKUP($A14&$B14,CHOOSE({1,2},HA!$A$3:$A$500&HA!$B$3:$B$500,HA!$AK$3:$AK$500),2,FALSE),\"\")","v":22},null,null,null,"زحلة","D1",{"$f":"IFERROR(VLOOKUP($G14&$H14,CHOOSE({1,2},HA!$A$28:$A$500&HA!$B$28:$B$500,HA!$AK$28:$AK$500),2,FALSE),\"\")","v":21}]
["بكفيا","B10",{"$f":"IFERROR(VLOOKUP($A15&$B15,CHOOSE({1,2},HA!$A$3:$A$500&HA!$B$3:$B$500,HA!$AK$3:$AK$500),2,FALSE),\"\")","v":82},null,null,null,"النبي شيت","D10",{"$f":"IFERROR(VLOOKUP($G15&$H15,CHOOSE({1,2},HA!$A$28:$A$500&HA!$B$28:$B$500,HA!$AK$28:$AK$500),2,FALSE),\"\")","v":68}]
["المتن الشمالي العالي","B11",{"$f":"IFERROR(VLOOKUP($A16&$B16,CHOOSE({1,2},HA!$A$3:$A$500&HA!$B$3:$B$500,HA!$AK$3:$AK$500),2,FALSE),\"\")","v":9},null,null,null,"راشيا","D2",{"$f":"IFERROR(VLOOKUP($G16&$H16,CHOOSE({1,2},HA!$A$28:$A$500&HA!$B$28:$B$500,HA!$AK$28:$AK$500),2,FALSE),\"\")","v":0}]
["كسروان ","B12",{"$f":"IFERROR(VLOOKUP($A17&$B17,CHOOSE({1,2},HA!$A$3:$A$500&HA!$B$3:$B$500,HA!$AK$3:$AK$500),2,FALSE),\"\")","v":63},null,null,null,"البقاع الغربي","D3",{"$f":"IFERROR(VLOOKUP($G17&$H17,CHOOSE({1,2},HA!$A$28:$A$500&HA!$B$28:$B$500,HA!$AK$28:$AK$500),2,FALSE),\"\")","v":4}]
["جبيل","B13",{"$f":"IFERROR(VLOOKUP($A18&$B18,CHOOSE({1,2},HA!$A$3:$A$500&HA!$B$3:$B$500,HA!$AK$3:$AK$500),2,FALSE),\"\")","v":0},null,null,null,"شمسطار","D4",{"$f":"IFERROR(VLOOKUP($G18&$H18,CHOOSE({1,2},HA!$A$28:$A$500&HA!$B$28:$B$500,HA!$AK$28:$AK$500),2,FALSE),\"\")","v":10}]
["فتوح كسروان","B14",{"$f":"IFERROR(VLOOKUP($A19&$B19,CHOOSE({1,2},HA!$A$3:$A$500&HA!$B$3:$B$500,HA!$AK$3:$AK$500),2,FALSE),\"\")","v":22},null,null,null,"بعلبك","D5",{"$f":"IFERROR(VLOOKUP($G19&$H19,CHOOSE({1,2},HA!$A$28:$A$500&HA!$B$28:$B$500,HA!$AK$28:$AK$500),2,FALSE),\"\")","v":58}]
["الشويفات","B2",{"$f":"IFERROR(VLOOKUP($A20&$B20,CHOOSE({1,2},HA!$A$3:$A$500&HA!$B$3:$B$500,HA!$AK$3:$AK$500),2,FALSE),\"\")","v":24},null,null,null,"الهرمل","D6",{"$f":"IFERROR(VLOOKUP($G20&$H20,CHOOSE({1,2},HA!$A$28:$A$500&HA!$B$28:$B$500,HA!$AK$28:$AK$500),2,FALSE),\"\")","v":0}]
["برجا","B3",{"$f":"IFERROR(VLOOKUP($A21&$B21,CHOOSE({1,2},HA!$A$3:$A$500&HA!$B$3:$B$500,HA!$AK$3:$AK$500),2,FALSE),\"\")","v":0},null,null,null,"دير الاحمر","D7",{"$f":"IFERROR(VLOOKUP($G21&$H21,CHOOSE({1,2},HA!$A$28:$A$500&HA!$B$28:$B$500,HA!$AK$28:$AK$500),2,FALSE),\"\")","v":14}]
["شحيم","B4",{"$f":"IFERROR(VLOOKUP($A22&$B22,CHOOSE({1,2},HA!$A$3:$A$500&HA!$B$3:$B$500,HA!$AK$3:$AK$500),2,FALSE),\"\")","v":0},null,null,null,"اللبوة","D8",{"$f":"IFERROR(VLOOKUP($G22&$H22,CHOOSE({1,2},HA!$A$28:$A$500&HA!$B$28:$B$500,HA!$AK$28:$AK$500),2,FALSE),\"\")","v":0}]
["عاليه","B5",{"$f":"IFERROR(VLOOKUP($A23&$B23,CHOOSE({1,2},HA!$A$3:$A$500&HA!$B$3:$B$500,HA!$AK$3:$AK$500),2,FALSE),\"\")","v":7},null,null,null,"صغبين","D9",{"$f":"IFERROR(VLOOKUP($G23&$H23,CHOOSE({1,2},HA!$A$28:$A$500&HA!$B$28:$B$500,HA!$AK$28:$AK$500),2,FALSE),\"\")","v":2}]
["حمانا","B6",{"$f":"IFERROR(VLOOKUP($A24&$B24,CHOOSE({1,2},HA!$A$3:$A$500&HA!$B$3:$B$500,HA!$AK$3:$AK$500),2,FALSE),\"\")","v":0},null,null,null,"طرابلس","E1",{"$f":"IFERROR(VLOOKUP($G24&$H24,CHOOSE({1,2},HA!$A$28:$A$500&HA!$B$28:$B$500,HA!$AK$28:$AK$500),2,FALSE),\"\")","v":7}]
["الشوف","B7",{"$f":"IFERROR(VLOOKUP($A25&$B25,CHOOSE({1,2},HA!$A$3:$A$500&HA!$B$3:$B$500,HA!$AK$3:$AK$500),2,FALSE),\"\")","v":1},null,null,null,"دوما","E10",{"$f":"IFERROR(VLOOKUP($G25&$H25,CHOOSE({1,2},HA!$A$28:$A$500&HA!$B$28:$B$500,HA!$AK$28:$AK$500),2,FALSE),\"\")","v":9}]
["المتن ","B8",{"$f":"IFERROR(VLOOKUP($A26&$B26,CHOOSE({1,2},HA!$A$3:$A$500&HA!$B$3:$B$500,HA!$AK$3:$AK$500),2,FALSE),\"\")","v":14},null,null,null,"العبدة","E11",{"$f":"IFERROR(VLOOKUP($G26&$H26,CHOOSE({1,2},HA!$A$28:$A$500&HA!$B$28:$B$500,HA!$AK$28:$AK$500),2,FALSE),\"\")","v":0}]
["انطلياس","B9",{"$f":"IFERROR(VLOOKUP($A27&$B27,CHOOSE({1,2},HA!$A$3:$A$500&HA!$B$3:$B$500,HA!$AK$3:$AK$500),2,FALSE),\"\")","v":28},null,null,null,"بخعون","E12",{"$f":"IFERROR(VLOOKUP($G27&$H27,CHOOSE({1,2},HA!$A$28:$A$500&HA!$B$28:$B$500,HA!$AK$28:$AK$500),2,FALSE),\"\")","v":0}]
["صيدا","C1",{"$f":"IFERROR(VLOOKUP($A28&$B28,CHOOSE({1,2},HA!$A$3:$A$500&HA!$B$3:$B$500,HA!$AK$3:$AK$500),2,FALSE),\"\")","v":0},null,null,null,"بيت ملات","E13",{"$f":"IFERROR(VLOOKUP($G28&$H28,CHOOSE({1,2},HA!$A$28:$A$500&HA!$B$28:$B$500,HA!$AK$28:$AK$500),2,FALSE),\"\")","v":0}]
["جويا","C10",{"$f":"IFERROR(VLOOKUP($A29&$B29,CHOOSE({1,2},HA!$A$3:$A$500&HA!$B$3:$B$500,HA!$AK$3:$AK$500),2,FALSE),\"\")","v":0},null,null,null,"المنية","E2",{"$f":"IFERROR(VLOOKUP($G29&$H29,CHOOSE({1,2},HA!$A$28:$A$500&HA!$B$28:$B$500,HA!$AK$28:$AK$500),2,FALSE),\"\")","v":2}]
["ميس الجبل","C11",{"$f":"IFERROR(VLOOKUP($A30&$B30,CHOOSE({1,2},HA!$A$3:$A$500&HA!$B$3:$B$500,HA!$AK$3:$AK$500),2,FALSE),\"\")","v":0},null,null,null,"سير الضنية","E3",{"$f":"IFERROR(VLOOKUP($G30&$H30,CHOOSE({1,2},HA!$A$28:$A$500&HA!$B$28:$B$500,HA!$AK$28:$AK$500),2,FALSE),\"\")","v":2}]
["صور","C2",{"$f":"IFERROR(VLOOKUP($A31&$B31,CHOOSE({1,2},HA!$A$3:$A$500&HA!$B$3:$B$500,HA!$AK$3:$AK$500),2,FALSE),\"\")","v":0},null,null,null,"حلبا عكار","E4",{"$f":"IFERROR(VLOOKUP($G31&$H31,CHOOSE({1,2},HA!$A$28:$A$500&HA!$B$28:$B$500,HA!$AK$28:$AK$500),2,FALSE),\"\")","v":0}]
["جزين","C3",{"$f":"IFERROR(VLOOKUP($A32&$B32,CHOOSE({1,2},HA!$A$3:$A$500&HA!$B$3:$B$500,HA!$AK$3:$AK$500),2,FALSE),\"\")","v":0},null,null,null,"القبيات","E5",{"$f":"IFERROR(VLOOKUP($G32&$H32,CHOOSE({1,2},HA!$A$28:$A$500&HA!$B$28:$B$500,HA!$AK$28:$AK$500),2,FALSE),\"\")","v":0}]
["النبطية","C4",{"$f":"IFERROR(VLOOKUP($A33&$B33,CHOOSE({1,2},HA!$A$3:$A$500&HA!$B$3:$B$500,HA!$AK$3:$AK$500),2,FALSE),\"\")","v":2},null,null,null,"البترون","E6",{"$f":"IFERROR(VLOOKUP($G33&$H33,CHOOSE({1,2},HA!$A$28:$A$500&HA!$B$28:$B$500,HA!$AK$28:$AK$500),2,FALSE),\"\")","v":8}]
["بنت جبيل","C5",{"$f":"IFERROR(VLOOKUP($A34&$B34,CHOOSE({1,2},HA!$A$3:$A$500&HA!$B$3:$B$500,HA!$AK$3:$AK$500),2,FALSE),\"\")","v":3},null,null,null,"الكورة","E7",{"$f":"IFERROR(VLOOKUP($G34&$H34,CHOOSE({1,2},HA!$A$28:$A$500&HA!$B$28:$B$500,HA!$AK$28:$AK$500),2,FALSE),\"\")","v":36}]
["مرجعيون","C6",{"$f":"IFERROR(VLOOKUP($A35&$B35,CHOOSE({1,2},HA!$A$3:$A$500&HA!$B$3:$B$500,HA!$AK$3:$AK$500),2,FALSE),\"\")","v":0},null,null,null,"زغرتا","E8",{"$f":"IFERROR(VLOOKUP($G35&$H35,CHOOSE({1,2},HA!$A$28:$A$500&HA!$B$28:$B$500,HA!$AK$28:$AK$500),2,FALSE),\"\")","v":2}]
["حاصبيا","C7",{"$f":"IFERROR(VLOOKUP($A36&$B36,CHOOSE({1,2},HA!$A$3:$A$500&HA!$B$3:$B$500,HA!$AK$3:$AK$500),2,FALSE),\"\")","v":0},null,null,null,"بشري","E9",{"$f":"IFERROR(VLOOKUP($G36&$H36,CHOOSE({1,2},HA!$A$28:$A$500&HA!$B$28:$B$500,HA!$AK$28:$AK$500),2,FALSE),\"\")","v":22}]
["تبنين","C8",{"$f":"IFERROR(VLOOKUP($A37&$B37,CHOOSE({1,2},HA!$A$3:$A$500&HA!$B$3:$B$500,HA!$AK$3:$AK$500),2,FALSE),\"\")","v":3}]
[null,null,{"$f":"SUM(C13:C37)","v":284},null,null,null,"المجموع العام",null,{"$f":"SUM(C38+I37)","v":284}]
[]
["مكتب الفـرز والتوزيـع",null,null,null,null,null,"مكتـب المقـاصة"]
["التوقيــع",null,null,null,null,null,"التوقيــع"]